Department family,Entity,Date,Expense Type,Expense Area,Supplier,Transaction number, AP Amount (�) ,VAT registration number,Purchase invoice number
Department of Health,NHS Anglia CSU,31/08/2014,Establishment,CSUs,TENEO LTD,4500801,"38,534.45",732569813,15932
Department of Health,NHS Anglia CSU,31/08/2014,Establishment,CSUs,DIONYSYS LTD,4610056,"78,105.06", -   ,27305
Department of Health,NHS Anglia CSU,31/08/2014,Supplies and services � general,CSUs,EAST COAST COMMUNITY HEALTHCARE CIC,4500756,"128,488.60", -   ,1400001987
Department of Health,NHS Anglia CSU,31/08/2014,Supplies and services � general,CSUs,EAST COAST COMMUNITY HEALTHCARE CIC,4500857,"-128,488.60", -   ,1410000287
Department of Health,NHS Arden CSU,31/08/2014,Consultancy services,CSUs,PREDERI LTD,4799503,"25,147.42", -   ,282
Department of Health,NHS Arden CSU,31/08/2014,Consultancy services,CSUs,YOUNG FOUNDATION,4786277,"25,202.40", -   ,SIN003958
Department of Health,NHS Arden CSU,31/08/2014,Establishment,CSUs,WORCESTERSHIRE ACUTE HOSPITALS NHS TRUST,4773527,"78,117.00", -   ,4426781
Department of Health,NHS Arden CSU,31/08/2014,Establishment,CSUs,WORCESTERSHIRE ACUTE HOSPITALS NHS TRUST,4799473,"78,117.00", -   ,4427870
Department of Health,NHS Central Eastern CSU,31/08/2014,Consultancy services,CSUs,CISILION LTD,4613636,"54,403.86",765633407,INV023696
Department of Health,NHS Central Eastern CSU,31/08/2014,Establishment,CSUs,COMPUTACENTER (UK) LTD,4737725,"54,240.00",GB490334648,3880210903
Department of Health,NHS Central Eastern CSU,31/08/2014,Establishment,CSUs,COMPUTACENTER (UK) LTD,4761595,"30,792.02",GB490334648,3880229086DATED
Department of Health,NHS Central Eastern CSU,31/08/2014,Establishment,CSUs,CP PLUS LTD,4613767,"34,892.71", -   ,1879508
Department of Health,NHS Central Eastern CSU,31/08/2014,Services from other NHS bodies,CSUs,NHS EAST AND NORTH HERTFORDSHIRE CCG,4735350,"57,621.00", -   ,7020900507
Department of Health,NHS Central Eastern CSU,31/08/2014,Supplies and services � general,NHS England Running Costs,ATTAIN COMMISIONING SERVICES LTD,4627291,"31,448.18", -   ,645
Department of Health,NHS Central Eastern CSU,31/08/2014,Supplies and services � general,NHS England Running Costs,ATTAIN COMMISIONING SERVICES LTD,4787063,"84,222.00", -   ,750
Department of Health,NHS Central Midlands CSU,31/08/2014,Consultancy services,CSUs,GLOBAL TRANSLATION SERVICES,4718001,"28,643.70", -   ,100361
Department of Health,NHS Central Midlands CSU,31/08/2014,Consultancy services,CSUs,PROFESSIONAL LINGUISTS LTD,4717988,"42,753.60", -   ,INVI92
Department of Health,NHS Central Midlands CSU,31/08/2014,Consultancy services,Consultancy services,A TO Z INTERPRETING & TRANSLATION,4687450,"64,926.60", -   ,INV024
Department of Health,NHS Central Midlands CSU,31/08/2014,Consultancy services,Consultancy services,EXPRESS INTERPRETING & TRANSLATION,4734940,"40,950.00", -   ,EX146
Department of Health,NHS Central Midlands CSU,31/08/2014,Establishment,CSUs,DUDLEY GROUP HOSPITALS NHS FOUNDATION TRUST,4648539,"61,496.11", -   ,1000019061
Department of Health,NHS Central Midlands CSU,31/08/2014,Establishment,CSUs,NHS PENSIONS,4625967,"72,962.77",GB654434729,1597667
Department of Health,NHS Central Midlands CSU,31/08/2014,Establishment,CSUs,NHS PENSIONS,4626062,"-72,962.77",GB654434729,5841
Department of Health,NHS Central Midlands CSU,31/08/2014,Establishment,CSUs,BDS SOLUTIONS,4626011,"45,900.00",631215482,15488
Department of Health,NHS Central Midlands CSU,31/08/2014,Establishment,CSUs,BDS SOLUTIONS,4626046,"-45,900.00",631215482,20501
Department of Health,NHS Central Midlands CSU,31/08/2014,Establishment,CSUs,SULLIVAN CUFF SOFTWARE,4785997,"26,121.60", -   ,14712
Department of Health,NHS Central Southern CSU,31/08/2014,Establishment,CSUs,BT GLOBAL SERVICES,4702509,"35,886.16",245719348,790124840
Department of Health,NHS Central Southern CSU,31/08/2014,Establishment,CSUs,HEALTHCARE COMPUTING LTD,4702592,"30,759.00",654457418,47210
Department of Health,NHS Central Southern CSU,31/08/2014,Establishment,CSUs,OXFORD UNIVERSITY HOSPITALS NHS TRUST,4521670,"63,873.50", -   ,8185655
Department of Health,NHS Central Southern CSU,31/08/2014,Establishment,CSUs,SOLLIS PARTNERSHIP LTD,4521811,"172,021.92",644186137,3325
Department of Health,NHS Central Southern CSU,31/08/2014,Establishment,CSUs,SOLLIS PARTNERSHIP LTD,4648487,"52,202.58",644186137,3337
Department of Health,NHS Central Southern CSU,31/08/2014,Premises,CSUs,NHS PROPERTY SERVICES LTD,4626405,"349,216.00", -   ,48337935
Department of Health,NHS Central Southern CSU,31/08/2014,Supplies and services � general,CSUs,VODAFONE LTD,4626356,"30,472.07",569953277,72681172
Department of Health,NHS Central Southern CSU,31/08/2014,Supplies and services � general,CSUs,SOLLIS PARTNERSHIP LTD,4648499,"52,202.58",644186137,3336
Department of Health,NHS Cheshire And Merseyside CSU,31/08/2014,Consultancy services,CSUs,BENCHMARK MANAGEMENT CONSULTING LTD,4627230,"114,925.09",748739771,BMC527
Department of Health,NHS Cheshire And Merseyside CSU,31/08/2014,Premises,CSUs,NHS PROPERTY SERVICES LTD,4537414,"33,515.50", -   ,48336646
Department of Health,NHS England,31/08/2014,Capital,Capital,NHS EALING CCG,4524470,"75,311.00", -   ,7023100065
Department of Health,NHS England,31/08/2014,Capital,Capital,NHS BRENT CCG,4524383,"107,716.14", -   ,7022600058
Department of Health,NHS England,31/08/2014,Capital,Capital,NHS BRENT CCG,4524415,"112,273.30", -   ,7022600059
Department of Health,NHS England,31/08/2014,Capital,Capital,NHS BRENT CCG,4524424,"192,611.16", -   ,7022600060
Department of Health,NHS England,31/08/2014,Capital,Capital,NHS BRENT CCG,4524453,"77,363.33", -   ,7022600063
Department of Health,NHS England,31/08/2014,Capital,Capital,NHS BRIGHTON & HOVE CCG,4756282,"51,337.01", -   ,7025600091
Department of Health,NHS England,31/08/2014,Capital,Capital,NHS BRIGHTON & HOVE CCG,4756427,"99,853.92", -   ,7025600121
Department of Health,NHS England,31/08/2014,Capital,Capital,NHS BRIGHTON & HOVE CCG,4756702,"-51,337.01", -   ,7025600142
Department of Health,NHS England,31/08/2014,Capital,Capital,NHS WARWICKSHIRE NORTH CCG,4555261,"52,280.49", -   ,7019300059
Department of Health,NHS England,31/08/2014,Capital,Capital,OFFICESCAPE CONTRACTS LTD,4690393,"38,683.64", -   ,6529
Department of Health,NHS England,31/08/2014,Capital,Capital,NHS MILTON KEYNES CCG,4705611,"-32,124.00", -   ,7017301954
Department of Health,NHS England,31/08/2014,Capital,Capital,NHS MILTON KEYNES CCG,4801478,"624,510.40", -   ,7017301399
Department of Health,NHS England,31/08/2014,Consultancy services,NHS England Running Costs,ERNST & YOUNG LLP,4736711,"31,941.60",773831408,GB10300011901
Department of Health,NHS England,31/08/2014,Supplies and services � general,NHS England Running Costs,NHS SHARED BUSINESS SERVICES LTD,4524902,"46,523.93",848137212,100025551
Department of Health,NHS England,31/08/2014,Supplies and services � general,NHS England Running Costs,NHS SHARED BUSINESS SERVICES LTD,4720718,"46,523.93",848137212,100026125
Department of Health,NHS England,31/08/2014,Supplies and services � general,NHS England Running Costs,NORTH EAST LONDON NHS FOUNDATION TRUST,4629228,"153,813.30", -   ,AC7000007946
Department of Health,NHS England,31/08/2014,Supplies and services � general,NHS England Running Costs,SERCO LTD,4554943,"354,019.69",207523388,91016387
Department of Health,NHS England,31/08/2014,Consultancy services,NHS England Running Costs,GGI LTD,4613691,"28,750.00",988891918,JUN201416
Department of Health,NHS England,31/08/2014,Supplies and services � general,Other (Including Central Programme),PA CONSULTING SERVICES LTD,4595073,"80,100.00",238535057,10104276
Department of Health,NHS England,31/08/2014,Supplies and services � general,Other (Including Central Programme),PA CONSULTING SERVICES LTD,4595074,"76,991.28",238535057,10104275
Department of Health,NHS England,31/08/2014,Supplies and services � general,Other (Including Central Programme),LUTHER PENDRAGON LTD,4595554,"25,000.00",577810607,16993
Department of Health,NHS England,31/08/2014,Education and training,NHS England Running Costs,HFMA,4524917,"570,000.00",879953736,22335
Department of Health,NHS England,31/08/2014,Education and training,Other (Including Central Programme),DARLINGTON BOROUGH COUNCIL,4554751,"50,000.00", -   ,2512516
Department of Health,NHS England,31/08/2014,Education and training,Other (Including Central Programme),DARLINGTON BOROUGH COUNCIL,4555459,"-50,000.00", -   ,2573538
Department of Health,NHS England,31/08/2014,Education and training,Other (Including Central Programme),LONDON COUNCILS,4776818,"267,000.00",766069205,4120804
Department of Health,NHS England,31/08/2014,Education and training,Primary Care & Secondary Dental,NEWCASTLE UPON TYNE HOSPITALS NHS FOUNDATION TRUST,4613205,"27,432.00", -   ,R0225236
Department of Health,NHS England,31/08/2014,Establishment,NHS England Running Costs,3M SECURITY SYSTEMS DIVISION,3607697,"26,439.32", -   ,130901
Department of Health,NHS England,31/08/2014,Establishment,NHS England Running Costs,3M SECURITY SYSTEMS DIVISION,3808254,"37,177.41", -   ,131709
Department of Health,NHS England,31/08/2014,Establishment,NHS England Running Costs,3M SECURITY SYSTEMS DIVISION,4130375,"53,396.94", -   ,132595
Department of Health,NHS England,31/08/2014,Establishment,NHS England Running Costs,3M SECURITY SYSTEMS DIVISION,4488861,"27,396.41", -   ,133454
Department of Health,NHS England,31/08/2014,Establishment,NHS England Running Costs,3M SECURITY SYSTEMS DIVISION,4488862,"40,922.14", -   ,133449
Department of Health,NHS England,31/08/2014,Establishment,NHS England Running Costs,3M SECURITY SYSTEMS DIVISION,4584852,"-26,439.32", -   ,130901CRCORR
Department of Health,NHS England,31/08/2014,Establishment,NHS England Running Costs,3M SECURITY SYSTEMS DIVISION,4584853,"26,439.32", -   ,130901DRCORR
Department of Health,NHS England,31/08/2014,Establishment,NHS England Running Costs,3M SECURITY SYSTEMS DIVISION,4706108,"37,021.67", -   ,133453
Department of Health,NHS England,31/08/2014,Establishment,NHS England Running Costs,CENTERPRISE INTERNATIONAL LTD,4705361,"40,000.00",849772272,90153291
Department of Health,NHS England,31/08/2014,Establishment,NHS England Running Costs,DANWOOD GROUP LTD,4628912,"46,592.18", -   ,3728122
Department of Health,NHS England,31/08/2014,Establishment,NHS England Running Costs,DEPARTMENT OF HEALTH,4595158,"-64,032.00",888815064,801036
Department of Health,NHS England,31/08/2014,Establishment,NHS England Running Costs,DEPARTMENT OF HEALTH,4669281,"64,032.00",888815064,211296
Department of Health,NHS England,31/08/2014,Establishment,NHS England Running Costs,DEPARTMENT OF HEALTH,4776794,"85,470.25",888815064,211223
Department of Health,NHS England,31/08/2014,Establishment,NHS England Running Costs,DEPARTMENT OF HEALTH,4776797,"75,788.88",888815064,211226
Department of Health,NHS England,31/08/2014,Establishment,NHS England Running Costs,NHS SHARED BUSINESS SERVICES LTD,4668813,"52,816.28",848137212,100025880
Department of Health,NHS England,31/08/2014,Establishment,NHS England Running Costs,HEALTH & SOCIAL CARE INFORMATION CENTRE,4818423,"62,544.00",654434435,12667930
Department of Health,NHS England,31/08/2014,Establishment,NHS England Running Costs,SOFTWARE BOX LTD,4556278,"240,000.00",734245248,INV71523
Department of Health,NHS England,31/08/2014,Establishment,NHS England Running Costs,MICROSOFT LTD,4613693,"240,000.00",724594615,9620759487
Department of Health,NHS England,31/08/2014,Establishment,NHS England Running Costs,UKN GROUP LTD,4651025,"34,473.00", -   ,116333
Department of Health,NHS England,31/08/2014,Establishment,NHS England Running Costs,ATOS IT SERVICES UK LTD,4737786,"296,619.00", -   ,5584163803
Department of Health,NHS England,31/08/2014,Establishment,Other (Including Central Programme),GENERAL DYNAMICS IT LTD,4469161,"193,552.31", -   ,SIN004264
Department of Health,NHS England,31/08/2014,Establishment,Other (Including Central Programme),GENERAL DYNAMICS IT LTD,4737808,"208,750.25", -   ,SIN004300
Department of Health,NHS England,31/08/2014,Establishment,Other (Including Central Programme),SALFORD ROYAL NHS FOUNDATION TRUST,4594815,"115,132.75", -   ,1000153597
Department of Health,NHS England,31/08/2014,Establishment,Other (Including Central Programme),VODAFONE LTD,4459746,"382,423.66",569953277,12971644
Department of Health,NHS England,31/08/2014,Establishment,Other (Including Central Programme),VODAFONE LTD,4761582,"66,983.95",569953277,13036205
Department of Health,NHS England,31/08/2014,Establishment,Other (Including Central Programme),M4C,4555948,"-131,160.00",868111714,A37244
Department of Health,NHS England,31/08/2014,Establishment,Other (Including Central Programme),CSC COMPUTER SCIENCES LTD,4690899,"120,724.56",584686581,5201374500
Department of Health,NHS England,31/08/2014,Establishment,Other (Including Central Programme),CSC COMPUTER SCIENCES LTD,4690900,"118,584.49",584686581,5201373856
Department of Health,NHS England,31/08/2014,Establishment,Other (Including Central Programme),CSC COMPUTER SCIENCES LTD,4690901,"120,397.86",584686581,5201373857
Department of Health,NHS England,31/08/2014,Establishment,Other (Including Central Programme),CSC COMPUTER SCIENCES LTD,4690906,"121,075.20",584686581,5201375688
Department of Health,NHS England,31/08/2014,Establishment,Primary Care & Secondary Dental,DELL CORPORATION LTD,4630262,"41,100.00",635823528,7100024261
Department of Health,NHS England,31/08/2014,Establishment,Primary Care & Secondary Dental,NHS WOLVERHAMPTON CCG,4503586,"39,613.00", -   ,7020500069
Department of Health,NHS England,31/08/2014,General Dental services and personal dental services,Primary Care & Secondary Dental,543 DENTAL CENTRE LTD,4613170,"25,777.00", -   ,150
Department of Health,NHS England,31/08/2014,General Dental services and personal dental services,Primary Care & Secondary Dental,ANGLIAN COMMUNITY ENTERPRISE CIC,4594948,"80,851.75",587172605,AC7000007954
Department of Health,NHS England,31/08/2014,General Dental services and personal dental services,Primary Care & Secondary Dental,BARKING HAVERING AND REDBRIDGE HOSPITALS NHS TRUST,4503694,"28,665.00", -   ,8409599
Department of Health,NHS England,31/08/2014,General Dental services and personal dental services,Primary Care & Secondary Dental,BARTS HEALTH NHS TRUST,4490471,"49,666.47", -   ,187953
Department of Health,NHS England,31/08/2014,General Dental services and personal dental services,Primary Care & Secondary Dental,BASILDON & THURROCK UNIVERSITY HOSPITALS NHS FOUNDATION TRUST,4651065,"132,389.00", -   ,66318
Department of Health,NHS England,31/08/2014,General Dental services and personal dental services,Primary Care & Secondary Dental,BEDFORD HOSPITAL NHS TRUST,4612713,"169,966.84", -   ,I0135857
Department of Health,NHS England,31/08/2014,General Dental services and personal dental services,Primary Care & Secondary Dental,BIRMINGHAM CHILDRENS HOSPITAL NHS FOUNDATION TRUST,4504317,"42,161.25", -   ,15668665
Department of Health,NHS England,31/08/2014,General Dental services and personal dental services,Primary Care & Secondary Dental,BIRMINGHAM COMMUNITY HEALTHCARE NHS TRUST,4504324,"833,551.00", -   ,45000305
Department of Health,NHS England,31/08/2014,General Dental services and personal dental services,Primary Care & Secondary Dental,BIRMINGHAM COMMUNITY HEALTHCARE NHS TRUST,4504325,"760,162.00", -   ,45000310
Department of Health,NHS England,31/08/2014,General Dental services and personal dental services,Primary Care & Secondary Dental,BIRMINGHAM COMMUNITY HEALTHCARE NHS TRUST,4555797,"86,527.00", -   ,45000311
Department of Health,NHS England,31/08/2014,General Dental services and personal dental services,Primary Care & Secondary Dental,BLACKPOOL TEACHING HOSPITALS NHS FOUNDATION TRUST,4410263,"384,122.00", -   ,1110008772
Department of Health,NHS England,31/08/2014,General Dental services and personal dental services,Primary Care & Secondary Dental,BLACKPOOL TEACHING HOSPITALS NHS FOUNDATION TRUST,4757105,"162,659.00", -   ,1110009397
Department of Health,NHS England,31/08/2014,General Dental services and personal dental services,Primary Care & Secondary Dental,BURTON HOSPITALS NHS FOUNDATION TRUST,4571456,"123,376.00", -   ,IN0013732401
Department of Health,NHS England,31/08/2014,General Dental services and personal dental services,Primary Care & Secondary Dental,CENTRAL & NORTH WEST LONDON NHS FOUNDATION TRUST,4704980,"289,860.00",654970895,S0513078
Department of Health,NHS England,31/08/2014,General Dental services and personal dental services,Primary Care & Secondary Dental,CENTRAL & NORTH WEST LONDON NHS FOUNDATION TRUST,4705328,"147,010.42",654970895,S0513404
Department of Health,NHS England,31/08/2014,General Dental services and personal dental services,Primary Care & Secondary Dental,CENTRAL & NORTH WEST LONDON NHS FOUNDATION TRUST,4777258,"147,102.49",654970895,S0513450
Department of Health,NHS England,31/08/2014,General Dental services and personal dental services,Primary Care & Secondary Dental,CENTRAL ESSEX COMMUNITY SERVICES CIC,4539353,"63,110.00", -   ,CE4000005450
Department of Health,NHS England,31/08/2014,General Dental services and personal dental services,Primary Care & Secondary Dental,CENTRAL ESSEX COMMUNITY SERVICES CIC,4650815,"63,110.00", -   ,CE4000005449
Department of Health,NHS England,31/08/2014,General Dental services and personal dental services,Primary Care & Secondary Dental,CENTRAL MANCHESTER UNIVERSITY HOSPITALS NHS FOUNDATION TRUST,4503887,"975,702.00", -   ,6210007281
Department of Health,NHS England,31/08/2014,General Dental services and personal dental services,Primary Care & Secondary Dental,CENTRAL MANCHESTER UNIVERSITY HOSPITALS NHS FOUNDATION TRUST,4525000,"64,976.00", -   ,6210007263
Department of Health,NHS England,31/08/2014,General Dental services and personal dental services,Primary Care & Secondary Dental,CENTRAL MANCHESTER UNIVERSITY HOSPITALS NHS FOUNDATION TRUST,4720401,"212,553.00", -   ,6210007280
Department of Health,NHS England,31/08/2014,General Dental services and personal dental services,Primary Care & Secondary Dental,CENTRAL MANCHESTER UNIVERSITY HOSPITALS NHS FOUNDATION TRUST,4721294,"83,979.00", -   ,6210008753
Department of Health,NHS England,31/08/2014,General Dental services and personal dental services,Primary Care & Secondary Dental,CENTRAL MANCHESTER UNIVERSITY HOSPITALS NHS FOUNDATION TRUST,4818463,"212,553.00", -   ,6210008775
Department of Health,NHS England,31/08/2014,General Dental services and personal dental services,Primary Care & Secondary Dental,CHESTERFIELD ROYAL HOSPITAL NHS FOUNDATION TRUST,4571092,"197,250.00", -   ,4520649
Department of Health,NHS England,31/08/2014,General Dental services and personal dental services,Primary Care & Secondary Dental,CITY HOSPITALS SUNDERLAND FOUNDATION NHS TRUST,4540047,"120,889.00", -   ,7910010509
Department of Health,NHS England,31/08/2014,General Dental services and personal dental services,Primary Care & Secondary Dental,COLCHESTER HOSPITAL UNIVERSITY NHS FOUNDATION TRUST,4705335,"131,479.13",654921325,2000031379
Department of Health,NHS England,31/08/2014,General Dental services and personal dental services,Primary Care & Secondary Dental,COUNTESS OF CHESTER HOSPITAL NHS FOUNDATION TRUST,4555934,"181,781.03", -   ,I0071124
Department of Health,NHS England,31/08/2014,General Dental services and personal dental services,Primary Care & Secondary Dental,CUMBRIA PARTNERSHIP NHS FOUNDATION TRUST,4802320,"25,205.87", -   ,2510021640
Department of Health,NHS England,31/08/2014,General Dental services and personal dental services,Primary Care & Secondary Dental,DERBY HOSPITALS NHS FOUNDATION TRUST,4503548,"445,516.84", -   ,321143
Department of Health,NHS England,31/08/2014,General Dental services and personal dental services,Primary Care & Secondary Dental,DERBY HOSPITALS NHS FOUNDATION TRUST,4570895,"-155,635.32", -   ,916886
Department of Health,NHS England,31/08/2014,General Dental services and personal dental services,Primary Care & Secondary Dental,DERBY HOSPITALS NHS FOUNDATION TRUST,4629361,"445,885.00", -   ,322329
Department of Health,NHS England,31/08/2014,General Dental services and personal dental services,Primary Care & Secondary Dental,DERBY HOSPITALS NHS FOUNDATION TRUST,4690348,"68,516.00", -   ,322331
Department of Health,NHS England,31/08/2014,General Dental services and personal dental services,Primary Care & Secondary Dental,DERBYSHIRE COMMUNITY HEALTH SERVICES NHS TRUST,4539670,"498,887.00", -   ,11871982
Department of Health,NHS England,31/08/2014,General Dental services and personal dental services,Primary Care & Secondary Dental,DORSET COUNTY HOSPITAL NHS FOUNDATION TRUST,4669040,"261,821.00", -   ,D051163
Department of Health,NHS England,31/08/2014,General Dental services and personal dental services,Primary Care & Secondary Dental,EAST AND NORTH HERTFORDSHIRE NHS TRUST,4524675,"161,826.28", -   ,4106811
Department of Health,NHS England,31/08/2014,General Dental services and personal dental services,Primary Care & Secondary Dental,EAST AND NORTH HERTFORDSHIRE NHS TRUST,4555364,"161,826.28", -   ,4107750
Department of Health,NHS England,31/08/2014,General Dental services and personal dental services,Primary Care & Secondary Dental,EAST CHESHIRE NHS TRUST,4757108,"283,240.50", -   ,17475902
Department of Health,NHS England,31/08/2014,General Dental services and personal dental services,Primary Care & Secondary Dental,EAST CHESHIRE NHS TRUST,4777907,"56,648.10", -   ,17475903
Department of Health,NHS England,31/08/2014,General Dental services and personal dental services,Primary Care & Secondary Dental,EAST FINCHLEY SMILES,4613760,"59,053.03", -   ,20DUR
Department of Health,NHS England,31/08/2014,General Dental services and personal dental services,Primary Care & Secondary Dental,EAST KENT HOSPITALS UNIVERSITY NHS FOUNDATION TRUST,4504222,"466,848.00", -   ,837076
Department of Health,NHS England,31/08/2014,General Dental services and personal dental services,Primary Care & Secondary Dental,EAST KENT HOSPITALS UNIVERSITY NHS FOUNDATION TRUST,4504226,"154,581.00", -   ,837168
Department of Health,NHS England,31/08/2014,General Dental services and personal dental services,Primary Care & Secondary Dental,EAST KENT HOSPITALS UNIVERSITY NHS FOUNDATION TRUST,4788907,"497,764.00", -   ,838276
Department of Health,NHS England,31/08/2014,General Dental services and personal dental services,Primary Care & Secondary Dental,EAST SUSSEX HEALTHCARE NHS TRUST,4571445,"234,975.00", -   ,73937
Department of Health,NHS England,31/08/2014,General Dental services and personal dental services,Primary Care & Secondary Dental,FDS CONSULTANTS,4777167,"61,310.40", -   ,INV000569
Department of Health,NHS England,31/08/2014,General Dental services and personal dental services,Primary Care & Secondary Dental,GLOUCESTERSHIRE HOSPITALS NHS FOUNDATION TRUST,4690354,"468,092.53", -   ,1010287
Department of Health,NHS England,31/08/2014,General Dental services and personal dental services,Primary Care & Secondary Dental,GREAT WESTERN HOSPITALS NHS FOUNDATION TRUST,4594609,"262,932.93", -   ,16948739
Department of Health,NHS England,31/08/2014,General Dental services and personal dental services,Primary Care & Secondary Dental,GUYS & ST THOMAS HOSPITAL NHS FOUNDATION TRUST,4503161,"76,035.00", -   ,3140843
Department of Health,NHS England,31/08/2014,General Dental services and personal dental services,Primary Care & Secondary Dental,GUYS & ST THOMAS HOSPITAL NHS FOUNDATION TRUST,4539711,"46,893.00", -   ,3145323
Department of Health,NHS England,31/08/2014,General Dental services and personal dental services,Primary Care & Secondary Dental,GUYS & ST THOMAS HOSPITAL NHS FOUNDATION TRUST,4594897,"162,481.00", -   ,3145321
Department of Health,NHS England,31/08/2014,General Dental services and personal dental services,Primary Care & Secondary Dental,GUYS & ST THOMAS HOSPITAL NHS FOUNDATION TRUST,4594898,"48,506.00", -   ,3145342
Department of Health,NHS England,31/08/2014,General Dental services and personal dental services,Primary Care & Secondary Dental,GUYS & ST THOMAS HOSPITAL NHS FOUNDATION TRUST,4612862,"38,925.00", -   ,3145328
Department of Health,NHS England,31/08/2014,General Dental services and personal dental services,Primary Care & Secondary Dental,GUYS & ST THOMAS HOSPITAL NHS FOUNDATION TRUST,4801981,"38,925.00", -   ,3142940
Department of Health,NHS England,31/08/2014,General Dental services and personal dental services,Primary Care & Secondary Dental,HAMPSHIRE HOSPITALS NHS FOUNDATION TRUST,4705422,"381,636.00", -   ,40036504
Department of Health,NHS England,31/08/2014,General Dental services and personal dental services,Primary Care & Secondary Dental,HAMPSHIRE HOSPITALS NHS FOUNDATION TRUST,4818345,"259,616.00", -   ,40036265
Department of Health,NHS England,31/08/2014,General Dental services and personal dental services,Primary Care & Secondary Dental,HEART OF ENGLAND NHS FOUNDATION TRUST,4613747,"52,754.00", -   ,920586
Department of Health,NHS England,31/08/2014,General Dental services and personal dental services,Primary Care & Secondary Dental,HEART OF ENGLAND NHS FOUNDATION TRUST,4613748,"126,867.00", -   ,920590
Department of Health,NHS England,31/08/2014,General Dental services and personal dental services,Primary Care & Secondary Dental,HERTFORDSHIRE COMMUNITY NHS TRUST,4629204,"151,118.43", -   ,28008893
Department of Health,NHS England,31/08/2014,General Dental services and personal dental services,Primary Care & Secondary Dental,HERTS URGENT DENTAL CARE LTD,4720834,"33,668.05", -   ,HUDC141505
Department of Health,NHS England,31/08/2014,General Dental services and personal dental services,Primary Care & Secondary Dental,HULL AND EAST YORKSHIRE HOSPITALS NHS TRUST,4488687,"505,292.90", -   ,1210010860
Department of Health,NHS England,31/08/2014,General Dental services and personal dental services,Primary Care & Secondary Dental,ISLE OF WIGHT NHS TRUST,4613201,"121,390.00", -   ,44303676
Department of Health,NHS England,31/08/2014,General Dental services and personal dental services,Primary Care & Secondary Dental,KENT COMMUNITY HEALTH NHS TRUST,4525016,"380,500.00", -   ,24024988
Department of Health,NHS England,31/08/2014,General Dental services and personal dental services,Primary Care & Secondary Dental,KETTERING GENERAL HOSPITAL NHS FOUNDATION TRUST,4555177,"213,240.25", -   ,A0025604
Department of Health,NHS England,31/08/2014,General Dental services and personal dental services,Primary Care & Secondary Dental,KING`S COLLEGE HOSPITAL NHS FOUNDATION TRUST,4524937,"30,000.00", -   ,207760
Department of Health,NHS England,31/08/2014,General Dental services and personal dental services,Primary Care & Secondary Dental,KING`S COLLEGE HOSPITAL NHS FOUNDATION TRUST,4555830,"51,652.00", -   ,208233
Department of Health,NHS England,31/08/2014,General Dental services and personal dental services,Primary Care & Secondary Dental,KING`S COLLEGE HOSPITAL NHS FOUNDATION TRUST,4571091,"38,214.78", -   ,208236
Department of Health,NHS England,31/08/2014,General Dental services and personal dental services,Primary Care & Secondary Dental,LANCASHIRE TEACHING HOSPITALS NHS FOUNDATION TRUST,4788215,"42,883.00", -   ,15245948
Department of Health,NHS England,31/08/2014,General Dental services and personal dental services,Primary Care & Secondary Dental,LOCAL CARE DIRECT,4705262,"266,646.00", -   ,18495
Department of Health,NHS England,31/08/2014,General Dental services and personal dental services,Primary Care & Secondary Dental,LUTON & DUNSTABLE HOSPITAL NHS FOUNDATION TRUST,4594676,"79,575.92", -   ,52955553
Department of Health,NHS England,31/08/2014,General Dental services and personal dental services,Primary Care & Secondary Dental,LUTON & DUNSTABLE HOSPITAL NHS FOUNDATION TRUST,4594936,"-79,575.92", -   ,52955779
Department of Health,NHS England,31/08/2014,General Dental services and personal dental services,Primary Care & Secondary Dental,LUTON & DUNSTABLE HOSPITAL NHS FOUNDATION TRUST,4612899,"421,626.67", -   ,52955780
Department of Health,NHS England,31/08/2014,General Dental services and personal dental services,Primary Care & Secondary Dental,LUTON & DUNSTABLE HOSPITAL NHS FOUNDATION TRUST,4629039,"-66,129.03", -   ,52954814
Department of Health,NHS England,31/08/2014,General Dental services and personal dental services,Primary Care & Secondary Dental,MEDWAY NHS FOUNDATION TRUST,4469181,"71,720.00", -   ,1766
Department of Health,NHS England,31/08/2014,General Dental services and personal dental services,Primary Care & Secondary Dental,MID ESSEX HOSPITALS SERVICES NHS TRUST,4594031,"-485,390.78", -   ,ME0000008061
Department of Health,NHS England,31/08/2014,General Dental services and personal dental services,Primary Care & Secondary Dental,MID ESSEX HOSPITALS SERVICES NHS TRUST,4650761,"275,004.00", -   ,ME2000083910
Department of Health,NHS England,31/08/2014,General Dental services and personal dental services,Primary Care & Secondary Dental,MID ESSEX HOSPITALS SERVICES NHS TRUST,4651030,"275,004.00", -   ,ME2000084342
Department of Health,NHS England,31/08/2014,General Dental services and personal dental services,Primary Care & Secondary Dental,MILTON KEYNES HOSPITAL NHS FOUNDATION TRUST,4612866,"127,522.00", -   ,42910410
Department of Health,NHS England,31/08/2014,General Dental services and personal dental services,Primary Care & Secondary Dental,NEWCASTLE UPON TYNE HOSPITALS NHS FOUNDATION TRUST,4540240,"90,129.09", -   ,R0225384
Department of Health,NHS England,31/08/2014,General Dental services and personal dental services,Primary Care & Secondary Dental,NEWCASTLE UPON TYNE HOSPITALS NHS FOUNDATION TRUST,4668671,"100,700.00", -   ,R0222974
Department of Health,NHS England,31/08/2014,General Dental services and personal dental services,Primary Care & Secondary Dental,NORTH EAST LONDON NHS FOUNDATION TRUST,4777449,"73,770.00", -   ,NL0000023390
Department of Health,NHS England,31/08/2014,General Dental services and personal dental services,Primary Care & Secondary Dental,NORTH WEST LONDON HOSPITALS NHS TRUST,4594677,"105,785.00", -   ,I0160820
Department of Health,NHS England,31/08/2014,General Dental services and personal dental services,Primary Care & Secondary Dental,NORTHAMPTON GENERAL HOSPITAL NHS TRUST,4612719,"464,890.10", -   ,197298
Department of Health,NHS England,31/08/2014,General Dental services and personal dental services,Primary Care & Secondary Dental,NORTHAMPTONSHIRE HEALTHCARE NHS FOUNDATION TRUST,4690314,"174,767.00",654403940,5126908
Department of Health,NHS England,31/08/2014,General Dental services and personal dental services,Primary Care & Secondary Dental,NORTHERN LINCOLNSHIRE AND GOOLE HOSPITALS NHS FOUNDATION TRUST,4594928,"521,817.00",654977580,2400005954
Department of Health,NHS England,31/08/2014,General Dental services and personal dental services,Primary Care & Secondary Dental,NORTHUMBRIA HEALTHCARE NHS FOUNDATION TRUST,4651727,"107,634.00", -   ,7510043744
Department of Health,NHS England,31/08/2014,General Dental services and personal dental services,Primary Care & Secondary Dental,NOTTINGHAM UNIVERSITY HOSPITALS NHS TRUST,4629249,"413,279.00", -   ,2000057517
Department of Health,NHS England,31/08/2014,General Dental services and personal dental services,Primary Care & Secondary Dental,NOTTINGHAMSHIRE HEALTHCARE NHS TRUST,4737155,"154,550.33", -   ,1000029922
Department of Health,NHS England,31/08/2014,General Dental services and personal dental services,Primary Care & Secondary Dental,OXFORD HEALTH NHS FOUNDATION TRUST,4488066,"364,007.83", -   ,A0087163
Department of Health,NHS England,31/08/2014,General Dental services and personal dental services,Primary Care & Secondary Dental,PENNINE CARE NHS FOUNDATION TRUST,4737067,"187,718.00", -   ,1010005610
Department of Health,NHS England,31/08/2014,General Dental services and personal dental services,Primary Care & Secondary Dental,PENNINE CARE NHS FOUNDATION TRUST,4737068,"115,371.00", -   ,1010005611
Department of Health,NHS England,31/08/2014,General Dental services and personal dental services,Primary Care & Secondary Dental,PENNINE CARE NHS FOUNDATION TRUST,4737070,"113,737.00", -   ,1010005609
Department of Health,NHS England,31/08/2014,General Dental services and personal dental services,Primary Care & Secondary Dental,POOLE HOSPITAL NHS FOUNDATION TRUST,4487729,"383,497.00",654 9463 02,P0141932
Department of Health,NHS England,31/08/2014,General Dental services and personal dental services,Primary Care & Secondary Dental,POOLE HOSPITAL NHS FOUNDATION TRUST,4756706,"383,497.00",654 9463 02,P0142611
Department of Health,NHS England,31/08/2014,General Dental services and personal dental services,Primary Care & Secondary Dental,PRINCESS ALEXANDRA HOSPITAL NHS TRUST,4594471,"52,606.74",654964985,BL140513
Department of Health,NHS England,31/08/2014,General Dental services and personal dental services,Primary Care & Secondary Dental,PRINCESS ALEXANDRA HOSPITAL NHS TRUST,4802522,"119,951.23",654964985,BL140612
Department of Health,NHS England,31/08/2014,General Dental services and personal dental services,Primary Care & Secondary Dental,QUEEN VICTORIA HOSPITAL NHS FOUNDATION TRUST,4595415,"513,809.64", -   ,2010003640
Department of Health,NHS England,31/08/2014,General Dental services and personal dental services,Primary Care & Secondary Dental,QUEENSWAY DENTAL PRACTICE,4595532,"35,002.52", -   ,144
Department of Health,NHS England,31/08/2014,General Dental services and personal dental services,Primary Care & Secondary Dental,QUEENSWAY DENTAL PRACTICE,4595533,"53,971.66", -   ,143
Department of Health,NHS England,31/08/2014,General Dental services and personal dental services,Primary Care & Secondary Dental,ROYAL BOURNEMOUTH AND CHRISTCHURCH HOSPITALS NHS FOUNDATION TRUST,4776732,"312,792.00", -   ,M0I47600
Department of Health,NHS England,31/08/2014,General Dental services and personal dental services,Primary Care & Secondary Dental,ROYAL FREE LONDON NHS FOUNDATION TRUST,4629144,"27,193.00",654946987,BCF328
Department of Health,NHS England,31/08/2014,General Dental services and personal dental services,Primary Care & Secondary Dental,ROYAL FREE LONDON NHS FOUNDATION TRUST,4629421,"113,012.00",654946987,I0068631
Department of Health,NHS England,31/08/2014,General Dental services and personal dental services,Primary Care & Secondary Dental,ROYAL LIVERPOOL AND BROADGREEN UNIVERSITY HOSPITALS NHS TRUST,4803287,"87,596.00",654966000,8610020364
Department of Health,NHS England,31/08/2014,General Dental services and personal dental services,Primary Care & Secondary Dental,ROYAL SURREY COUNTY HOSPITAL NHS FOUNDATION TRUST,4612207,"268,005.00", -   ,13763783
Department of Health,NHS England,31/08/2014,General Dental services and personal dental services,Primary Care & Secondary Dental,ROYAL SURREY COUNTY HOSPITAL NHS FOUNDATION TRUST,4612305,"259,406.00", -   ,13764263
Department of Health,NHS England,31/08/2014,General Dental services and personal dental services,Primary Care & Secondary Dental,ROYAL UNITED HOSPITAL BATH NHS TRUST,4555258,"227,505.54", -   ,10321800
Department of Health,NHS England,31/08/2014,General Dental services and personal dental services,Primary Care & Secondary Dental,ROYAL WOLVERHAMPTON HOSPITALS NHS TRUST (THE),4571488,"267,349.00", -   ,172700
Department of Health,NHS England,31/08/2014,General Dental services and personal dental services,Primary Care & Secondary Dental,ROYAL WOLVERHAMPTON HOSPITALS NHS TRUST (THE),4595376,"56,813.00", -   ,171024
Department of Health,NHS England,31/08/2014,General Dental services and personal dental services,Primary Care & Secondary Dental,ROYAL WOLVERHAMPTON HOSPITALS NHS TRUST (THE),4595413,"56,813.00", -   ,172701
Department of Health,NHS England,31/08/2014,General Dental services and personal dental services,Primary Care & Secondary Dental,SALFORD ROYAL NHS FOUNDATION TRUST,4737049,"103,780.00", -   ,1000153767
Department of Health,NHS England,31/08/2014,General Dental services and personal dental services,Primary Care & Secondary Dental,SALISBURY NHS FOUNDATION TRUST,4525059,"171,913.00", -   ,8008858
Department of Health,NHS England,31/08/2014,General Dental services and personal dental services,Primary Care & Secondary Dental,SALISBURY NHS FOUNDATION TRUST,4629145,"84,346.00", -   ,8008856
Department of Health,NHS England,31/08/2014,General Dental services and personal dental services,Primary Care & Secondary Dental,SALISBURY NHS FOUNDATION TRUST,4818287,"57,795.00", -   ,B008844
Department of Health,NHS England,31/08/2014,General Dental services and personal dental services,Primary Care & Secondary Dental,SALISBURY NHS FOUNDATION TRUST,4818469,"-83,940.00", -   ,Z029861
Department of Health,NHS England,31/08/2014,General Dental services and personal dental services,Primary Care & Secondary Dental,SANDWELL AND WEST BIRMINGHAM HOSPITALS NHS TRUST,4540090,"169,247.00", -   ,75177
Department of Health,NHS England,31/08/2014,General Dental services and personal dental services,Primary Care & Secondary Dental,SHEFFIELD TEACHING HOSPITALS NHS FOUNDATION TRUST,4539694,"106,388.00",654400165,4000397333
Department of Health,NHS England,31/08/2014,General Dental services and personal dental services,Primary Care & Secondary Dental,SHERWOOD FOREST HOSPITALS NHS FOUNDATION TRUST,4802670,"134,752.33", -   ,131396
Department of Health,NHS England,31/08/2014,General Dental services and personal dental services,Primary Care & Secondary Dental,SHREWSBURY&TELFORD HOSPITAL NHS TRUST,4613746,"270,665.83", -   ,10091151
Department of Health,NHS England,31/08/2014,General Dental services and personal dental services,Primary Care & Secondary Dental,SOUTH ESSEX PARTNERSHIP NHS FOUNDATION TRUST,4571083,"40,186.67",654974100,I0040690
Department of Health,NHS England,31/08/2014,General Dental services and personal dental services,Primary Care & Secondary Dental,SOUTH ESSEX PARTNERSHIP NHS FOUNDATION TRUST,4571084,"35,284.29",654974100,I0040687
Department of Health,NHS England,31/08/2014,General Dental services and personal dental services,Primary Care & Secondary Dental,SOUTH TEES HOSPITALS NHS FOUNDATION TRUST,4788942,"29,456.95", -   ,3510013499
Department of Health,NHS England,31/08/2014,General Dental services and personal dental services,Primary Care & Secondary Dental,SOUTH TEES HOSPITALS NHS FOUNDATION TRUST,4789070,"392,606.72", -   ,3510013502
Department of Health,NHS England,31/08/2014,General Dental services and personal dental services,Primary Care & Secondary Dental,SOUTHAMPTON UNIVERSITY HOSPITALS NHS FOUNDATION TRUST,4487793,"298,917.00", -   ,7245736
Department of Health,NHS England,31/08/2014,General Dental services and personal dental services,Primary Care & Secondary Dental,SOUTHAMPTON UNIVERSITY HOSPITALS NHS FOUNDATION TRUST,4818405,"298,917.00", -   ,7247244
Department of Health,NHS England,31/08/2014,General Dental services and personal dental services,Primary Care & Secondary Dental,SOUTHEND UNIVERSITY HOSPITAL NHS FOUNDATION TRUST,4788234,"263,935.96", -   ,410301
Department of Health,NHS England,31/08/2014,General Dental services and personal dental services,Primary Care & Secondary Dental,SOUTHERN HEALTH NHS FOUNDATION TRUST,4612847,"27,717.00", -   ,43612558
Department of Health,NHS England,31/08/2014,General Dental services and personal dental services,Primary Care & Secondary Dental,SOUTHPORT AND ORMSKIRK HOSPITAL NHS TRUST,4504321,"54,738.00", -   ,7504177
Department of Health,NHS England,31/08/2014,General Dental services and personal dental services,Primary Care & Secondary Dental,SURREY AND SUSSEX HEALTHCARE NHS TRUST,4650963,"75,833.33", -   ,11940336
Department of Health,NHS England,31/08/2014,General Dental services and personal dental services,Primary Care & Secondary Dental,UNIVERSITY COLLEGE LONDON HOSPITALS NHS FOUNDATION TRUST,4539632,"68,267.00",654948687,5010024571
Department of Health,NHS England,31/08/2014,General Dental services and personal dental services,Primary Care & Secondary Dental,UNIVERSITY COLLEGE LONDON HOSPITALS NHS FOUNDATION TRUST,4594837,"192,661.25",654948687,5010024572
Department of Health,NHS England,31/08/2014,General Dental services and personal dental services,Primary Care & Secondary Dental,UNIVERSITY HOSPITAL BIRMINGHAM NHS FOUNDATION TRUST,4540079,"296,795.00", -   ,OPQ019553
Department of Health,NHS England,31/08/2014,General Dental services and personal dental services,Primary Care & Secondary Dental,UNIVERSITY HOSPITAL OF NORTH STAFFORDSHIRE NHS TRUST,4788917,"487,620.50", -   ,458360
Department of Health,NHS England,31/08/2014,General Dental services and personal dental services,Primary Care & Secondary Dental,UNIVERSITY HOSPITAL OF SOUTH MANCHESTER NHS FOUNDATION TRUST,4525695,"30,721.60",654941709,315298
Department of Health,NHS England,31/08/2014,General Dental services and personal dental services,Primary Care & Secondary Dental,UNIVERSITY HOSPITAL OF SOUTH MANCHESTER NHS FOUNDATION TRUST,4789046,"30,721.60",654941709,316168
Department of Health,NHS England,31/08/2014,General Dental services and personal dental services,Primary Care & Secondary Dental,UNIVERSITY HOSPITALS BRISTOL NHS FOUNDATION TRUST,4524954,"127,615.89", -   ,R0000958
Department of Health,NHS England,31/08/2014,General Dental services and personal dental services,Primary Care & Secondary Dental,UNIVERSITY HOSPITALS BRISTOL NHS FOUNDATION TRUST,4539139,"1,985,324.00", -   ,2.00177E+23
Department of Health,NHS England,31/08/2014,General Dental services and personal dental services,Primary Care & Secondary Dental,UNIVERSITY HOSPITALS BRISTOL NHS FOUNDATION TRUST,4802595,"110,263.64", -   ,R0000974
Department of Health,NHS England,31/08/2014,General Dental services and personal dental services,Primary Care & Secondary Dental,UNIVERSITY HOSPITALS OF MORECAMBE BAY NHS FOUNDATION TRUST,4469143,"109,543.00", -   ,236066
Department of Health,NHS England,31/08/2014,General Dental services and personal dental services,Primary Care & Secondary Dental,UNIVERSITY HOSPITALS OF MORECAMBE BAY NHS FOUNDATION TRUST,4706116,"109,543.00", -   ,236462
Department of Health,NHS England,31/08/2014,General Dental services and personal dental services,Primary Care & Secondary Dental,WARRINGTON & HALTON HOSPITALS NHS FOUNDATION TRUST,4540054,"58,285.36", -   ,15348403
Department of Health,NHS England,31/08/2014,General Dental services and personal dental services,Primary Care & Secondary Dental,WEST HERTFORDSHIRE HOSPITALS NHS TRUST,4629030,"161,853.33", -   ,222113
Department of Health,NHS England,31/08/2014,General Dental services and personal dental services,Primary Care & Secondary Dental,WIRRAL UNIVERSITY TEACHING HOSPITAL NHS FOUNDATION TRUST,4630322,"231,250.00", -   ,8510010486
Department of Health,NHS England,31/08/2014,General Dental services and personal dental services,Primary Care & Secondary Dental,WRIGHTINGTON WIGAN & LEIGH NHS FOUNDATION TRUST,4613679,"27,788.00", -   ,2110010957
Department of Health,NHS England,31/08/2014,General Dental services and personal dental services,Primary Care & Secondary Dental,YORK TEACHING HOSPITAL NHS FOUNDATION TRUST,4788883,"589,108.11", -   ,1010018644
Department of Health,NHS England,31/08/2014,General Dental services and personal dental services,Primary Care & Secondary Dental,SHROPSHIRE COMMUNITY HEALTH NHS TRUST,4555909,"30,811.34", -   ,50008133
Department of Health,NHS England,31/08/2014,General Dental services and personal dental services,Primary Care & Secondary Dental,SHROPSHIRE COMMUNITY HEALTH NHS TRUST,4571480,"102,605.59", -   ,50008137
Department of Health,NHS England,31/08/2014,General Dental services and personal dental services,Primary Care & Secondary Dental,SHROPSHIRE COMMUNITY HEALTH NHS TRUST,4595410,"39,118.00", -   ,50008136
Department of Health,NHS England,31/08/2014,General Dental services and personal dental services,Primary Care & Secondary Dental,EAST COAST COMMUNITY HEALTHCARE CIC,4573901,"267,063.23", -   ,1400003161
Department of Health,NHS England,31/08/2014,General Dental services and personal dental services,Primary Care & Secondary Dental,GLOUCESTERSHIRE CARE SERVICES NHS TRUST,4777111,"1,251,927.28", -   ,50504450
Department of Health,NHS England,31/08/2014,General Dental services and personal dental services,Primary Care & Secondary Dental,GLOUCESTERSHIRE CARE SERVICES NHS TRUST,4777113,"250,385.45", -   ,50504451
Department of Health,NHS England,31/08/2014,General Dental services and personal dental services,Primary Care & Secondary Dental,NHS WILTSHIRE CCG,4488112,"344,341.00", -   ,7030900177
Department of Health,NHS England,31/08/2014,General Dental services and personal dental services,Primary Care & Secondary Dental,MASTERCALL HEALTHCARE,4488117,"30,152.17", -   ,2413
Department of Health,NHS England,31/08/2014,General Dental services and personal dental services,Primary Care & Secondary Dental,"NHS NORTH, EAST, WEST DEVON CCG",4756821,"44,833.33",654443336,7031000571
Department of Health,NHS England,31/08/2014,General Dental services and personal dental services,Primary Care & Secondary Dental,"NHS NORTH, EAST, WEST DEVON CCG",4756822,"44,833.33",654443336,7031000572
Department of Health,NHS England,31/08/2014,General Dental services and personal dental services,Primary Care & Secondary Dental,TETBURY HOSPITAL TRUST LTD,4525080,"27,106.00", -   ,3336
Department of Health,NHS England,31/08/2014,General Dental services and personal dental services,Primary Care & Secondary Dental,CARE UK (URGENT CARE) LTD,4612198,"27,444.00",594959072,120034379
Department of Health,NHS England,31/08/2014,General Dental services and personal dental services,Primary Care & Secondary Dental,YORKSHIRE AMBULANCE SERVICE NHS TRUST,4668869,"63,441.00", -   ,2810005573
Department of Health,NHS England,31/08/2014,General Dental services and personal dental services,Primary Care & Secondary Dental,COMMUNITY DENTAL SERVICES CIC,4669108,"45,903.39", -   ,114
Department of Health,NHS England,31/08/2014,General Dental services and personal dental services,Primary Care & Secondary Dental,COMMUNITY DENTAL SERVICES CIC,4671872,"45,903.39", -   ,112
Department of Health,NHS England,31/08/2014,General Opthalmic services,Primary Care & Secondary Dental,BOLTON VISIONPLUS LTD,4634688,"85,638.53", -   ,4328656_S
Department of Health,NHS England,31/08/2014,General Opthalmic services,Primary Care & Secondary Dental,SPECSAVERS OPTICIANS,4469629,"27,267.96",771629900,4296548_S
Department of Health,NHS England,31/08/2014,General Opthalmic services,Primary Care & Secondary Dental,SPECSAVERS OPTICIANS,4469633,"28,243.61",771629900,4296547_S
Department of Health,NHS England,31/08/2014,General Opthalmic services,Primary Care & Secondary Dental,SPECSAVERS OPTICIANS,4469694,"28,962.70",771629900,4296522_S
Department of Health,NHS England,31/08/2014,General Opthalmic services,Primary Care & Secondary Dental,SPECSAVERS OPTICIANS,4469734,"26,114.31",771629900,4296464_S
Department of Health,NHS England,31/08/2014,General Opthalmic services,Primary Care & Secondary Dental,SPECSAVERS OPTICIANS,4493638,"28,661.80",771629900,4307126_S
Department of Health,NHS England,31/08/2014,General Opthalmic services,Primary Care & Secondary Dental,SPECSAVERS OPTICIANS,4493694,"29,959.23",771629900,4307099_S
Department of Health,NHS England,31/08/2014,General Opthalmic services,Primary Care & Secondary Dental,SPECSAVERS OPTICIANS,4512659,"28,337.30",771629900,4306382_S
Department of Health,NHS England,31/08/2014,General Opthalmic services,Primary Care & Secondary Dental,SPECSAVERS OPTICIANS,4526758,"51,665.63",771629900,4306851_S
Department of Health,NHS England,31/08/2014,General Opthalmic services,Primary Care & Secondary Dental,SPECSAVERS OPTICIANS,4527889,"27,430.00",771629900,4296851_S
Department of Health,NHS England,31/08/2014,General Opthalmic services,Primary Care & Secondary Dental,SPECSAVERS OPTICIANS,4541638,"53,679.51",771629900,4314467_S
Department of Health,NHS England,31/08/2014,General Opthalmic services,Primary Care & Secondary Dental,SPECSAVERS OPTICIANS,4541715,"63,215.78",771629900,4314487_S
Department of Health,NHS England,31/08/2014,General Opthalmic services,Primary Care & Secondary Dental,SPECSAVERS OPTICIANS,4541859,"91,704.45",771629900,4298398_S
Department of Health,NHS England,31/08/2014,General Opthalmic services,Primary Care & Secondary Dental,SPECSAVERS OPTICIANS,4541874,"70,799.08",771629900,4298402_S
Department of Health,NHS England,31/08/2014,General Opthalmic services,Primary Care & Secondary Dental,SPECSAVERS OPTICIANS,4542116,"26,332.80",771629900,4302166_S
Department of Health,NHS England,31/08/2014,General Opthalmic services,Primary Care & Secondary Dental,SPECSAVERS OPTICIANS,4542118,"26,070.87",771629900,4302193_S
Department of Health,NHS England,31/08/2014,General Opthalmic services,Primary Care & Secondary Dental,SPECSAVERS OPTICIANS,4542628,"71,503.35",771629900,4316626_S
Department of Health,NHS England,31/08/2014,General Opthalmic services,Primary Care & Secondary Dental,SPECSAVERS OPTICIANS,4542807,"84,620.32",771629900,4300476_S
Department of Health,NHS England,31/08/2014,General Opthalmic services,Primary Care & Secondary Dental,SPECSAVERS OPTICIANS,4543001,"27,191.03",771629900,4303618_S
Department of Health,NHS England,31/08/2014,General Opthalmic services,Primary Care & Secondary Dental,SPECSAVERS OPTICIANS,4543673,"60,170.03",771629900,4307608_S
Department of Health,NHS England,31/08/2014,General Opthalmic services,Primary Care & Secondary Dental,SPECSAVERS OPTICIANS,4543872,"68,450.24",771629900,4290833_S
Department of Health,NHS England,31/08/2014,General Opthalmic services,Primary Care & Secondary Dental,SPECSAVERS OPTICIANS,4560740,"28,864.80",771629900,4290730_S
Department of Health,NHS England,31/08/2014,General Opthalmic services,Primary Care & Secondary Dental,SPECSAVERS OPTICIANS,4561038,"25,130.10",771629900,4290753_S
Department of Health,NHS England,31/08/2014,General Opthalmic services,Primary Care & Secondary Dental,SPECSAVERS OPTICIANS,4561479,"26,097.80",771629900,4311583_S
Department of Health,NHS England,31/08/2014,General Opthalmic services,Primary Care & Secondary Dental,SPECSAVERS OPTICIANS,4561593,"33,145.90",771629900,4321957_S
Department of Health,NHS England,31/08/2014,General Opthalmic services,Primary Care & Secondary Dental,SPECSAVERS OPTICIANS,4561790,"65,367.96",771629900,4322105_S
Department of Health,NHS England,31/08/2014,General Opthalmic services,Primary Care & Secondary Dental,SPECSAVERS OPTICIANS,4561909,"27,066.20",771629900,4321954_S
Department of Health,NHS England,31/08/2014,General Opthalmic services,Primary Care & Secondary Dental,SPECSAVERS OPTICIANS,4571975,"27,045.70",771629900,4322107_S
Department of Health,NHS England,31/08/2014,General Opthalmic services,Primary Care & Secondary Dental,SPECSAVERS OPTICIANS,4575890,"25,994.20",771629900,4308595_S
Department of Health,NHS England,31/08/2014,General Opthalmic services,Primary Care & Secondary Dental,SPECSAVERS OPTICIANS,4576984,"78,512.80",771629900,4314875_S
Department of Health,NHS England,31/08/2014,General Opthalmic services,Primary Care & Secondary Dental,SPECSAVERS OPTICIANS,4577539,"34,397.88",771629900,4313935_S
Department of Health,NHS England,31/08/2014,General Opthalmic services,Primary Care & Secondary Dental,SPECSAVERS OPTICIANS,4579828,"54,323.62",771629900,4324864_S
Department of Health,NHS England,31/08/2014,General Opthalmic services,Primary Care & Secondary Dental,SPECSAVERS OPTICIANS,4579978,"30,268.50",771629900,4324841_S
Department of Health,NHS England,31/08/2014,General Opthalmic services,Primary Care & Secondary Dental,SPECSAVERS OPTICIANS,4581657,"25,087.90",771629900,4325230_S
Department of Health,NHS England,31/08/2014,General Opthalmic services,Primary Care & Secondary Dental,SPECSAVERS OPTICIANS,4581823,"75,366.88",771629900,4325202_S
Department of Health,NHS England,31/08/2014,General Opthalmic services,Primary Care & Secondary Dental,SPECSAVERS OPTICIANS,4582121,"52,126.30",771629900,4289860_S
Department of Health,NHS England,31/08/2014,General Opthalmic services,Primary Care & Secondary Dental,SPECSAVERS OPTICIANS,4598720,"31,758.80",771629900,4289880_S
Department of Health,NHS England,31/08/2014,General Opthalmic services,Primary Care & Secondary Dental,SPECSAVERS OPTICIANS,4598989,"25,812.48",771629900,4325736_S
Department of Health,NHS England,31/08/2014,General Opthalmic services,Primary Care & Secondary Dental,SPECSAVERS OPTICIANS,4599003,"26,320.75",771629900,4325711_S
Department of Health,NHS England,31/08/2014,General Opthalmic services,Primary Care & Secondary Dental,SPECSAVERS OPTICIANS,4599069,"28,400.40",771629900,4325901_S
Department of Health,NHS England,31/08/2014,General Opthalmic services,Primary Care & Secondary Dental,SPECSAVERS OPTICIANS,4599077,"29,139.10",771629900,4325882_S
Department of Health,NHS England,31/08/2014,General Opthalmic services,Primary Care & Secondary Dental,SPECSAVERS OPTICIANS,4599372,"25,045.70",771629900,4325766_S
Department of Health,NHS England,31/08/2014,General Opthalmic services,Primary Care & Secondary Dental,SPECSAVERS OPTICIANS,4599410,"39,531.11",771629900,4324445_S
Department of Health,NHS England,31/08/2014,General Opthalmic services,Primary Care & Secondary Dental,SPECSAVERS OPTICIANS,4600714,"111,455.67",771629900,4324380_S
Department of Health,NHS England,31/08/2014,General Opthalmic services,Primary Care & Secondary Dental,SPECSAVERS OPTICIANS,4601063,"54,247.29",771629900,4301073_S
Department of Health,NHS England,31/08/2014,General Opthalmic services,Primary Care & Secondary Dental,SPECSAVERS OPTICIANS,4601132,"65,376.95",771629900,4326484_S
Department of Health,NHS England,31/08/2014,General Opthalmic services,Primary Care & Secondary Dental,SPECSAVERS OPTICIANS,4614002,"26,172.22",771629900,4301063_S
Department of Health,NHS England,31/08/2014,General Opthalmic services,Primary Care & Secondary Dental,SPECSAVERS OPTICIANS,4615650,"58,214.19",771629900,4320529_S
Department of Health,NHS England,31/08/2014,General Opthalmic services,Primary Care & Secondary Dental,SPECSAVERS OPTICIANS,4616305,"29,753.05",771629900,4327790_S
Department of Health,NHS England,31/08/2014,General Opthalmic services,Primary Care & Secondary Dental,SPECSAVERS OPTICIANS,4616435,"25,551.30",771629900,4327836_S
Department of Health,NHS England,31/08/2014,General Opthalmic services,Primary Care & Secondary Dental,SPECSAVERS OPTICIANS,4616516,"61,156.15",771629900,4327661_S
Department of Health,NHS England,31/08/2014,General Opthalmic services,Primary Care & Secondary Dental,SPECSAVERS OPTICIANS,4617022,"51,679.09",771629900,4328446_S
Department of Health,NHS England,31/08/2014,General Opthalmic services,Primary Care & Secondary Dental,SPECSAVERS OPTICIANS,4630697,"35,618.10",771629900,4327822_S
Department of Health,NHS England,31/08/2014,General Opthalmic services,Primary Care & Secondary Dental,SPECSAVERS OPTICIANS,4632615,"61,374.02",771629900,4315088_S
Department of Health,NHS England,31/08/2014,General Opthalmic services,Primary Care & Secondary Dental,SPECSAVERS OPTICIANS,4632645,"68,365.27",771629900,4315041_S
Department of Health,NHS England,31/08/2014,General Opthalmic services,Primary Care & Secondary Dental,SPECSAVERS OPTICIANS,4632688,"70,308.50",771629900,4315049_S
Department of Health,NHS England,31/08/2014,General Opthalmic services,Primary Care & Secondary Dental,SPECSAVERS OPTICIANS,4634629,"26,782.80",771629900,4328617_S
Department of Health,NHS England,31/08/2014,General Opthalmic services,Primary Care & Secondary Dental,SPECSAVERS OPTICIANS,4634657,"61,727.60",771629900,4328655_S
Department of Health,NHS England,31/08/2014,General Opthalmic services,Primary Care & Secondary Dental,SPECSAVERS OPTICIANS,4634779,"25,256.70",771629900,4302633_S
Department of Health,NHS England,31/08/2014,General Opthalmic services,Primary Care & Secondary Dental,SPECSAVERS OPTICIANS,4634846,"27,712.85",771629900,4302620_S
Department of Health,NHS England,31/08/2014,General Opthalmic services,Primary Care & Secondary Dental,SPECSAVERS OPTICIANS,4634856,"70,785.89",771629900,4302645_S
Department of Health,NHS England,31/08/2014,General Opthalmic services,Primary Care & Secondary Dental,SPECSAVERS OPTICIANS,4675569,"84,474.21",771629900,4329496_S
Department of Health,NHS England,31/08/2014,General Opthalmic services,Primary Care & Secondary Dental,SPECSAVERS OPTICIANS,4675638,"74,247.48",771629900,4329498_S
Department of Health,NHS England,31/08/2014,General Opthalmic services,Primary Care & Secondary Dental,SPECSAVERS OPTICIANS,4675957,"63,159.38",771629900,4328568_S
Department of Health,NHS England,31/08/2014,General Opthalmic services,Primary Care & Secondary Dental,SPECSAVERS OPTICIANS,4679917,"25,003.50",771629900,4331758_S
Department of Health,NHS England,31/08/2014,General Opthalmic services,Primary Care & Secondary Dental,SPECSAVERS OPTICIANS,4680080,"81,348.07",771629900,4331738_S
Department of Health,NHS England,31/08/2014,General Opthalmic services,Primary Care & Secondary Dental,SPECSAVERS OPTICIANS,4695222,"26,618.15",771629900,4330672_S
Department of Health,NHS England,31/08/2014,General Opthalmic services,Primary Care & Secondary Dental,SPECSAVERS OPTICIANS,4695280,"25,273.04",771629900,4330722_S
Department of Health,NHS England,31/08/2014,General Opthalmic services,Primary Care & Secondary Dental,SPECSAVERS OPTICIANS,4695453,"28,484.31",771629900,4330700_S
Department of Health,NHS England,31/08/2014,General Opthalmic services,Primary Care & Secondary Dental,SPECSAVERS OPTICIANS,4723129,"79,954.09",771629900,4331172_S
Department of Health,NHS England,31/08/2014,General Opthalmic services,Primary Care & Secondary Dental,SPECSAVERS OPTICIANS,4741786,"53,637.87",771629900,4333222_S
Department of Health,NHS England,31/08/2014,General Opthalmic services,Primary Care & Secondary Dental,SPECSAVERS OPTICIANS,4741806,"58,209.78",771629900,4333179_S
Department of Health,NHS England,31/08/2014,General Opthalmic services,Primary Care & Secondary Dental,SPECSAVERS OPTICIANS,4741925,"118,405.42",771629900,4329654_S
Department of Health,NHS England,31/08/2014,General Opthalmic services,Primary Care & Secondary Dental,SPECSAVERS OPTICIANS,4742733,"55,758.94",771629900,4333947_S
Department of Health,NHS England,31/08/2014,General Opthalmic services,Primary Care & Secondary Dental,SPECSAVERS OPTICIANS,4742753,"27,999.70",771629900,4333900_S
Department of Health,NHS England,31/08/2014,General Opthalmic services,Primary Care & Secondary Dental,SPECSAVERS OPTICIANS,4746715,"30,067.50",771629900,4334375_S
Department of Health,NHS England,31/08/2014,General Opthalmic services,Primary Care & Secondary Dental,SPECSAVERS OPTICIANS,4748616,"78,478.91",771629900,4334507_S
Department of Health,NHS England,31/08/2014,General Opthalmic services,Primary Care & Secondary Dental,SPECSAVERS OPTICIANS,4748776,"50,913.41",771629900,4334572_S
Department of Health,NHS England,31/08/2014,General Opthalmic services,Public Health,VIRGIN CARE SERVICES LTD,4788157,"29,179.00", -   ,47176572
Department of Health,NHS England,31/08/2014,GPMS/APMS and PCTMS,Primary Care & Secondary Dental,A F FROLEY,4701016,"30,726.48", -   ,LNP000009467
Department of Health,NHS England,31/08/2014,GPMS/APMS and PCTMS,Primary Care & Secondary Dental,A HAFEEZ,4596312,"31,856.32", -   ,LNP000009289
Department of Health,NHS England,31/08/2014,GPMS/APMS and PCTMS,Primary Care & Secondary Dental,A MOGHAL,4595888,"46,318.33", -   ,LNC000005712
Department of Health,NHS England,31/08/2014,GPMS/APMS and PCTMS,Primary Care & Secondary Dental,ABBEY DALE MEDICAL CENTRE,4745263,"28,103.67", -   ,LA000012574
Department of Health,NHS England,31/08/2014,GPMS/APMS and PCTMS,Primary Care & Secondary Dental,ABBEY HOUSE MEDICAL PRACTICE,4577224,"127,351.58", -   ,NO000006842
Department of Health,NHS England,31/08/2014,GPMS/APMS and PCTMS,Primary Care & Secondary Dental,ABBEY LANE SURGERY,4576299,"-25,166.09", -   ,SHE000005178
Department of Health,NHS England,31/08/2014,GPMS/APMS and PCTMS,Primary Care & Secondary Dental,ABBEY LANE SURGERY,4576300,"48,317.93", -   ,SHE000005179
Department of Health,NHS England,31/08/2014,GPMS/APMS and PCTMS,Primary Care & Secondary Dental,ABBEY MEAD SURGERY,4700984,"138,605.98", -   ,SO000018673
Department of Health,NHS England,31/08/2014,GPMS/APMS and PCTMS,Primary Care & Secondary Dental,ABBEY MEDICAL CENTER KENILWORTH,4738534,"74,318.63", -   ,WA000006320
Department of Health,NHS England,31/08/2014,GPMS/APMS and PCTMS,Primary Care & Secondary Dental,ABBEY MEDICAL CENTER LONDON,4758349,"62,866.06", -   ,LND000006099
Department of Health,NHS England,31/08/2014,GPMS/APMS and PCTMS,Primary Care & Secondary Dental,ABBEY MEDICAL PRACTICE EVESHAM,4725849,"42,963.04", -   ,WR000007679
Department of Health,NHS England,31/08/2014,GPMS/APMS and PCTMS,Primary Care & Secondary Dental,ABBEY MEDICAL PRACTICE WELLINGBOROUGH,4577228,"106,423.50", -   ,NO000006844
Department of Health,NHS England,31/08/2014,GPMS/APMS and PCTMS,Primary Care & Secondary Dental,ABBEY PRACTICE GROUP,4691295,"37,660.16", -   ,DUD000002477
Department of Health,NHS England,31/08/2014,GPMS/APMS and PCTMS,Primary Care & Secondary Dental,ABBEY ROAD HEALTH CENTRE,4691044,"45,931.13", -   ,LNA000008406
Department of Health,NHS England,31/08/2014,GPMS/APMS and PCTMS,Primary Care & Secondary Dental,ABBEY SURGERY TAVISTOCK,4694627,"87,219.56", -   ,DN000014526
Department of Health,NHS England,31/08/2014,GPMS/APMS and PCTMS,Primary Care & Secondary Dental,ABBEY VIEW MEDICAL CENTRE,4596065,"-25,447.27", -   ,DO000008390
Department of Health,NHS England,31/08/2014,GPMS/APMS and PCTMS,Primary Care & Secondary Dental,ABBEY VIEW MEDICAL CENTRE,4596066,"121,480.16", -   ,DO000008391
Department of Health,NHS England,31/08/2014,GPMS/APMS and PCTMS,Primary Care & Secondary Dental,ABBEY WOOD SURGERY,4580527,"61,924.32", -   ,LNW000004159
Department of Health,NHS England,31/08/2014,GPMS/APMS and PCTMS,Primary Care & Secondary Dental,ABBOTSBURY ROAD SURGERY,4694199,"54,688.34", -   ,DO000008608
Department of Health,NHS England,31/08/2014,GPMS/APMS and PCTMS,Primary Care & Secondary Dental,ABBOTT & PATEL,4726222,"38,031.06", -   ,DR000006496
Department of Health,NHS England,31/08/2014,GPMS/APMS and PCTMS,Primary Care & Secondary Dental,ABBOTTSWOOD MEDICAL CENTRE,4738568,"64,036.94", -   ,WR000007681
Department of Health,NHS England,31/08/2014,GPMS/APMS and PCTMS,Primary Care & Secondary Dental,ABBOTTSWOOD MEDICAL CENTRE,4763728,"26,187.94", -   ,WR000007893
Department of Health,NHS England,31/08/2014,GPMS/APMS and PCTMS,Primary Care & Secondary Dental,ABDI SHS,4676460,"28,852.88", -   ,LIP000007849
Department of Health,NHS England,31/08/2014,GPMS/APMS and PCTMS,Primary Care & Secondary Dental,ABERFELDY STREET PRACTICE,4691045,"36,458.77", -   ,LNA000008408
Department of Health,NHS England,31/08/2014,GPMS/APMS and PCTMS,Primary Care & Secondary Dental,ABERNETHY HOUSE,4596620,"99,356.49", -   ,LNE000006645
Department of Health,NHS England,31/08/2014,GPMS/APMS and PCTMS,Primary Care & Secondary Dental,ABINGDON HEALTH CENTRE,4582236,"72,708.72", -   ,LNJ000005283
Department of Health,NHS England,31/08/2014,GPMS/APMS and PCTMS,Primary Care & Secondary Dental,ABINGDON SURGERY,4743520,"67,356.02", -   ,OX000007088
Department of Health,NHS England,31/08/2014,GPMS/APMS and PCTMS,Primary Care & Secondary Dental,ABINGTON MEDICAL CENTRE,4577233,"99,898.67", -   ,NO000006846
Department of Health,NHS England,31/08/2014,GPMS/APMS and PCTMS,Primary Care & Secondary Dental,ABINGTON PARK SURGERY,4577237,"108,574.52", -   ,NO000006848
Department of Health,NHS England,31/08/2014,GPMS/APMS and PCTMS,Primary Care & Secondary Dental,ABRAHAM K K & PARTNER,4742312,"33,415.95", -   ,EX000021074
Department of Health,NHS England,31/08/2014,GPMS/APMS and PCTMS,Primary Care & Secondary Dental,ACCRINGTON VIC HAC,4745267,"165,000.00", -   ,LA000012578
Department of Health,NHS England,31/08/2014,GPMS/APMS and PCTMS,Primary Care & Secondary Dental,ACORN GROUP PRACTICE,4696073,"45,408.95", -   ,LNN000005433
Department of Health,NHS England,31/08/2014,GPMS/APMS and PCTMS,Primary Care & Secondary Dental,ACORN MEDICAL CENTRE,4600954,"32,428.74", -   ,LNK000002499
Department of Health,NHS England,31/08/2014,GPMS/APMS and PCTMS,Primary Care & Secondary Dental,ACORNS SURGERY,4580239,"133,145.81", -   ,LNS000011328
Department of Health,NHS England,31/08/2014,GPMS/APMS and PCTMS,Primary Care & Secondary Dental,ACORNS SURGERY,4596450,"-28,850.00", -   ,LNS000011327
Department of Health,NHS England,31/08/2014,GPMS/APMS and PCTMS,Primary Care & Secondary Dental,ACORNS SURGERY,4658635,"29,979.56", -   ,CH000008633
Department of Health,NHS England,31/08/2014,GPMS/APMS and PCTMS,Primary Care & Secondary Dental,ACRE SURGERY NORTHWOOD HEALTH CENTRE,4543827,"-31,344.20", -   ,LNK000002420
Department of Health,NHS England,31/08/2014,GPMS/APMS and PCTMS,Primary Care & Secondary Dental,ACRE SURGERY NORTHWOOD HEALTH CENTRE,4556619,"62,892.32", -   ,LNK000002421
Department of Health,NHS England,31/08/2014,GPMS/APMS and PCTMS,Primary Care & Secondary Dental,ACRESWOOD SURGERY,4745269,"48,022.77", -   ,LA000012580
Department of Health,NHS England,31/08/2014,GPMS/APMS and PCTMS,Primary Care & Secondary Dental,ADAM HOUSE MEDICAL CENTRE,4576497,"39,200.42", -   ,DE000011202
Department of Health,NHS England,31/08/2014,GPMS/APMS and PCTMS,Primary Care & Secondary Dental,ADAM PRACTICE,4596069,"-52,799.36", -   ,DO000008394
Department of Health,NHS England,31/08/2014,GPMS/APMS and PCTMS,Primary Care & Secondary Dental,ADAM PRACTICE,4596070,"251,257.37", -   ,DO000008395
Department of Health,NHS England,31/08/2014,GPMS/APMS and PCTMS,Primary Care & Secondary Dental,ADAMS P & PARTNERS,4696342,"32,172.23", -   ,SY000009482
Department of Health,NHS England,31/08/2014,GPMS/APMS and PCTMS,Primary Care & Secondary Dental,ADDINGTON ROAD SURGERY,4652064,"67,729.62", -   ,LNT000004022
Department of Health,NHS England,31/08/2014,GPMS/APMS and PCTMS,Primary Care & Secondary Dental,ADELAIDE GP SURGERY,4541957,"-50,000.00", -   ,SO000018544
Department of Health,NHS England,31/08/2014,GPMS/APMS and PCTMS,Primary Care & Secondary Dental,ADELAIDE GP SURGERY,4541958,"102,123.00", -   ,SO000018545
Department of Health,NHS England,31/08/2014,GPMS/APMS and PCTMS,Primary Care & Secondary Dental,ADELAIDE MEDICAL CENTRE,4693937,"52,158.54", -   ,SO000018681
Department of Health,NHS England,31/08/2014,GPMS/APMS and PCTMS,Primary Care & Secondary Dental,ADELAIDE MEDICAL CENTRE BLAYDON,4743272,"71,653.23", -   ,GAT000004035
Department of Health,NHS England,31/08/2014,GPMS/APMS and PCTMS,Primary Care & Secondary Dental,ADELAIDE MEDICAL CENTRE LONDON,4758350,"66,947.89", -   ,LND000006101
Department of Health,NHS England,31/08/2014,GPMS/APMS and PCTMS,Primary Care & Secondary Dental,ADELAIDE STREET SURGERY,4745273,"83,605.75", -   ,LA000012586
Department of Health,NHS England,31/08/2014,GPMS/APMS and PCTMS,Primary Care & Secondary Dental,ADSHALL ROAD MEDICAL PRACTICE,4725306,"27,523.17", -   ,SPT000002953
Department of Health,NHS England,31/08/2014,GPMS/APMS and PCTMS,Primary Care & Secondary Dental,ADSWOOD ROAD SURGERY,4561308,"25,293.04", -   ,SPT000002873
Department of Health,NHS England,31/08/2014,GPMS/APMS and PCTMS,Primary Care & Secondary Dental,ADUR & PARTNERS,4595889,"34,810.63", -   ,LNC000005714
Department of Health,NHS England,31/08/2014,GPMS/APMS and PCTMS,Primary Care & Secondary Dental,ADUR MEDICAL GROUP,4691422,"43,606.77", -   ,TW000011648
Department of Health,NHS England,31/08/2014,GPMS/APMS and PCTMS,Primary Care & Secondary Dental,AELFGAR SURGERY,4582319,"37,763.17", -   ,ST000015567
Department of Health,NHS England,31/08/2014,GPMS/APMS and PCTMS,Primary Care & Secondary Dental,AGARWAL & PARTNERS,4504549,"38,441.71", -   ,LIP000007580
Department of Health,NHS England,31/08/2014,GPMS/APMS and PCTMS,Primary Care & Secondary Dental,AGARWAL & PARTNERS,4676471,"-38,441.71", -   ,LIP000007860
Department of Health,NHS England,31/08/2014,GPMS/APMS and PCTMS,Primary Care & Secondary Dental,AGARWAL & PARTNERS,4691210,"61,409.52", -   ,LIP000007861
Department of Health,NHS England,31/08/2014,GPMS/APMS and PCTMS,Primary Care & Secondary Dental,AGHA B & PARTNERS,4742322,"37,688.67", -   ,EX000021084
Department of Health,NHS England,31/08/2014,GPMS/APMS and PCTMS,Primary Care & Secondary Dental,AGRAWAL,4675275,"40,141.49", -   ,WOM000003402
Department of Health,NHS England,31/08/2014,GPMS/APMS and PCTMS,Primary Care & Secondary Dental,AGRAWAL & PARTNER,4679702,"32,115.15", -   ,WBH000003046
Department of Health,NHS England,31/08/2014,GPMS/APMS and PCTMS,Primary Care & Secondary Dental,AHMAD & MONTEIRO,4691310,"33,525.23", -   ,LNC000005808
Department of Health,NHS England,31/08/2014,GPMS/APMS and PCTMS,Primary Care & Secondary Dental,AHMAD M & PARTNERS,4581982,"41,035.80", -   ,SY000009359
Department of Health,NHS England,31/08/2014,GPMS/APMS and PCTMS,Primary Care & Secondary Dental,AHMED & BUTT,4615614,"-41,439.38", -   ,YW000007263
Department of Health,NHS England,31/08/2014,GPMS/APMS and PCTMS,Primary Care & Secondary Dental,AHMED & BUTT,4615617,"78,987.32", -   ,YW000007264
Department of Health,NHS England,31/08/2014,GPMS/APMS and PCTMS,Primary Care & Secondary Dental,AHMED & PARTNERS,4679704,"33,927.73", -   ,WBH000003048
Department of Health,NHS England,31/08/2014,GPMS/APMS and PCTMS,Primary Care & Secondary Dental,AHMED I & PTS,4674706,"49,241.87", -   ,DE000011376
Department of Health,NHS England,31/08/2014,GPMS/APMS and PCTMS,Primary Care & Secondary Dental,AINSWORTH D & PARTNERS,4742326,"33,537.26", -   ,EX000021088
Department of Health,NHS England,31/08/2014,GPMS/APMS and PCTMS,Primary Care & Secondary Dental,AIR BALLOON SURGERY,4579200,"84,038.69", -   ,BRS000010151
Department of Health,NHS England,31/08/2014,GPMS/APMS and PCTMS,Primary Care & Secondary Dental,AIREBOROUGH FAMILY PRACTICE,4559913,"-29,930.23", -   ,LDS000008949
Department of Health,NHS England,31/08/2014,GPMS/APMS and PCTMS,Primary Care & Secondary Dental,AIREBOROUGH FAMILY PRACTICE,4559914,"54,943.43", -   ,LDS000008950
Department of Health,NHS England,31/08/2014,GPMS/APMS and PCTMS,Primary Care & Secondary Dental,AKERMAN MEDICAL PRACTICE,4580242,"38,067.83", -   ,LNS000011332
Department of Health,NHS England,31/08/2014,GPMS/APMS and PCTMS,Primary Care & Secondary Dental,ALBANY HOUSE MEDICAL CENTRE,4577241,"96,147.50", -   ,NO000006850
Department of Health,NHS England,31/08/2014,GPMS/APMS and PCTMS,Primary Care & Secondary Dental,ALBERT HOUSE CLINIC,4634958,"28,872.22", -   ,MID000005742
Department of Health,NHS England,31/08/2014,GPMS/APMS and PCTMS,Primary Care & Secondary Dental,ALBERT STREET SURGERY,4596051,"41,132.24", -   ,WA000006294
Department of Health,NHS England,31/08/2014,GPMS/APMS and PCTMS,Primary Care & Secondary Dental,ALBION HEALTH CENTRE,4691047,"49,938.76", -   ,LNA000008416
Department of Health,NHS England,31/08/2014,GPMS/APMS and PCTMS,Primary Care & Secondary Dental,ALBION MEDICAL PRACTICE,4561118,"67,205.07", -   ,GMK000004337
Department of Health,NHS England,31/08/2014,GPMS/APMS and PCTMS,Primary Care & Secondary Dental,ALBION MOUNT MEDICAL PRACTICE,4615619,"-47,632.55", -   ,YW000007265
Department of Health,NHS England,31/08/2014,GPMS/APMS and PCTMS,Primary Care & Secondary Dental,ALBION MOUNT MEDICAL PRACTICE,4615622,"89,247.63", -   ,YW000007266
Department of Health,NHS England,31/08/2014,GPMS/APMS and PCTMS,Primary Care & Secondary Dental,ALBION STREET HEALTH CENTRE,4596452,"97,577.02", -   ,LNS000011334
Department of Health,NHS England,31/08/2014,GPMS/APMS and PCTMS,Primary Care & Secondary Dental,ALBION SURGERY,4580533,"96,818.57", -   ,LNW000004165
Department of Health,NHS England,31/08/2014,GPMS/APMS and PCTMS,Primary Care & Secondary Dental,ALBRIGHTON MEDICAL PRACTICE,4678876,"59,704.79", -   ,SA000006589
Department of Health,NHS England,31/08/2014,GPMS/APMS and PCTMS,Primary Care & Secondary Dental,ALCESTER HEALTH CENTRE,4725840,"35,013.11", -   ,WA000006438
Department of Health,NHS England,31/08/2014,GPMS/APMS and PCTMS,Primary Care & Secondary Dental,ALDERMOOR SURGERY,4693917,"45,209.39", -   ,SO000018659
Department of Health,NHS England,31/08/2014,GPMS/APMS and PCTMS,Primary Care & Secondary Dental,ALDERSBROOK MEDICAL CENTRE,4596231,"29,168.08", -   ,LNB000005111
Department of Health,NHS England,31/08/2014,GPMS/APMS and PCTMS,Primary Care & Secondary Dental,ALEXANDER & PARTNER,4676122,"-59,650.42", -   ,STL000006603
Department of Health,NHS England,31/08/2014,GPMS/APMS and PCTMS,Primary Care & Secondary Dental,ALEXANDER & PARTNER,4691177,"73,728.82", -   ,STL000006604
Department of Health,NHS England,31/08/2014,GPMS/APMS and PCTMS,Primary Care & Secondary Dental,ALEXANDER GS,4745925,"37,160.30", -   ,MAN000004802
Department of Health,NHS England,31/08/2014,GPMS/APMS and PCTMS,Primary Care & Secondary Dental,ALEXANDER HOUSE SURGERY,4541951,"-48,724.83", -   ,SO000018538
Department of Health,NHS England,31/08/2014,GPMS/APMS and PCTMS,Primary Care & Secondary Dental,ALEXANDER HOUSE SURGERY,4541952,"109,396.04", -   ,SO000018539
Department of Health,NHS England,31/08/2014,GPMS/APMS and PCTMS,Primary Care & Secondary Dental,ALEXANDRA PRACTICE,4745927,"37,101.31", -   ,MAN000004804
Department of Health,NHS England,31/08/2014,GPMS/APMS and PCTMS,Primary Care & Secondary Dental,ALI A & PARTNER,4675921,"-42,820.13", -   ,BIK000003864
Department of Health,NHS England,31/08/2014,GPMS/APMS and PCTMS,Primary Care & Secondary Dental,ALI A & PARTNER,4675925,"52,618.17", -   ,BIK000003865
Department of Health,NHS England,31/08/2014,GPMS/APMS and PCTMS,Primary Care & Secondary Dental,ALL SAINTS MEDICAL CENTRE,4580522,"38,790.68", -   ,LNW000004153
Department of Health,NHS England,31/08/2014,GPMS/APMS and PCTMS,Primary Care & Secondary Dental,ALL SAINTS MEDICAL PRACTICE,4595886,"57,631.47", -   ,LNA000008341
Department of Health,NHS England,31/08/2014,GPMS/APMS and PCTMS,Primary Care & Secondary Dental,ALLEN & PARTNERS,4504533,"35,211.18", -   ,LIP000007564
Department of Health,NHS England,31/08/2014,GPMS/APMS and PCTMS,Primary Care & Secondary Dental,ALLEN & PARTNERS,4676456,"-87,631.37", -   ,LIP000007844
Department of Health,NHS England,31/08/2014,GPMS/APMS and PCTMS,Primary Care & Secondary Dental,ALLEN & PARTNERS,4676457,"108,237.18", -   ,LIP000007845
Department of Health,NHS England,31/08/2014,GPMS/APMS and PCTMS,Primary Care & Secondary Dental,ALLERTON ROAD MEDICAL CENTRE,4595885,"41,185.89", -   ,LNA000008339
Department of Health,NHS England,31/08/2014,GPMS/APMS and PCTMS,Primary Care & Secondary Dental,ALLUM MEDICAL CENTRE,4596232,"107,921.78", -   ,LNB000005113
Department of Health,NHS England,31/08/2014,GPMS/APMS and PCTMS,Primary Care & Secondary Dental,ALMA MEDICAL CENTRE,4634948,"-81,516.58", -   ,MID000005731
Department of Health,NHS England,31/08/2014,GPMS/APMS and PCTMS,Primary Care & Secondary Dental,ALMA MEDICAL CENTRE,4634949,"148,200.34", -   ,MID000005732
Department of Health,NHS England,31/08/2014,GPMS/APMS and PCTMS,Primary Care & Secondary Dental,ALMA PARTNERSHIP,4596062,"58,128.49", -   ,DO000008387
Department of Health,NHS England,31/08/2014,GPMS/APMS and PCTMS,Primary Care & Secondary Dental,ALMA ROAD SURGERY,4693921,"71,065.27", -   ,SO000018663
Department of Health,NHS England,31/08/2014,GPMS/APMS and PCTMS,Primary Care & Secondary Dental,ALMAN R & PARTNERS,4504800,"27,164.33", -   ,BIK000003753
Department of Health,NHS England,31/08/2014,GPMS/APMS and PCTMS,Primary Care & Secondary Dental,ALMAN R & PARTNERS,4675929,"-73,184.43", -   ,BIK000003866
Department of Health,NHS England,31/08/2014,GPMS/APMS and PCTMS,Primary Care & Secondary Dental,ALMAN R & PARTNERS,4675933,"90,768.55", -   ,BIK000003867
Department of Health,NHS England,31/08/2014,GPMS/APMS and PCTMS,Primary Care & Secondary Dental,ALMONDSBURY SURGERY,4579192,"30,503.23", -   ,BRS000010143
Department of Health,NHS England,31/08/2014,GPMS/APMS and PCTMS,Primary Care & Secondary Dental,ALRESFORD SURGERY,4693923,"56,141.29", -   ,SO000018665
Department of Health,NHS England,31/08/2014,GPMS/APMS and PCTMS,Primary Care & Secondary Dental,ALTON STREET SURGERY,4725847,"59,488.57", -   ,WR000007677
Department of Health,NHS England,31/08/2014,GPMS/APMS and PCTMS,Primary Care & Secondary Dental,ALTY & PARTNERS,4676459,"30,928.94", -   ,LIP000007847
Department of Health,NHS England,31/08/2014,GPMS/APMS and PCTMS,Primary Care & Secondary Dental,ALVANLEY FAMILY PRACTICE,4561301,"25,235.49", -   ,SPT000002869
Department of Health,NHS England,31/08/2014,GPMS/APMS and PCTMS,Primary Care & Secondary Dental,ALYMER LODGE COOKLEY PARTNERSHIP,4596006,"96,697.53", -   ,WR000007586
Department of Health,NHS England,31/08/2014,GPMS/APMS and PCTMS,Primary Care & Secondary Dental,AMERSHAM HEALTH CENTRE,4676327,"67,025.43", -   ,BU000006226
Department of Health,NHS England,31/08/2014,GPMS/APMS and PCTMS,Primary Care & Secondary Dental,AMERSHAM VALE TRAINING PRACTICE,4596447,"59,420.86", -   ,LNS000011322
Department of Health,NHS England,31/08/2014,GPMS/APMS and PCTMS,Primary Care & Secondary Dental,AMHERST MEDICAL,4636662,"73,454.80", -   ,KC000021581
Department of Health,NHS England,31/08/2014,GPMS/APMS and PCTMS,Primary Care & Secondary Dental,AMPTHILL PRACTICE,4746487,"60,000.61", -   ,LND000006093
Department of Health,NHS England,31/08/2014,GPMS/APMS and PCTMS,Primary Care & Secondary Dental,AMWELL PRACTICE,4758347,"55,231.38", -   ,LND000006095
Department of Health,NHS England,31/08/2014,GPMS/APMS and PCTMS,Primary Care & Secondary Dental,AMWELL STREET SURGERY,4724250,"61,969.63", -   ,HT000010930
Department of Health,NHS England,31/08/2014,GPMS/APMS and PCTMS,Primary Care & Secondary Dental,ANDOVER HEALTH CENTRE MEDICAL PRACTICE,4693928,"80,592.11", -   ,SO000018671
Department of Health,NHS England,31/08/2014,GPMS/APMS and PCTMS,Primary Care & Secondary Dental,ANDOVER MEDICAL CENTRE,4758348,"35,579.55", -   ,LND000006097
Department of Health,NHS England,31/08/2014,GPMS/APMS and PCTMS,Primary Care & Secondary Dental,ANDREOU & PARTNERS,4679700,"106,857.78", -   ,WBH000003044
Department of Health,NHS England,31/08/2014,GPMS/APMS and PCTMS,Primary Care & Secondary Dental,ANGEL SURGERY,4596619,"29,251.86", -   ,LNE000006643
Department of Health,NHS England,31/08/2014,GPMS/APMS and PCTMS,Primary Care & Secondary Dental,ANGLIAN COMMUNITY ENTERPRISE CIC,4736834,"250,000.00",587172605,AC7000007474
Department of Health,NHS England,31/08/2014,GPMS/APMS and PCTMS,Primary Care & Secondary Dental,ANNANDALE MEDICAL CENTRE,4492379,"25,100.00", -   ,CH000008386
Department of Health,NHS England,31/08/2014,GPMS/APMS and PCTMS,Primary Care & Secondary Dental,ANNANDALE MEDICAL CENTRE,4658632,"-25,109.00", -   ,CH000008630
Department of Health,NHS England,31/08/2014,GPMS/APMS and PCTMS,Primary Care & Secondary Dental,ANNANDALE MEDICAL CENTRE,4658633,"36,505.37", -   ,CH000008631
Department of Health,NHS England,31/08/2014,GPMS/APMS and PCTMS,Primary Care & Secondary Dental,ANNANDALE SURGERY,4724252,"43,956.63", -   ,HT000010932
Department of Health,NHS England,31/08/2014,GPMS/APMS and PCTMS,Primary Care & Secondary Dental,ANSDELL MEDICAL CENTRE,4745265,"87,674.59", -   ,LA000012576
Department of Health,NHS England,31/08/2014,GPMS/APMS and PCTMS,Primary Care & Secondary Dental,APEX MEDICAL PRACTICE,4636666,"35,133.02", -   ,KC000021585
Department of Health,NHS England,31/08/2014,GPMS/APMS and PCTMS,Primary Care & Secondary Dental,APMS HARDEN,4691387,"33,040.00", -   ,WAL000003678
Department of Health,NHS England,31/08/2014,GPMS/APMS and PCTMS,Primary Care & Secondary Dental,APPLEBY HEALTH CENTRE,4677700,"30,988.11", -   ,CU000006104
Department of Health,NHS England,31/08/2014,GPMS/APMS and PCTMS,Primary Care & Secondary Dental,APPLES MEDICAL CENTRE,4596068,"35,701.43", -   ,DO000008393
Department of Health,NHS England,31/08/2014,GPMS/APMS and PCTMS,Primary Care & Secondary Dental,APSLEY SURGERY,4582317,"60,118.06", -   ,ST000015565
Department of Health,NHS England,31/08/2014,GPMS/APMS and PCTMS,Primary Care & Secondary Dental,ARBURY MEDICAL PRACTICE,4725757,"58,896.87", -   ,WA000006322
Department of Health,NHS England,31/08/2014,GPMS/APMS and PCTMS,Primary Care & Secondary Dental,ARCHWAY PRIMARY CARE TEAM,4596610,"52,638.90", -   ,LND000005922
Department of Health,NHS England,31/08/2014,GPMS/APMS and PCTMS,Primary Care & Secondary Dental,ARCHWOOD MEDICAL PRACTICE,4561305,"37,030.16", -   ,SPT000002871
Department of Health,NHS England,31/08/2014,GPMS/APMS and PCTMS,Primary Care & Secondary Dental,ARGYLE SURGERY,4709731,"42,678.17", -   ,LNM000008377
Department of Health,NHS England,31/08/2014,GPMS/APMS and PCTMS,Primary Care & Secondary Dental,ARGYLL HOUSE SURGERY,4693933,"25,936.15", -   ,SO000018677
Department of Health,NHS England,31/08/2014,GPMS/APMS and PCTMS,Primary Care & Secondary Dental,ARLESEY MEDICAL CENTRE - SUNNY HILL CIC,4578889,"28,333.33", -   ,BD000006851
Department of Health,NHS England,31/08/2014,GPMS/APMS and PCTMS,Primary Care & Secondary Dental,ARMADA FAMILY PRACTICE,4579198,"88,717.41", -   ,BRS000010149
Department of Health,NHS England,31/08/2014,GPMS/APMS and PCTMS,Primary Care & Secondary Dental,ARNEWOOD PRACTICE,4693935,"82,206.13", -   ,SO000018679
Department of Health,NHS England,31/08/2014,GPMS/APMS and PCTMS,Primary Care & Secondary Dental,ARNOLD MEDICAL CENTRE,4758230,"34,999.17", -   ,LA000012582
Department of Health,NHS England,31/08/2014,GPMS/APMS and PCTMS,Primary Care & Secondary Dental,ARORA SC,4561539,"56,543.08", -   ,MAN000004683
Department of Health,NHS England,31/08/2014,GPMS/APMS and PCTMS,Primary Care & Secondary Dental,ARRIVAL PRACTICE,4634955,"45,928.04", -   ,MID000005738
Department of Health,NHS England,31/08/2014,GPMS/APMS and PCTMS,Primary Care & Secondary Dental,ARROW LODGE MEDICAL CENTRE,4738535,"32,420.90", -   ,WA000006324
Department of Health,NHS England,31/08/2014,GPMS/APMS and PCTMS,Primary Care & Secondary Dental,ARUN MEDICAL CENTRE,4582167,"57,465.82", -   ,TW000011273
Department of Health,NHS England,31/08/2014,GPMS/APMS and PCTMS,Primary Care & Secondary Dental,ARUNDEL SURGERY,4679029,"42,009.02", -   ,TW000011646
Department of Health,NHS England,31/08/2014,GPMS/APMS and PCTMS,Primary Care & Secondary Dental,AS GILL & P CHEEMA,4691388,"25,625.27", -   ,WAL000003680
Department of Health,NHS England,31/08/2014,GPMS/APMS and PCTMS,Primary Care & Secondary Dental,AS JAWAD,4691309,"29,939.25", -   ,LNC000005806
Department of Health,NHS England,31/08/2014,GPMS/APMS and PCTMS,Primary Care & Secondary Dental,ASH TREE HOUSE SURGERY,4745281,"65,967.52", -   ,LA000012594
Department of Health,NHS England,31/08/2014,GPMS/APMS and PCTMS,Primary Care & Secondary Dental,ASHBY TURN PRIMARY CARE PARTNERS,4740187,"73,150.16", -   ,KHU000008099
Department of Health,NHS England,31/08/2014,GPMS/APMS and PCTMS,Primary Care & Secondary Dental,ASHCROFT ROAD MEDICAL PRACTICE,4578891,"26,381.67", -   ,BD000006853
Department of Health,NHS England,31/08/2014,GPMS/APMS and PCTMS,Primary Care & Secondary Dental,ASHDOWN FOREST HEALTH CENTRE,4677084,"55,498.71", -   ,TE000009760
Department of Health,NHS England,31/08/2014,GPMS/APMS and PCTMS,Primary Care & Secondary Dental,ASHFIELD MEDICAL CENTRE MILTON KEYNES,4578657,"105,748.64", -   ,BU000006180
Department of Health,NHS England,31/08/2014,GPMS/APMS and PCTMS,Primary Care & Secondary Dental,ASHFIELDS PRIMARY CARE CENTRE,4492381,"94,800.00", -   ,CH000008388
Department of Health,NHS England,31/08/2014,GPMS/APMS and PCTMS,Primary Care & Secondary Dental,ASHFIELDS PRIMARY CARE CENTRE,4658636,"-94,845.00", -   ,CH000008634
Department of Health,NHS England,31/08/2014,GPMS/APMS and PCTMS,Primary Care & Secondary Dental,ASHFIELDS PRIMARY CARE CENTRE,4658637,"136,167.80", -   ,CH000008635
Department of Health,NHS England,31/08/2014,GPMS/APMS and PCTMS,Primary Care & Secondary Dental,ASHFORD & ST PETERS HOSPITALS NHSFT,4690168,"31,718.75", -   ,14468904
Department of Health,NHS England,31/08/2014,GPMS/APMS and PCTMS,Primary Care & Secondary Dental,ASHFORD A L & PARTNERS,4742330,"112,859.03", -   ,EX000021092
Department of Health,NHS England,31/08/2014,GPMS/APMS and PCTMS,Primary Care & Secondary Dental,ASHTON GP SERVICE,4571921,"147,924.26", -   ,GMK000004335
Department of Health,NHS England,31/08/2014,GPMS/APMS and PCTMS,Primary Care & Secondary Dental,ASHURST PRIMARY CARE,4745249,"27,776.29", -   ,LA000012558
Department of Health,NHS England,31/08/2014,GPMS/APMS and PCTMS,Primary Care & Secondary Dental,ASHWELL SURGERY,4724244,"46,991.21", -   ,HT000010924
Department of Health,NHS England,31/08/2014,GPMS/APMS and PCTMS,Primary Care & Secondary Dental,ASHWOOD SURGERY,4575621,"39,639.72", -   ,KHU000007822
Department of Health,NHS England,31/08/2014,GPMS/APMS and PCTMS,Primary Care & Secondary Dental,ASHWORTH HM,4745923,"29,275.88", -   ,MAN000004800
Department of Health,NHS England,31/08/2014,GPMS/APMS and PCTMS,Primary Care & Secondary Dental,ASHWORTH STREET SURGERY,4725073,"68,044.06", -   ,ROC000004089
Department of Health,NHS England,31/08/2014,GPMS/APMS and PCTMS,Primary Care & Secondary Dental,ASKARI & PARTNER,4676454,"-37,123.13", -   ,LIP000007842
Department of Health,NHS England,31/08/2014,GPMS/APMS and PCTMS,Primary Care & Secondary Dental,ASKARI & PARTNER,4676455,"46,731.08", -   ,LIP000007843
Department of Health,NHS England,31/08/2014,GPMS/APMS and PCTMS,Primary Care & Secondary Dental,ASKEY & PARTNERS,4678644,"60,292.44", -   ,WAL000003674
Department of Health,NHS England,31/08/2014,GPMS/APMS and PCTMS,Primary Care & Secondary Dental,ASPATRIA MEDICAL GROUP,4677694,"47,443.34", -   ,CU000006098
Department of Health,NHS England,31/08/2014,GPMS/APMS and PCTMS,Primary Care & Secondary Dental,ASPLANDS MEDICAL CENTRE,4578887,"76,544.75", -   ,BD000006849
Department of Health,NHS England,31/08/2014,GPMS/APMS and PCTMS,Primary Care & Secondary Dental,ASPLEY MEDICAL CENTRE,4577060,"49,807.05", -   ,NN000012076
Department of Health,NHS England,31/08/2014,GPMS/APMS and PCTMS,Primary Care & Secondary Dental,ASPULL SURGERY,4561335,"33,590.75", -   ,WIG000007555
Department of Health,NHS England,31/08/2014,GPMS/APMS and PCTMS,Primary Care & Secondary Dental,ASQUITH SURGERY,4492031,"26,755.00", -   ,LD000010443
Department of Health,NHS England,31/08/2014,GPMS/APMS and PCTMS,Primary Care & Secondary Dental,ASTLEY & LEVICK,4579035,"-44,467.08", -   ,DR000006230
Department of Health,NHS England,31/08/2014,GPMS/APMS and PCTMS,Primary Care & Secondary Dental,ASTLEY & LEVICK,4579036,"86,873.90", -   ,DR000006231
Department of Health,NHS England,31/08/2014,GPMS/APMS and PCTMS,Primary Care & Secondary Dental,ASTON HEALTHCARE LTD,4504724,"149,728.78", -   ,STL000006370
Department of Health,NHS England,31/08/2014,GPMS/APMS and PCTMS,Primary Care & Secondary Dental,ASTON HEALTHCARE LTD,4676125,"-371,390.95", -   ,STL000006607
Department of Health,NHS England,31/08/2014,GPMS/APMS and PCTMS,Primary Care & Secondary Dental,ASTON HEALTHCARE LTD,4676126,"487,271.84", -   ,STL000006608
Department of Health,NHS England,31/08/2014,GPMS/APMS and PCTMS,Primary Care & Secondary Dental,ASTON HEALTHCARE LTD,4725845,"30,252.02", -   ,BFS40
Department of Health,NHS England,31/08/2014,GPMS/APMS and PCTMS,Primary Care & Secondary Dental,AT ACE AT APMS PRACTICE,4578746,"225,295.25", -   ,EX000020738
Department of Health,NHS England,31/08/2014,GPMS/APMS and PCTMS,Primary Care & Secondary Dental,AT MEDICS LTD BARLBY ROAD,4582234,"79,505.94", -   ,LNJ000005281
Department of Health,NHS England,31/08/2014,GPMS/APMS and PCTMS,Primary Care & Secondary Dental,AT MEDICS LTD MERRIAM AVENUE,4575907,"39,199.40", -   ,LNA000008225
Department of Health,NHS England,31/08/2014,GPMS/APMS and PCTMS,Primary Care & Secondary Dental,ATHENA MEDICAL CENTRE,4675109,"30,270.19", -   ,LNA000008404
Department of Health,NHS England,31/08/2014,GPMS/APMS and PCTMS,Primary Care & Secondary Dental,ATHERLEY HOUSE SURGERY,4700983,"25,449.90", -   ,SO000018669
Department of Health,NHS England,31/08/2014,GPMS/APMS and PCTMS,Primary Care & Secondary Dental,ATRIUM HEALTH CENTRE,4596064,"52,556.04", -   ,DO000008389
Department of Health,NHS England,31/08/2014,GPMS/APMS and PCTMS,Primary Care & Secondary Dental,ATTENBOROUGH SURGERY,4724248,"79,512.40", -   ,HT000010928
Department of Health,NHS England,31/08/2014,GPMS/APMS and PCTMS,Primary Care & Secondary Dental,AUCKLAND MEDICAL GROUP,4726218,"90,708.80", -   ,DR000006492
Department of Health,NHS England,31/08/2014,GPMS/APMS and PCTMS,Primary Care & Secondary Dental,AUCKLAND SURGERY,4579717,"47,796.35", -   ,LNR000005526
Department of Health,NHS England,31/08/2014,GPMS/APMS and PCTMS,Primary Care & Secondary Dental,AUDLEM MEDICAL PRACTICE,4658631,"32,852.96", -   ,CH000008629
Department of Health,NHS England,31/08/2014,GPMS/APMS and PCTMS,Primary Care & Secondary Dental,AUGHTON SURGERY,4745260,"33,603.79", -   ,LA000012570
Department of Health,NHS England,31/08/2014,GPMS/APMS and PCTMS,Primary Care & Secondary Dental,AVENUE HOUSE SURGERY,4576571,"78,187.92", -   ,DE000011278
Department of Health,NHS England,31/08/2014,GPMS/APMS and PCTMS,Primary Care & Secondary Dental,AVENUE MEDICAL CENTRE DENESIDE SEAHAM,4726220,"33,112.04", -   ,DR000006494
Department of Health,NHS England,31/08/2014,GPMS/APMS and PCTMS,Primary Care & Secondary Dental,AVENUE MEDICAL CENTRE SHEFFIELD,4576298,"-55,226.79", -   ,SHE000005176
Department of Health,NHS England,31/08/2014,GPMS/APMS and PCTMS,Primary Care & Secondary Dental,AVENUE MEDICAL CENTRE SHEFFIELD,4595962,"102,202.74", -   ,SHE000005177
Department of Health,NHS England,31/08/2014,GPMS/APMS and PCTMS,Primary Care & Secondary Dental,AVENUE MEDICAL CENTRE SLOUGH,4578682,"46,350.74", -   ,BE000008059
Department of Health,NHS England,31/08/2014,GPMS/APMS and PCTMS,Primary Care & Secondary Dental,AVENUES MEDICAL CENTRE,4758023,"34,475.61", -   ,KHU000008098
Department of Health,NHS England,31/08/2014,GPMS/APMS and PCTMS,Primary Care & Secondary Dental,AVICENNA HEALTH CENTRE,4580237,"28,534.55", -   ,LNS000011324
Department of Health,NHS England,31/08/2014,GPMS/APMS and PCTMS,Primary Care & Secondary Dental,AVISFORD MEDICAL GROUP,4582165,"77,566.43", -   ,TW000011271
Department of Health,NHS England,31/08/2014,GPMS/APMS and PCTMS,Primary Care & Secondary Dental,AVONSIDE HEALTH CENTRE,4725754,"48,712.47", -   ,WA000006318
Department of Health,NHS England,31/08/2014,GPMS/APMS and PCTMS,Primary Care & Secondary Dental,AW SURGERIES,4676946,"119,812.75", -   ,DUD000002390
Department of Health,NHS England,31/08/2014,GPMS/APMS and PCTMS,Primary Care & Secondary Dental,AWBURN HOUSE MEDICAL PRACTICE,4725078,"46,736.89", -   ,GMK000004466
Department of Health,NHS England,31/08/2014,GPMS/APMS and PCTMS,Primary Care & Secondary Dental,AYLESBURY MEDICAL CENTRE,4580238,"171,116.06", -   ,LNS000011326
Department of Health,NHS England,31/08/2014,GPMS/APMS and PCTMS,Primary Care & Secondary Dental,AYLESFORD MEDICAL CENTRE,4636664,"38,125.54", -   ,KC000021583
Department of Health,NHS England,31/08/2014,GPMS/APMS and PCTMS,Primary Care & Secondary Dental,AYLESHAM MEDICAL PRACTICE,4637061,"41,799.08", -   ,KC000022021
Department of Health,NHS England,31/08/2014,GPMS/APMS and PCTMS,Primary Care & Secondary Dental,B HUDSON,4596314,"66,403.81", -   ,LNP000009293
Department of Health,NHS England,31/08/2014,GPMS/APMS and PCTMS,Primary Care & Secondary Dental,BA PATTOO,4745931,"27,629.24", -   ,MAN000004808
Department of Health,NHS England,31/08/2014,GPMS/APMS and PCTMS,Primary Care & Secondary Dental,BACKWELL&NAILSEA MEDICAL GROUP,4579196,"82,854.18", -   ,BRS000010147
Department of Health,NHS England,31/08/2014,GPMS/APMS and PCTMS,Primary Care & Secondary Dental,BACON ROAD MEDICAL CENTRE,4726911,"26,796.78", -   ,NF000010698
Department of Health,NHS England,31/08/2014,GPMS/APMS and PCTMS,Primary Care & Secondary Dental,BADGERSWOOD SURGERY,4693931,"108,763.05", -   ,SO000018675
Department of Health,NHS England,31/08/2014,GPMS/APMS and PCTMS,Primary Care & Secondary Dental,BAFFINS SURGERY,4540003,"34,350.00", -   ,191860-06-AUG-2014
Department of Health,NHS England,31/08/2014,GPMS/APMS and PCTMS,Primary Care & Secondary Dental,BAFFINS SURGERY,4541955,"-50,672.17", -   ,SO000018542
Department of Health,NHS England,31/08/2014,GPMS/APMS and PCTMS,Primary Care & Secondary Dental,BAFFINS SURGERY,4541956,"107,974.78", -   ,SO000018543
Department of Health,NHS England,31/08/2014,GPMS/APMS and PCTMS,Primary Care & Secondary Dental,BAGARY & BAGARY,4675273,"28,535.64", -   ,WOM000003400
Department of Health,NHS England,31/08/2014,GPMS/APMS and PCTMS,Primary Care & Secondary Dental,BAILEY M C & PARTNERS,4758088,"45,339.96", -   ,EX000021072
Department of Health,NHS England,31/08/2014,GPMS/APMS and PCTMS,Primary Care & Secondary Dental,BAINBRIDGE & PARTNERS,4676464,"29,781.08", -   ,LIP000007853
Department of Health,NHS England,31/08/2014,GPMS/APMS and PCTMS,Primary Care & Secondary Dental,BAIRD & PARTNERS,4504543,"37,330.90", -   ,LIP000007574
Department of Health,NHS England,31/08/2014,GPMS/APMS and PCTMS,Primary Care & Secondary Dental,BAIRD & PARTNERS,4676465,"-37,330.90", -   ,LIP000007854
Department of Health,NHS England,31/08/2014,GPMS/APMS and PCTMS,Primary Care & Secondary Dental,BAIRD & PARTNERS,4676466,"61,230.75", -   ,LIP000007855
Department of Health,NHS England,31/08/2014,GPMS/APMS and PCTMS,Primary Care & Secondary Dental,BAJEN J M & PARTNER,4578989,"56,009.51", -   ,EX000020828
Department of Health,NHS England,31/08/2014,GPMS/APMS and PCTMS,Primary Care & Secondary Dental,BAKERSFIELD MEDICAL CENTRE,4577062,"34,027.52", -   ,NN000012078
Department of Health,NHS England,31/08/2014,GPMS/APMS and PCTMS,Primary Care & Secondary Dental,BAKEWELL MEDICAL CENTRE,4674830,"41,981.02", -   ,DE000011520
Department of Health,NHS England,31/08/2014,GPMS/APMS and PCTMS,Primary Care & Secondary Dental,BAKHAT A,4758256,"57,427.18", -   ,MAN000004810
Department of Health,NHS England,31/08/2014,GPMS/APMS and PCTMS,Primary Care & Secondary Dental,BALAAM STREET PRACTICE,4595823,"53,179.83", -   ,LNA000008227
Department of Health,NHS England,31/08/2014,GPMS/APMS and PCTMS,Primary Care & Secondary Dental,BALBOROUGH MEDICAL PRACTICE,4576561,"35,410.00", -   ,DE000011268
Department of Health,NHS England,31/08/2014,GPMS/APMS and PCTMS,Primary Care & Secondary Dental,BALFOUR ROAD SURGERY,4691238,"26,024.80", -   ,LNB000005194
Department of Health,NHS England,31/08/2014,GPMS/APMS and PCTMS,Primary Care & Secondary Dental,BALHAM PARK SURGERY,4596315,"109,972.17", -   ,LNP000009295
Department of Health,NHS England,31/08/2014,GPMS/APMS and PCTMS,Primary Care & Secondary Dental,BALIGA KS,4579038,"30,448.04", -   ,DR000006233
Department of Health,NHS England,31/08/2014,GPMS/APMS and PCTMS,Primary Care & Secondary Dental,BALL TREE SURGERY,4679027,"49,072.70", -   ,TW000011644
Department of Health,NHS England,31/08/2014,GPMS/APMS and PCTMS,Primary Care & Secondary Dental,BALLATER,4652063,"55,105.75", -   ,LNT000004020
Department of Health,NHS England,31/08/2014,GPMS/APMS and PCTMS,Primary Care & Secondary Dental,BALMORAL GARDENS,4652020,"29,131.35", -   ,KC000021587
Department of Health,NHS England,31/08/2014,GPMS/APMS and PCTMS,Primary Care & Secondary Dental,BALMORAL SURGERY,4637041,"78,566.64", -   ,KC000022000
Department of Health,NHS England,31/08/2014,GPMS/APMS and PCTMS,Primary Care & Secondary Dental,BALMORE PARK SURGERY,4578686,"107,277.10", -   ,BE000008063
Department of Health,NHS England,31/08/2014,GPMS/APMS and PCTMS,Primary Care & Secondary Dental,BAMPTON MEDICAL PRACTICE,4743524,"49,608.53", -   ,OX000007090
Department of Health,NHS England,31/08/2014,GPMS/APMS and PCTMS,Primary Care & Secondary Dental,BANBURY ROAD MEDICAL CENTRE,4743528,"38,496.63", -   ,OX000007092
Department of Health,NHS England,31/08/2014,GPMS/APMS and PCTMS,Primary Care & Secondary Dental,BANGOR STREET HEALTH CENTRE,4758231,"34,672.25", -   ,LA000012584
Department of Health,NHS England,31/08/2014,GPMS/APMS and PCTMS,Primary Care & Secondary Dental,BANK HOUSE SURGERY HARTLEPOOL,4652001,"61,162.76", -   ,MID000005740
Department of Health,NHS England,31/08/2014,GPMS/APMS and PCTMS,Primary Care & Secondary Dental,BANKS SURGERY,4741032,"27,108.22", -   ,LD000010644
Department of Health,NHS England,31/08/2014,GPMS/APMS and PCTMS,Primary Care & Secondary Dental,BANNOCKBURN SURGERY,4580529,"38,482.99", -   ,LNW000004161
Department of Health,NHS England,31/08/2014,GPMS/APMS and PCTMS,Primary Care & Secondary Dental,BANSAL & READE,4676128,"29,431.64", -   ,STL000006610
Department of Health,NHS England,31/08/2014,GPMS/APMS and PCTMS,Primary Care & Secondary Dental,BANSAL A & PARTNER,4742318,"30,825.98", -   ,EX000021080
Department of Health,NHS England,31/08/2014,GPMS/APMS and PCTMS,Primary Care & Secondary Dental,BARING ROAD MEDICAL CENTRE,4596451,"46,672.81", -   ,LNS000011330
Department of Health,NHS England,31/08/2014,GPMS/APMS and PCTMS,Primary Care & Secondary Dental,BARKANTINE PRACTICE,4595824,"190,669.94", -   ,LNA000008229
Department of Health,NHS England,31/08/2014,GPMS/APMS and PCTMS,Primary Care & Secondary Dental,BARKANTINE PRACTICE,4802445,"66,424.00", -   ,WIC046
Department of Health,NHS England,31/08/2014,GPMS/APMS and PCTMS,Primary Care & Secondary Dental,BARKHAM J D T & PARTNER,4742320,"32,514.38", -   ,EX000021082
Department of Health,NHS England,31/08/2014,GPMS/APMS and PCTMS,Primary Care & Secondary Dental,BARKINGSIDE MEDICAL CENTRE,4596233,"35,995.31", -   ,LNB000005115
Department of Health,NHS England,31/08/2014,GPMS/APMS and PCTMS,Primary Care & Secondary Dental,BARMSTON MEDICAL CENTRE,4577718,"55,000.00", -   ,SUN000003190
Department of Health,NHS England,31/08/2014,GPMS/APMS and PCTMS,Primary Care & Secondary Dental,BARN SURGERY,4596072,"41,297.94", -   ,DO000008397
Department of Health,NHS England,31/08/2014,GPMS/APMS and PCTMS,Primary Care & Secondary Dental,BARN SURGERY,4691423,"27,075.73", -   ,TW000011650
Department of Health,NHS England,31/08/2014,GPMS/APMS and PCTMS,Primary Care & Secondary Dental,BARNARD CASTLE SURGERY,4579039,"-88,112.74", -   ,DR000006234
Department of Health,NHS England,31/08/2014,GPMS/APMS and PCTMS,Primary Care & Secondary Dental,BARNARD CASTLE SURGERY,4579040,"168,044.39", -   ,DR000006235
Department of Health,NHS England,31/08/2014,GPMS/APMS and PCTMS,Primary Care & Secondary Dental,BARNARD PRACTICE,4580531,"106,025.27", -   ,LNW000004163
Department of Health,NHS England,31/08/2014,GPMS/APMS and PCTMS,Primary Care & Secondary Dental,BARNETT & PARTNERS,4676473,"34,885.74", -   ,LIP000007863
Department of Health,NHS England,31/08/2014,GPMS/APMS and PCTMS,Primary Care & Secondary Dental,BARNOLDSWICK MEDICAL CENTRE,4745277,"66,530.01", -   ,LA000012590
Department of Health,NHS England,31/08/2014,GPMS/APMS and PCTMS,Primary Care & Secondary Dental,BARNT GREEN SURGERY,4577216,"46,898.70", -   ,WR000007588
Department of Health,NHS England,31/08/2014,GPMS/APMS and PCTMS,Primary Care & Secondary Dental,BARR LANE SURGERY,4738536,"37,461.48", -   ,WA000006326
Department of Health,NHS England,31/08/2014,GPMS/APMS and PCTMS,Primary Care & Secondary Dental,BARRACK LANE MEDICAL CENTRE,4556576,"103,705.33", -   ,SU000007793
Department of Health,NHS England,31/08/2014,GPMS/APMS and PCTMS,Primary Care & Secondary Dental,BARRETT CHATTERJEE DAY & PARTNERS,4576499,"100,380.50", -   ,DE000011204
Department of Health,NHS England,31/08/2014,GPMS/APMS and PCTMS,Primary Care & Secondary Dental,BARROWFORD SURGERY,4745279,"25,288.27", -   ,LA000012592
Department of Health,NHS England,31/08/2014,GPMS/APMS and PCTMS,Primary Care & Secondary Dental,BARTLEMAS SURGERY,4743533,"46,093.26", -   ,OX000007094
Department of Health,NHS England,31/08/2014,GPMS/APMS and PCTMS,Primary Care & Secondary Dental,BARTON HOUSE GROUP PRACTICE,4675116,"72,758.34", -   ,LNA000008414
Department of Health,NHS England,31/08/2014,GPMS/APMS and PCTMS,Primary Care & Secondary Dental,BARTON HOUSE SURGERY,4694201,"39,183.50", -   ,DO000008610
Department of Health,NHS England,31/08/2014,GPMS/APMS and PCTMS,Primary Care & Secondary Dental,BARTON WEBB PEPLOE PARTNERSHIP,4693939,"72,030.16", -   ,SO000018683
Department of Health,NHS England,31/08/2014,GPMS/APMS and PCTMS,Primary Care & Secondary Dental,BARUCH & PARTNERS,4696075,"32,156.65", -   ,LNN000005435
Department of Health,NHS England,31/08/2014,GPMS/APMS and PCTMS,Primary Care & Secondary Dental,BASLOW HEALTH CENTRE,4674832,"28,143.61", -   ,DE000011522
Department of Health,NHS England,31/08/2014,GPMS/APMS and PCTMS,Primary Care & Secondary Dental,BASLOW ROAD & SHOREHAM STREET SURGERIES,4740373,"77,461.46", -   ,SHE000005354
Department of Health,NHS England,31/08/2014,GPMS/APMS and PCTMS,Primary Care & Secondary Dental,BASSETT ROAD MEDICAL PRACTICE,4724154,"74,669.99", -   ,BD000007003
Department of Health,NHS England,31/08/2014,GPMS/APMS and PCTMS,Primary Care & Secondary Dental,BATES & PARTNERS RICHMOND,4696077,"49,118.69", -   ,LNN000005437
Department of Health,NHS England,31/08/2014,GPMS/APMS and PCTMS,Primary Care & Secondary Dental,BATES & PARTNERS WIRRAL,4504804,"31,251.54", -   ,BIK000003755
Department of Health,NHS England,31/08/2014,GPMS/APMS and PCTMS,Primary Care & Secondary Dental,BATES & PARTNERS WIRRAL,4675943,"-31,251.54", -   ,BIK000003870
Department of Health,NHS England,31/08/2014,GPMS/APMS and PCTMS,Primary Care & Secondary Dental,BATES & PARTNERS WIRRAL,4675945,"53,091.45", -   ,BIK000003871
Department of Health,NHS England,31/08/2014,GPMS/APMS and PCTMS,Primary Care & Secondary Dental,BATESON & PARTNERS,4504553,"30,993.19", -   ,LIP000007584
Department of Health,NHS England,31/08/2014,GPMS/APMS and PCTMS,Primary Care & Secondary Dental,BATESON & PARTNERS,4676474,"-30,993.19", -   ,LIP000007864
Department of Health,NHS England,31/08/2014,GPMS/APMS and PCTMS,Primary Care & Secondary Dental,BATESON & PARTNERS,4691211,"49,811.98", -   ,LIP000007865
Department of Health,NHS England,31/08/2014,GPMS/APMS and PCTMS,Primary Care & Secondary Dental,BATH LODGE PRACTICE,4700985,"73,109.66", -   ,SO000018685
Department of Health,NHS England,31/08/2014,GPMS/APMS and PCTMS,Primary Care & Secondary Dental,BATH ROAD SURGERY SLOUGH,4694916,"25,443.83", -   ,BE000008169
Department of Health,NHS England,31/08/2014,GPMS/APMS and PCTMS,Primary Care & Secondary Dental,BATHEASTON MEDICAL CENTRE,4579201,"-31,597.01", -   ,BRS000010152
Department of Health,NHS England,31/08/2014,GPMS/APMS and PCTMS,Primary Care & Secondary Dental,BATHEASTON MEDICAL CENTRE,4579202,"36,299.47", -   ,BRS000010153
Department of Health,NHS England,31/08/2014,GPMS/APMS and PCTMS,Primary Care & Secondary Dental,BATTLEHILL HEALTH CENTRE,4580609,"111,810.44", -   ,NEW000004283
Department of Health,NHS England,31/08/2014,GPMS/APMS and PCTMS,Primary Care & Secondary Dental,BAYLIS T M & PARTNERS,4742303,"31,526.90", -   ,EX000021062
Department of Health,NHS England,31/08/2014,GPMS/APMS and PCTMS,Primary Care & Secondary Dental,BAYSWATER MEDICAL CENTRE,4582232,"61,394.62", -   ,LNJ000005279
Department of Health,NHS England,31/08/2014,GPMS/APMS and PCTMS,Primary Care & Secondary Dental,BEACON MEDICAL,4575627,"114,195.60", -   ,KHU000007824
Department of Health,NHS England,31/08/2014,GPMS/APMS and PCTMS,Primary Care & Secondary Dental,BEACON SURGERY,4655694,"62,256.73", -   ,TE000009638
Department of Health,NHS England,31/08/2014,GPMS/APMS and PCTMS,Primary Care & Secondary Dental,BEARSTED MEDICAL PRACTICE,4636659,"67,655.83", -   ,KC000021577
Department of Health,NHS England,31/08/2014,GPMS/APMS and PCTMS,Primary Care & Secondary Dental,BEARWOOD MEDICAL CENTRE,4596060,"56,924.90", -   ,DO000008385
Department of Health,NHS England,31/08/2014,GPMS/APMS and PCTMS,Primary Care & Secondary Dental,BEAUFORT ROAD SURGERY,4694195,"61,632.99", -   ,DO000008604
Department of Health,NHS England,31/08/2014,GPMS/APMS and PCTMS,Primary Care & Secondary Dental,BEAUMONT LEYS HEALTH CENTRE,4492026,"43,947.00", -   ,LD000010441
Department of Health,NHS England,31/08/2014,GPMS/APMS and PCTMS,Primary Care & Secondary Dental,BECCLES MEDICAL CENTRE,4528682,"115,902.53", -   ,NF000010130
Department of Health,NHS England,31/08/2014,GPMS/APMS and PCTMS,Primary Care & Secondary Dental,BECKETT HOUSE PRACTICE,4580232,"47,072.82", -   ,LNS000011312
Department of Health,NHS England,31/08/2014,GPMS/APMS and PCTMS,Primary Care & Secondary Dental,BECKINGTON FAMILY PRACTICE,4740837,"53,219.57", -   ,SM000004926
Department of Health,NHS England,31/08/2014,GPMS/APMS and PCTMS,Primary Care & Secondary Dental,BEDFORD HOUSE MEDICAL CENTRE,4725074,"47,303.95", -   ,GMK000004464
Department of Health,NHS England,31/08/2014,GPMS/APMS and PCTMS,Primary Care & Secondary Dental,BEDFORD STREET SURGERY,4578653,"71,616.33", -   ,BU000006176
Department of Health,NHS England,31/08/2014,GPMS/APMS and PCTMS,Primary Care & Secondary Dental,BEDFORDSHIRE AND HERTFORDSHIRE LMC LTD (STAT LEVY),4721040,"68,469.16", -   ,193756-18-AUG-2014
Department of Health,NHS England,31/08/2014,GPMS/APMS and PCTMS,Primary Care & Secondary Dental,BEDLINGTONSHIRE MEDICAL GROUP,4577633,"-25,847.88", -   ,NR000003852
Department of Health,NHS England,31/08/2014,GPMS/APMS and PCTMS,Primary Care & Secondary Dental,BEDLINGTONSHIRE MEDICAL GROUP,4577634,"73,995.62", -   ,NR000003853
Department of Health,NHS England,31/08/2014,GPMS/APMS and PCTMS,Primary Care & Secondary Dental,BEDMINSTER FAMILY PRACTICE,4579190,"75,271.18", -   ,BRS000010141
Department of Health,NHS England,31/08/2014,GPMS/APMS and PCTMS,Primary Care & Secondary Dental,BEDWELL MEDICAL CENTRE,4724246,"71,070.01", -   ,HT000010926
Department of Health,NHS England,31/08/2014,GPMS/APMS and PCTMS,Primary Care & Secondary Dental,BEECH GROVE SURGERY,4693919,"62,216.88", -   ,SO000018661
Department of Health,NHS England,31/08/2014,GPMS/APMS and PCTMS,Primary Care & Secondary Dental,BEECH HILL MEDICAL CENTRE,4561232,"81,342.71", -   ,WIG000007447
Department of Health,NHS England,31/08/2014,GPMS/APMS and PCTMS,Primary Care & Secondary Dental,BEECH HOUSE MEDICAL PRACTICE,4561297,"55,283.93", -   ,SPT000002867
Department of Health,NHS England,31/08/2014,GPMS/APMS and PCTMS,Primary Care & Secondary Dental,BEECH HOUSE SURGERY,4746197,"44,009.20", -   ,YN000008001
Department of Health,NHS England,31/08/2014,GPMS/APMS and PCTMS,Primary Care & Secondary Dental,BEECH TREE SURGERY,4746199,"95,014.91", -   ,YN000008003
Department of Health,NHS England,31/08/2014,GPMS/APMS and PCTMS,Primary Care & Secondary Dental,BEECHCROFT SURGERY,4540465,"37,511.00", -   ,NF000010132
Department of Health,NHS England,31/08/2014,GPMS/APMS and PCTMS,Primary Care & Secondary Dental,BEECHDALE SURGERY,4577058,"31,904.08", -   ,NN000012074
Department of Health,NHS England,31/08/2014,GPMS/APMS and PCTMS,Primary Care & Secondary Dental,BEECHES MEDICAL PRACTICE,4696623,"35,797.69", -   ,SA000006661
Department of Health,NHS England,31/08/2014,GPMS/APMS and PCTMS,Primary Care & Secondary Dental,BEECHWOOD GROUP PRACTICE,4677696,"41,397.46", -   ,CU000006100
Department of Health,NHS England,31/08/2014,GPMS/APMS and PCTMS,Primary Care & Secondary Dental,BEECHWOOD MEDICAL PRACTICE,4758218,"58,551.98", -   ,BRS000010519
Department of Health,NHS England,31/08/2014,GPMS/APMS and PCTMS,Primary Care & Secondary Dental,BEGGARWOOD SURGERY (THE),4541953,"-27,233.67", -   ,SO000018540
Department of Health,NHS England,31/08/2014,GPMS/APMS and PCTMS,Primary Care & Secondary Dental,BEGGARWOOD SURGERY (THE),4541954,"74,666.59", -   ,SO000018541
Department of Health,NHS England,31/08/2014,GPMS/APMS and PCTMS,Primary Care & Secondary Dental,BEHESHTI & PARTNERS,4677576,"29,200.91", -   ,LNC000005802
Department of Health,NHS England,31/08/2014,GPMS/APMS and PCTMS,Primary Care & Secondary Dental,BELFORD MEDICAL PRACTICE,4577636,"37,645.16", -   ,NR000003855
Department of Health,NHS England,31/08/2014,GPMS/APMS and PCTMS,Primary Care & Secondary Dental,BELGRAVE SURGERY,4746201,"29,087.87", -   ,YN000008005
Department of Health,NHS England,31/08/2014,GPMS/APMS and PCTMS,Primary Care & Secondary Dental,BELGRAVIA SURGERY,4677957,"41,100.17", -   ,LNJ000005408
Department of Health,NHS England,31/08/2014,GPMS/APMS and PCTMS,Primary Care & Secondary Dental,BELL HOUSE MEDICAL PRACTICE,4724149,"56,858.99", -   ,BD000007001
Department of Health,NHS England,31/08/2014,GPMS/APMS and PCTMS,Primary Care & Secondary Dental,BELL SURGERY,4743516,"54,146.45", -   ,OX000007086
Department of Health,NHS England,31/08/2014,GPMS/APMS and PCTMS,Primary Care & Secondary Dental,BELLEGROVE ROAD SURGERY,4580524,"63,502.60", -   ,LNW000004155
Department of Health,NHS England,31/08/2014,GPMS/APMS and PCTMS,Primary Care & Secondary Dental,BELLINGHAM GREEN SURGERY,4596442,"51,454.63", -   ,LNS000011314
Department of Health,NHS England,31/08/2014,GPMS/APMS and PCTMS,Primary Care & Secondary Dental,BELLINGHAM J M & PARTNERS,4742305,"55,090.82", -   ,EX000021064
Department of Health,NHS England,31/08/2014,GPMS/APMS and PCTMS,Primary Care & Secondary Dental,BELLINGHAM MEDICAL GROUP,4577638,"26,709.97", -   ,NR000003857
Department of Health,NHS England,31/08/2014,GPMS/APMS and PCTMS,Primary Care & Secondary Dental,BELMONT & SHERBURN MEDICAL GROUP,4738591,"50,677.83", -   ,DR000006489
Department of Health,NHS England,31/08/2014,GPMS/APMS and PCTMS,Primary Care & Secondary Dental,BELMONT HILL SURGERY,4596443,"46,226.11", -   ,LNS000011316
Department of Health,NHS England,31/08/2014,GPMS/APMS and PCTMS,Primary Care & Secondary Dental,BELMONT MEDICAL CENTRE,4600950,"44,162.67", -   ,LNK000002495
Department of Health,NHS England,31/08/2014,GPMS/APMS and PCTMS,Primary Care & Secondary Dental,BELSIZE PRIORY MEDICAL PRACTICE,4758346,"27,090.09", -   ,LND000006091
Department of Health,NHS England,31/08/2014,GPMS/APMS and PCTMS,Primary Care & Secondary Dental,BELVEDERE MEDICAL CENTRE,4580526,"48,344.43", -   ,LNW000004157
Department of Health,NHS England,31/08/2014,GPMS/APMS and PCTMS,Primary Care & Secondary Dental,BELVIDERE MEDICAL PRACTICE,4696625,"29,699.20", -   ,SA000006663
Department of Health,NHS England,31/08/2014,GPMS/APMS and PCTMS,Primary Care & Secondary Dental,BENFIELD PARK MEDICAL GROUP,4743356,"51,039.51", -   ,NEW000004439
Department of Health,NHS England,31/08/2014,GPMS/APMS and PCTMS,Primary Care & Secondary Dental,BENNETTS END SURGERY,4578849,"112,200.09", -   ,HT000010751
Department of Health,NHS England,31/08/2014,GPMS/APMS and PCTMS,Primary Care & Secondary Dental,BENNFIELD SURGERY,4738533,"43,359.68", -   ,WA000006316
Department of Health,NHS England,31/08/2014,GPMS/APMS and PCTMS,Primary Care & Secondary Dental,BENTHAM MEDICAL PRACTICE,4746203,"48,758.04", -   ,YN000008007
Department of Health,NHS England,31/08/2014,GPMS/APMS and PCTMS,Primary Care & Secondary Dental,BENTHAM ROAD HEALTH CENTRE,4758228,"79,863.61", -   ,LA000012566
Department of Health,NHS England,31/08/2014,GPMS/APMS and PCTMS,Primary Care & Secondary Dental,BENTLEY MEDICAL PRACTICE,4634950,"-44,674.83", -   ,MID000005733
Department of Health,NHS England,31/08/2014,GPMS/APMS and PCTMS,Primary Care & Secondary Dental,BENTLEY MEDICAL PRACTICE,4634951,"91,438.75", -   ,MID000005734
Department of Health,NHS England,31/08/2014,GPMS/APMS and PCTMS,Primary Care & Secondary Dental,BENTS GREEN SURGERY,4576297,"30,830.11", -   ,SHE000005175
Department of Health,NHS England,31/08/2014,GPMS/APMS and PCTMS,Primary Care & Secondary Dental,BERMONDSEY & LANSDOWNE MEDICAL MISSION,4580235,"-34,373.32", -   ,LNS000011317
Department of Health,NHS England,31/08/2014,GPMS/APMS and PCTMS,Primary Care & Secondary Dental,BERMONDSEY & LANSDOWNE MEDICAL MISSION,4596444,"162,606.24", -   ,LNS000011318
Department of Health,NHS England,31/08/2014,GPMS/APMS and PCTMS,Primary Care & Secondary Dental,BERMONDSEY SPA MEDICAL CENTRE,4596446,"63,296.97", -   ,LNS000011320
Department of Health,NHS England,31/08/2014,GPMS/APMS and PCTMS,Primary Care & Secondary Dental,BERNAYS & WHITEHOUSE LTD T/A KINGSHURST MEDICAL PRACTICE,4678967,"42,371.25", -   ,WMF000002111
Department of Health,NHS England,31/08/2014,GPMS/APMS and PCTMS,Primary Care & Secondary Dental,BERRY & PARTNERS,4740182,"75,737.28", -   ,DCR000003521
Department of Health,NHS England,31/08/2014,GPMS/APMS and PCTMS,Primary Care & Secondary Dental,BERRY LANE MEDICAL CENTRE,4745258,"60,999.94", -   ,LA000012568
Department of Health,NHS England,31/08/2014,GPMS/APMS and PCTMS,Primary Care & Secondary Dental,BERRYFIELDS MEDICAL CENTRE,4578655,"30,620.41", -   ,BU000006178
Department of Health,NHS England,31/08/2014,GPMS/APMS and PCTMS,Primary Care & Secondary Dental,BERSTED GREEN SURGERY,4679025,"70,435.00", -   ,TW000011642
Department of Health,NHS England,31/08/2014,GPMS/APMS and PCTMS,Primary Care & Secondary Dental,BEST M & PARTNER,4758087,"33,669.73", -   ,EX000021068
Department of Health,NHS England,31/08/2014,GPMS/APMS and PCTMS,Primary Care & Secondary Dental,BETHESDA MEDICAL CENTRE,4767667,"156,743.69", -   ,KC000022354
Department of Health,NHS England,31/08/2014,GPMS/APMS and PCTMS,Primary Care & Secondary Dental,BETHNAL GREEN HEALTH CENTRE,4691043,"53,884.73", -   ,LNA000008402
Department of Health,NHS England,31/08/2014,GPMS/APMS and PCTMS,Primary Care & Secondary Dental,BEVAN,4676130,"28,040.65", -   ,STL000006612
Department of Health,NHS England,31/08/2014,GPMS/APMS and PCTMS,Primary Care & Secondary Dental,BEVAN HEALTHCARE CIC,4571880,"47,305.17", -   ,BRA000005488
Department of Health,NHS England,31/08/2014,GPMS/APMS and PCTMS,Primary Care & Secondary Dental,BEVERSBROOK MEDICAL CENTRE,4577862,"-26,030.38", -   ,WL000007551
Department of Health,NHS England,31/08/2014,GPMS/APMS and PCTMS,Primary Care & Secondary Dental,BEVERSBROOK MEDICAL CENTRE,4577863,"36,531.41", -   ,WL000007552
Department of Health,NHS England,31/08/2014,GPMS/APMS and PCTMS,Primary Care & Secondary Dental,BEWBUSH MEDICAL CENTRE,4679033,"35,361.38", -   ,TW000011652
Department of Health,NHS England,31/08/2014,GPMS/APMS and PCTMS,Primary Care & Secondary Dental,BEWDLEY MEDICAL CENTRE,4577218,"108,919.52", -   ,WR000007590
Department of Health,NHS England,31/08/2014,GPMS/APMS and PCTMS,Primary Care & Secondary Dental,BEWICK CRESCENT SURGERY,4579147,"-111,654.10", -   ,DR000006344
Department of Health,NHS England,31/08/2014,GPMS/APMS and PCTMS,Primary Care & Secondary Dental,BEWICK CRESCENT SURGERY,4579148,"208,342.83", -   ,DR000006345
Department of Health,NHS England,31/08/2014,GPMS/APMS and PCTMS,Primary Care & Secondary Dental,BEXLEY GROUP PRACTICE,4596670,"71,290.35", -   ,LNW000004167
Department of Health,NHS England,31/08/2014,GPMS/APMS and PCTMS,Primary Care & Secondary Dental,BEXLEY MEDICAL GROUP,4580536,"109,585.52", -   ,LNW000004169
Department of Health,NHS England,31/08/2014,GPMS/APMS and PCTMS,Primary Care & Secondary Dental,BHARANI MEDICAL CENTRE,4596193,"101,519.58", -   ,BE000008069
Department of Health,NHS England,31/08/2014,GPMS/APMS and PCTMS,Primary Care & Secondary Dental,BIDFORD ON AVON HEALTH CENTRE,4577583,"86,237.45", -   ,WA000006296
Department of Health,NHS England,31/08/2014,GPMS/APMS and PCTMS,Primary Care & Secondary Dental,BIDWELL & DAVIDSON,4579041,"-32,744.33", -   ,DR000006236
Department of Health,NHS England,31/08/2014,GPMS/APMS and PCTMS,Primary Care & Secondary Dental,BIDWELL & DAVIDSON,4579042,"62,507.59", -   ,DR000006237
Department of Health,NHS England,31/08/2014,GPMS/APMS and PCTMS,Primary Care & Secondary Dental,BIGGIN HILL SURGERY,4652065,"77,306.98", -   ,LNT000004026
Department of Health,NHS England,31/08/2014,GPMS/APMS and PCTMS,Primary Care & Secondary Dental,BILLINGSHURST SURGERY,4679035,"73,370.11", -   ,TW000011654
Department of Health,NHS England,31/08/2014,GPMS/APMS and PCTMS,Primary Care & Secondary Dental,BILSTON URBAN VILLAGE MEDICAL CENTRE,4675277,"-63,812.22", -   ,WOM000003405
Department of Health,NHS England,31/08/2014,GPMS/APMS and PCTMS,Primary Care & Secondary Dental,BILSTON URBAN VILLAGE MEDICAL CENTRE,4691144,"128,900.88", -   ,WOM000003406
Department of Health,NHS England,31/08/2014,GPMS/APMS and PCTMS,Primary Care & Secondary Dental,BINCOTE ROAD SURGERY,4596622,"41,999.74", -   ,LNE000006649
Department of Health,NHS England,31/08/2014,GPMS/APMS and PCTMS,Primary Care & Secondary Dental,BINFIELD ROAD SURGERY,4596453,"52,109.27", -   ,LNS000011336
Department of Health,NHS England,31/08/2014,GPMS/APMS and PCTMS,Primary Care & Secondary Dental,BINFIELD SURGERY,4596194,"74,539.24", -   ,BE000008071
Department of Health,NHS England,31/08/2014,GPMS/APMS and PCTMS,Primary Care & Secondary Dental,BIRBECK MEDICAL GROUP,4677703,"96,570.21", -   ,CU000006108
Department of Health,NHS England,31/08/2014,GPMS/APMS and PCTMS,Primary Care & Secondary Dental,BIRCHES MEDICAL CENTRE,4543762,"51,342.63", -   ,SU000007795
Department of Health,NHS England,31/08/2014,GPMS/APMS and PCTMS,Primary Care & Secondary Dental,BIRCHES MEDICAL PRACTICE,4740198,"45,536.62", -   ,KHU000008101
Department of Health,NHS England,31/08/2014,GPMS/APMS and PCTMS,Primary Care & Secondary Dental,BIRCHINGTON MEDICAL CENTRE,4636669,"99,622.22", -   ,KC000021589
Department of Health,NHS England,31/08/2014,GPMS/APMS and PCTMS,Primary Care & Secondary Dental,BIRCHTREE PRACTICE,4634959,"-44,167.00", -   ,MID000005743
Department of Health,NHS England,31/08/2014,GPMS/APMS and PCTMS,Primary Care & Secondary Dental,BIRCHTREE PRACTICE,4634960,"88,334.00", -   ,MID000005744
Department of Health,NHS England,31/08/2014,GPMS/APMS and PCTMS,Primary Care & Secondary Dental,BIRCHWOOD MEDICAL CENTRE POOLE,4596074,"54,489.25", -   ,DO000008399
Department of Health,NHS England,31/08/2014,GPMS/APMS and PCTMS,Primary Care & Secondary Dental,BIRCHWOOD MEDICAL CENTRE WARRINGTON,4492383,"47,200.00", -   ,CH000008390
Department of Health,NHS England,31/08/2014,GPMS/APMS and PCTMS,Primary Care & Secondary Dental,BIRCHWOOD MEDICAL CENTRE WARRINGTON,4658640,"-47,221.00", -   ,CH000008638
Department of Health,NHS England,31/08/2014,GPMS/APMS and PCTMS,Primary Care & Secondary Dental,BIRCHWOOD MEDICAL CENTRE WARRINGTON,4658641,"67,379.17", -   ,CH000008639
Department of Health,NHS England,31/08/2014,GPMS/APMS and PCTMS,Primary Care & Secondary Dental,BIRCHWOOD MEDICAL PRACTICE BRISTOL,4744962,"33,466.65", -   ,BRS000010526
Department of Health,NHS England,31/08/2014,GPMS/APMS and PCTMS,Primary Care & Secondary Dental,BIRCHWOOD MEDICAL PRACTICE HORLEY,4696345,"83,525.30", -   ,SY000009485
Department of Health,NHS England,31/08/2014,GPMS/APMS and PCTMS,Primary Care & Secondary Dental,BIRCHWOOD SURGERY,4724258,"106,362.98", -   ,HT000010938
Department of Health,NHS England,31/08/2014,GPMS/APMS and PCTMS,Primary Care & Secondary Dental,BIRD IN EYE SURGERY,4655698,"39,666.13", -   ,TE000009642
Department of Health,NHS England,31/08/2014,GPMS/APMS and PCTMS,Primary Care & Secondary Dental,BIRLEY HEALTH CENTRE,4576303,"125,475.86", -   ,SHE000005183
Department of Health,NHS England,31/08/2014,GPMS/APMS and PCTMS,Primary Care & Secondary Dental,BIRLEY HEALTH CENTRE,4595963,"-67,294.02", -   ,SHE000005182
Department of Health,NHS England,31/08/2014,GPMS/APMS and PCTMS,Primary Care & Secondary Dental,BISHOPGATE MEDICAL CENTRE,4579043,"-115,169.84", -   ,DR000006238
Department of Health,NHS England,31/08/2014,GPMS/APMS and PCTMS,Primary Care & Secondary Dental,BISHOPGATE MEDICAL CENTRE,4579044,"215,102.42", -   ,DR000006239
Department of Health,NHS England,31/08/2014,GPMS/APMS and PCTMS,Primary Care & Secondary Dental,BISHOPS CASTLE MEDICAL PRACTICE,4696627,"37,297.55", -   ,SA000006665
Department of Health,NHS England,31/08/2014,GPMS/APMS and PCTMS,Primary Care & Secondary Dental,BISHOPS WALTHAM SURGERY,4541960,"-69,842.92", -   ,SO000018548
Department of Health,NHS England,31/08/2014,GPMS/APMS and PCTMS,Primary Care & Secondary Dental,BISHOPS WALTHAM SURGERY,4541961,"155,548.54", -   ,SO000018549
Department of Health,NHS England,31/08/2014,GPMS/APMS and PCTMS,Primary Care & Secondary Dental,BISHOPSTON MEDICAL PRACTICE,4579416,"77,724.74", -   ,BRS000010374
Department of Health,NHS England,31/08/2014,GPMS/APMS and PCTMS,Primary Care & Secondary Dental,BITTERNE PARK SURGERY,4693942,"45,146.51", -   ,SO000018687
Department of Health,NHS England,31/08/2014,GPMS/APMS and PCTMS,Primary Care & Secondary Dental,BITTERNE SURGERY,4693944,"61,413.01", -   ,SO000018689
Department of Health,NHS England,31/08/2014,GPMS/APMS and PCTMS,Primary Care & Secondary Dental,BK JAISWAL,4691311,"26,869.23", -   ,LNC000005810
Department of Health,NHS England,31/08/2014,GPMS/APMS and PCTMS,Primary Care & Secondary Dental,BLACK LONG THOMAS DAS WRIGHT VELTMAN & PARTNERS,4674708,"81,401.31", -   ,DE000011380
Department of Health,NHS England,31/08/2014,GPMS/APMS and PCTMS,Primary Care & Secondary Dental,BLACKBROOK SURGERY LISIEUX WAY TAUNTON,4758041,"56,140.97", -   ,SM000004929
Department of Health,NHS England,31/08/2014,GPMS/APMS and PCTMS,Primary Care & Secondary Dental,BLACKDOWN COUNTRY PRACTICE HEMYOCK,4471628,"56,903.52", -   ,DN000014165
Department of Health,NHS England,31/08/2014,GPMS/APMS and PCTMS,Primary Care & Secondary Dental,BLACKDOWN COUNTRY PRACTICE HEMYOCK,4764491,"25,448.47", -   ,DN000014952
Department of Health,NHS England,31/08/2014,GPMS/APMS and PCTMS,Primary Care & Secondary Dental,BLACKETTS MEDICAL PRACTICE,4579045,"-80,360.09", -   ,DR000006240
Department of Health,NHS England,31/08/2014,GPMS/APMS and PCTMS,Primary Care & Secondary Dental,BLACKETTS MEDICAL PRACTICE,4579046,"146,082.67", -   ,DR000006241
Department of Health,NHS England,31/08/2014,GPMS/APMS and PCTMS,Primary Care & Secondary Dental,BLACKFIELD HEALTH CENTRE,4693946,"140,429.75", -   ,SO000018691
Department of Health,NHS England,31/08/2014,GPMS/APMS and PCTMS,Primary Care & Secondary Dental,BLACKFORD HOUSE MEDICAL CENTRE,4725079,"46,995.71", -   ,ROC000004093
Department of Health,NHS England,31/08/2014,GPMS/APMS and PCTMS,Primary Care & Secondary Dental,BLACKFRIARS MEDICAL PRACTICE,4580245,"-29,166.68", -   ,LNS000011337
Department of Health,NHS England,31/08/2014,GPMS/APMS and PCTMS,Primary Care & Secondary Dental,BLACKFRIARS MEDICAL PRACTICE,4596454,"90,008.82", -   ,LNS000011338
Department of Health,NHS England,31/08/2014,GPMS/APMS and PCTMS,Primary Care & Secondary Dental,BLACKMORE HEALTH CENTRE SIDMOUTH,4471630,"110,712.00", -   ,DN000014167
Department of Health,NHS England,31/08/2014,GPMS/APMS and PCTMS,Primary Care & Secondary Dental,BLACKTHORN HEALTH CENTRE,4693948,"68,756.48", -   ,SO000018693
Department of Health,NHS England,31/08/2014,GPMS/APMS and PCTMS,Primary Care & Secondary Dental,BLACKTHORN MEDICAL CENTRE,4652021,"41,414.88", -   ,KC000021591
Department of Health,NHS England,31/08/2014,GPMS/APMS and PCTMS,Primary Care & Secondary Dental,BLENHEIM MEDICAL CENTRE,4578893,"100,040.50", -   ,BD000006855
Department of Health,NHS England,31/08/2014,GPMS/APMS and PCTMS,Primary Care & Secondary Dental,BLETCHINGTON ROAD SURGERY,4743537,"35,471.92", -   ,OX000007096
Department of Health,NHS England,31/08/2014,GPMS/APMS and PCTMS,Primary Care & Secondary Dental,BLITHEHALE MEDICAL CENTRE,4595825,"76,657.61", -   ,LNA000008231
Department of Health,NHS England,31/08/2014,GPMS/APMS and PCTMS,Primary Care & Secondary Dental,BLOOMFIELD MEDICAL CENTRE,4745287,"84,881.92", -   ,LA000012600
Department of Health,NHS England,31/08/2014,GPMS/APMS and PCTMS,Primary Care & Secondary Dental,BLOOMSBURY HEALTH CENTRE,4679325,"-30,053.75", -   ,BIR000010032
Department of Health,NHS England,31/08/2014,GPMS/APMS and PCTMS,Primary Care & Secondary Dental,BLOOMSBURY HEALTH CENTRE,4679326,"66,486.96", -   ,BIR000010033
Department of Health,NHS England,31/08/2014,GPMS/APMS and PCTMS,Primary Care & Secondary Dental,BLOOMSBURY SURGERY,4746496,"26,419.05", -   ,LND000006107
Department of Health,NHS England,31/08/2014,GPMS/APMS and PCTMS,Primary Care & Secondary Dental,BOAT HOUSE SURGERY,4578690,"69,963.69", -   ,BE000008067
Department of Health,NHS England,31/08/2014,GPMS/APMS and PCTMS,Primary Care & Secondary Dental,BOCKHAMPTON ROAD SURGERY,4694920,"40,586.76", -   ,BE000008173
Department of Health,NHS England,31/08/2014,GPMS/APMS and PCTMS,Primary Care & Secondary Dental,BOGNOR MEDICAL PRACTICE,4582169,"71,260.68", -   ,TW000011275
Department of Health,NHS England,31/08/2014,GPMS/APMS and PCTMS,Primary Care & Secondary Dental,BOKAHRI AA,4561541,"67,807.33", -   ,MAN000004685
Department of Health,NHS England,31/08/2014,GPMS/APMS and PCTMS,Primary Care & Secondary Dental,BOLLINGTON MEDICAL CENTRE,4492382,"48,200.00", -   ,CH000008389
Department of Health,NHS England,31/08/2014,GPMS/APMS and PCTMS,Primary Care & Secondary Dental,BOLLINGTON MEDICAL CENTRE,4658638,"-48,224.00", -   ,CH000008636
Department of Health,NHS England,31/08/2014,GPMS/APMS and PCTMS,Primary Care & Secondary Dental,BOLLINGTON MEDICAL CENTRE,4658639,"68,951.53", -   ,CH000008637
Department of Health,NHS England,31/08/2014,GPMS/APMS and PCTMS,Primary Care & Secondary Dental,BOLTON COMMUNITY PRACTICE,4616049,"124,027.62", -   ,WIG000007571
Department of Health,NHS England,31/08/2014,GPMS/APMS and PCTMS,Primary Care & Secondary Dental,BOND MDI & PARTNER,4676759,"-33,294.07", -   ,SOP000004479
Department of Health,NHS England,31/08/2014,GPMS/APMS and PCTMS,Primary Care & Secondary Dental,BOND MDI & PARTNER,4676760,"40,520.89", -   ,SOP000004480
Department of Health,NHS England,31/08/2014,GPMS/APMS and PCTMS,Primary Care & Secondary Dental,BONDGATE SURGERY,4577640,"61,736.09", -   ,NR000003859
Department of Health,NHS England,31/08/2014,GPMS/APMS and PCTMS,Primary Care & Secondary Dental,BOOTH J T & PARTNERS,4742332,"35,125.97", -   ,EX000021094
Department of Health,NHS England,31/08/2014,GPMS/APMS and PCTMS,Primary Care & Secondary Dental,BORDER PRACTICE,4541964,"-45,614.09", -   ,SO000018552
Department of Health,NHS England,31/08/2014,GPMS/APMS and PCTMS,Primary Care & Secondary Dental,BORDER PRACTICE,4541965,"103,289.24", -   ,SO000018553
Department of Health,NHS England,31/08/2014,GPMS/APMS and PCTMS,Primary Care & Secondary Dental,BOROUGH GREEN MEDICAL PRACTICE,4636672,"77,559.19", -   ,KC000021593
Department of Health,NHS England,31/08/2014,GPMS/APMS and PCTMS,Primary Care & Secondary Dental,BOROUGH ROAD & NUNTHORPE MEDICAL GROUP,4634962,"76,220.26", -   ,MID000005746
Department of Health,NHS England,31/08/2014,GPMS/APMS and PCTMS,Primary Care & Secondary Dental,BORSTAL VILLAGE,4767595,"33,568.19", -   ,KC000022270
Department of Health,NHS England,31/08/2014,GPMS/APMS and PCTMS,Primary Care & Secondary Dental,BOSMERE MEDICAL PRACTICE,4541966,"-105,422.00", -   ,SO000018554
Department of Health,NHS England,31/08/2014,GPMS/APMS and PCTMS,Primary Care & Secondary Dental,BOSMERE MEDICAL PRACTICE,4541967,"231,558.73", -   ,SO000018555
Department of Health,NHS England,31/08/2014,GPMS/APMS and PCTMS,Primary Care & Secondary Dental,BOTLEY MEDICAL CENTRE,4743539,"50,426.03", -   ,OX000007098
Department of Health,NHS England,31/08/2014,GPMS/APMS and PCTMS,Primary Care & Secondary Dental,BOTOLPH COMMUNITY HEALTH CENTRE,4556639,"37,173.64", -   ,CB000009165
Department of Health,NHS England,31/08/2014,GPMS/APMS and PCTMS,Primary Care & Secondary Dental,BOUGHTON MEDICAL GROUP,4492384,"46,700.00", -   ,CH000008391
Department of Health,NHS England,31/08/2014,GPMS/APMS and PCTMS,Primary Care & Secondary Dental,BOUGHTON MEDICAL GROUP,4658642,"-46,721.00", -   ,CH000008640
Department of Health,NHS England,31/08/2014,GPMS/APMS and PCTMS,Primary Care & Secondary Dental,BOUGHTON MEDICAL GROUP,4670368,"68,209.03", -   ,CH000008641
Department of Health,NHS England,31/08/2014,GPMS/APMS and PCTMS,Primary Care & Secondary Dental,BOUNCES ROAD SURGERY,4746406,"28,187.56", -   ,LNE000006816
Department of Health,NHS England,31/08/2014,GPMS/APMS and PCTMS,Primary Care & Secondary Dental,BOUNDARY HOUSE SURGERY BRACKNELL,4694922,"48,970.10", -   ,BE000008175
Department of Health,NHS England,31/08/2014,GPMS/APMS and PCTMS,Primary Care & Secondary Dental,BOUNDARY HOUSE SURGERY LONDON,4596623,"39,081.15", -   ,LNE000006651
Department of Health,NHS England,31/08/2014,GPMS/APMS and PCTMS,Primary Care & Secondary Dental,BOUNDS GREEN GROUP PRACTICE,4596624,"104,934.48", -   ,LNE000006653
Department of Health,NHS England,31/08/2014,GPMS/APMS and PCTMS,Primary Care & Secondary Dental,BOURKE M & PARTNERS,4696347,"49,412.39", -   ,SY000009487
Department of Health,NHS England,31/08/2014,GPMS/APMS and PCTMS,Primary Care & Secondary Dental,BOUTPORT MEDICAL CENTRE,4694646,"30,830.87", -   ,DN000014547
Department of Health,NHS England,31/08/2014,GPMS/APMS and PCTMS,Primary Care & Secondary Dental,BOVEY TRACEY & CHUDLEIGH PRACTICE,4471638,"97,039.37", -   ,DN000014175
Department of Health,NHS England,31/08/2014,GPMS/APMS and PCTMS,Primary Care & Secondary Dental,BOWERS S & PARTNERS,4504557,"26,652.70", -   ,LIP000007588
Department of Health,NHS England,31/08/2014,GPMS/APMS and PCTMS,Primary Care & Secondary Dental,BOWERS S & PARTNERS,4676477,"-26,652.70", -   ,LIP000007868
Department of Health,NHS England,31/08/2014,GPMS/APMS and PCTMS,Primary Care & Secondary Dental,BOWERS S & PARTNERS,4676478,"43,178.90", -   ,LIP000007869
Department of Health,NHS England,31/08/2014,GPMS/APMS and PCTMS,Primary Care & Secondary Dental,BOWLAND MEDICAL PRACTICE,4758257,"51,070.94", -   ,MAN000004818
Department of Health,NHS England,31/08/2014,GPMS/APMS and PCTMS,Primary Care & Secondary Dental,BOWLEY C,4745941,"46,039.42", -   ,MAN000004820
Department of Health,NHS England,31/08/2014,GPMS/APMS and PCTMS,Primary Care & Secondary Dental,BOWLING GREEN ST SURGERY,4492035,"33,932.00", -   ,LD000010445
Department of Health,NHS England,31/08/2014,GPMS/APMS and PCTMS,Primary Care & Secondary Dental,BOWTON P A & PARTNER,4742335,"35,399.95", -   ,EX000021098
Department of Health,NHS England,31/08/2014,GPMS/APMS and PCTMS,Primary Care & Secondary Dental,BOX SURGERY,4577864,"-33,923.18", -   ,WL000007553
Department of Health,NHS England,31/08/2014,GPMS/APMS and PCTMS,Primary Care & Secondary Dental,BOX SURGERY,4577865,"39,713.33", -   ,WL000007554
Department of Health,NHS England,31/08/2014,GPMS/APMS and PCTMS,Primary Care & Secondary Dental,BOXWELL ROAD SURGERY,4724260,"30,767.97", -   ,HT000010940
Department of Health,NHS England,31/08/2014,GPMS/APMS and PCTMS,Primary Care & Secondary Dental,BOYATT WOOD SURGERY,4693953,"26,738.22", -   ,SO000018699
Department of Health,NHS England,31/08/2014,GPMS/APMS and PCTMS,Primary Care & Secondary Dental,BRACONDALE MEDICAL CENTRE,4725313,"28,226.12", -   ,SPT000002960
Department of Health,NHS England,31/08/2014,GPMS/APMS and PCTMS,Primary Care & Secondary Dental,BRADGATE SURGERY,4579206,"64,078.95", -   ,BRS000010157
Department of Health,NHS England,31/08/2014,GPMS/APMS and PCTMS,Primary Care & Secondary Dental,BRADLEY & PARTNERS,4696080,"69,606.46", -   ,LNN000005441
Department of Health,NHS England,31/08/2014,GPMS/APMS and PCTMS,Primary Care & Secondary Dental,BRADLEY STOKE SURGERY,4579204,"95,262.97", -   ,BRS000010155
Department of Health,NHS England,31/08/2014,GPMS/APMS and PCTMS,Primary Care & Secondary Dental,BRADY & PARTNERS,4701077,"67,432.63", -   ,LNN000005439
Department of Health,NHS England,31/08/2014,GPMS/APMS and PCTMS,Primary Care & Secondary Dental,BRAILSFORD & HULLAND MEDICAL PRACTICE,4674710,"36,950.11", -   ,DE000011382
Department of Health,NHS England,31/08/2014,GPMS/APMS and PCTMS,Primary Care & Secondary Dental,BRAITHWAITE SURGERY,4630663,"37,966.46", -   ,WIG000007573
Department of Health,NHS England,31/08/2014,GPMS/APMS and PCTMS,Primary Care & Secondary Dental,BRAMBLYS GRANGE MEDICAL PRACTICE,4693950,"67,772.33", -   ,SO000018695
Department of Health,NHS England,31/08/2014,GPMS/APMS and PCTMS,Primary Care & Secondary Dental,BRAMHALL HEALTH CENTRE,4725309,"70,083.52", -   ,SPT000002956
Department of Health,NHS England,31/08/2014,GPMS/APMS and PCTMS,Primary Care & Secondary Dental,BRAMHALL PARK MEDICAL CENTRE,4561312,"77,186.34", -   ,SPT000002875
Department of Health,NHS England,31/08/2014,GPMS/APMS and PCTMS,Primary Care & Secondary Dental,BRAMPTON MEDICAL PRACTICE,4677705,"97,874.26", -   ,CU000006110
Department of Health,NHS England,31/08/2014,GPMS/APMS and PCTMS,Primary Care & Secondary Dental,BRAMPTON MEDICAL PRACTICE,4724899,"49,452.54", -   ,CU000006375
Department of Health,NHS England,31/08/2014,GPMS/APMS and PCTMS,Primary Care & Secondary Dental,BRANCH END SURGERY,4577642,"33,140.96", -   ,NR000003861
Department of Health,NHS England,31/08/2014,GPMS/APMS and PCTMS,Primary Care & Secondary Dental,BRANDON MEDICAL PRACTICE,4543763,"50,420.76", -   ,SU000007797
Department of Health,NHS England,31/08/2014,GPMS/APMS and PCTMS,Primary Care & Secondary Dental,BRANKSOMEWOOD HEALTHCARE CENTRE,4541962,"-60,908.75", -   ,SO000018550
Department of Health,NHS England,31/08/2014,GPMS/APMS and PCTMS,Primary Care & Secondary Dental,BRANKSOMEWOOD HEALTHCARE CENTRE,4541963,"138,118.89", -   ,SO000018551
Department of Health,NHS England,31/08/2014,GPMS/APMS and PCTMS,Primary Care & Secondary Dental,BRANN & PARTNERS,4578752,"98,837.34", -   ,EX000020744
Department of Health,NHS England,31/08/2014,GPMS/APMS and PCTMS,Primary Care & Secondary Dental,BRANT ROAD SURGERY LINCOLN,4559615,"45,337.40", -   ,LL000009318
Department of Health,NHS England,31/08/2014,GPMS/APMS and PCTMS,Primary Care & Secondary Dental,BREACH & PARTNERS,4504730,"37,300.00", -   ,STL000006376
Department of Health,NHS England,31/08/2014,GPMS/APMS and PCTMS,Primary Care & Secondary Dental,BREACH & PARTNERS,4676131,"-37,300.00", -   ,STL000006613
Department of Health,NHS England,31/08/2014,GPMS/APMS and PCTMS,Primary Care & Secondary Dental,BREACH & PARTNERS,4676132,"52,115.22", -   ,STL000006614
Department of Health,NHS England,31/08/2014,GPMS/APMS and PCTMS,Primary Care & Secondary Dental,BREDBURY MEDICAL PRACTICE,4571958,"31,936.07", -   ,SPT000002877
Department of Health,NHS England,31/08/2014,GPMS/APMS and PCTMS,Primary Care & Secondary Dental,BREDON HILL SURGERY,4577394,"40,856.76", -   ,WR000007674
Department of Health,NHS England,31/08/2014,GPMS/APMS and PCTMS,Primary Care & Secondary Dental,BREMNER & PARTNERS,4504555,"28,339.58", -   ,LIP000007586
Department of Health,NHS England,31/08/2014,GPMS/APMS and PCTMS,Primary Care & Secondary Dental,BREMNER & PARTNERS,4676475,"-71,190.30", -   ,LIP000007866
Department of Health,NHS England,31/08/2014,GPMS/APMS and PCTMS,Primary Care & Secondary Dental,BREMNER & PARTNERS,4676476,"88,720.99", -   ,LIP000007867
Department of Health,NHS England,31/08/2014,GPMS/APMS and PCTMS,Primary Care & Secondary Dental,BRENNAN & PARTNERS,4504806,"42,639.00", -   ,BIK000003756
Department of Health,NHS England,31/08/2014,GPMS/APMS and PCTMS,Primary Care & Secondary Dental,BRENNAN & PARTNERS,4675949,"-109,848.12", -   ,BIK000003872
Department of Health,NHS England,31/08/2014,GPMS/APMS and PCTMS,Primary Care & Secondary Dental,BRENNAN & PARTNERS,4675953,"132,554.02", -   ,BIK000003873
Department of Health,NHS England,31/08/2014,GPMS/APMS and PCTMS,Primary Care & Secondary Dental,BRETTON MEDICAL PRACTICE,4725744,"-66,715.54", -   ,CB000009546
Department of Health,NHS England,31/08/2014,GPMS/APMS and PCTMS,Primary Care & Secondary Dental,BRETTON MEDICAL PRACTICE,4725745,"66,507.54", -   ,CB000009547
Department of Health,NHS England,31/08/2014,GPMS/APMS and PCTMS,Primary Care & Secondary Dental,BRIARWOOD MEDICAL CENTRE,4745297,"41,706.71", -   ,LA000012610
Department of Health,NHS England,31/08/2014,GPMS/APMS and PCTMS,Primary Care & Secondary Dental,BRIDGE COTTAGE SURGERY,4724268,"93,151.43", -   ,HT000010948
Department of Health,NHS England,31/08/2014,GPMS/APMS and PCTMS,Primary Care & Secondary Dental,BRIDGE HOUSE MEDICAL CENTRE,4738537,"57,405.86", -   ,WA000006332
Department of Health,NHS England,31/08/2014,GPMS/APMS and PCTMS,Primary Care & Secondary Dental,BRIDGE HOUSE SURGERY,4596625,"69,427.24", -   ,LNE000006655
Department of Health,NHS England,31/08/2014,GPMS/APMS and PCTMS,Primary Care & Secondary Dental,BRIDGE LANE GROUP PRACTICE,4579614,"104,844.42", -   ,LNP000009307
Department of Health,NHS England,31/08/2014,GPMS/APMS and PCTMS,Primary Care & Secondary Dental,BRIDGE MEDICAL CENTRE,4679037,"57,789.89", -   ,TW000011656
Department of Health,NHS England,31/08/2014,GPMS/APMS and PCTMS,Primary Care & Secondary Dental,BRIDGE STREET SURGERY,4740218,"44,350.46", -   ,KHU000008106
Department of Health,NHS England,31/08/2014,GPMS/APMS and PCTMS,Primary Care & Secondary Dental,BRIDGEGATE MEDICAL CENTRE,4677710,"58,074.76", -   ,CU000006116
Department of Health,NHS England,31/08/2014,GPMS/APMS and PCTMS,Primary Care & Secondary Dental,BRIDGEGATE SURGERY,4674872,"71,503.27", -   ,NN000012375
Department of Health,NHS England,31/08/2014,GPMS/APMS and PCTMS,Primary Care & Secondary Dental,BRIDGEMARY MEDICAL CENTRE,4541970,"-46,945.00", -   ,SO000018558
Department of Health,NHS England,31/08/2014,GPMS/APMS and PCTMS,Primary Care & Secondary Dental,BRIDGEMARY MEDICAL CENTRE,4541971,"106,444.81", -   ,SO000018559
Department of Health,NHS England,31/08/2014,GPMS/APMS and PCTMS,Primary Care & Secondary Dental,BRIDGES MEDICAL CENTRE,4596082,"87,178.65", -   ,DO000008407
Department of Health,NHS England,31/08/2014,GPMS/APMS and PCTMS,Primary Care & Secondary Dental,BRIDGES MEDICAL PRACTICE,4578104,"-33,168.42", -   ,GAT000003890
Department of Health,NHS England,31/08/2014,GPMS/APMS and PCTMS,Primary Care & Secondary Dental,BRIDGES MEDICAL PRACTICE,4578105,"62,087.42", -   ,GAT000003891
Department of Health,NHS England,31/08/2014,GPMS/APMS and PCTMS,Primary Care & Secondary Dental,BRIDGEWATER FAMILY MEDICAL PRACTICE,4696629,"29,598.42", -   ,SA000006667
Department of Health,NHS England,31/08/2014,GPMS/APMS and PCTMS,Primary Care & Secondary Dental,BRIDGNORTH MEDICAL PRACTICE,4696631,"228,050.82", -   ,SA000006669
Department of Health,NHS England,31/08/2014,GPMS/APMS and PCTMS,Primary Care & Secondary Dental,BRIDPORT MEDICAL CENTRE,4596083,"-30,469.94", -   ,DO000008408
Department of Health,NHS England,31/08/2014,GPMS/APMS and PCTMS,Primary Care & Secondary Dental,BRIDPORT MEDICAL CENTRE,4596084,"178,248.30", -   ,DO000008409
Department of Health,NHS England,31/08/2014,GPMS/APMS and PCTMS,Primary Care & Secondary Dental,BRIERCLIFFE SURGERY,4745702,"46,527.65", -   ,LA000013008
Department of Health,NHS England,31/08/2014,GPMS/APMS and PCTMS,Primary Care & Secondary Dental,BRIMINGTON SURGERY,4595980,"45,781.67", -   ,DE000011262
Department of Health,NHS England,31/08/2014,GPMS/APMS and PCTMS,Primary Care & Secondary Dental,BRINNINGTON HEALTH CENTRE BRINNINGTON,4561324,"32,581.05", -   ,SPT000002881
Department of Health,NHS England,31/08/2014,GPMS/APMS and PCTMS,Primary Care & Secondary Dental,BRINNINGTON HEALTH CENTRE STOCKPORT,4571959,"29,886.06", -   ,SPT000002883
Department of Health,NHS England,31/08/2014,GPMS/APMS and PCTMS,Primary Care & Secondary Dental,BRIXTON HILL GROUP PRACTICE,4580247,"75,805.94", -   ,LNS000011342
Department of Health,NHS England,31/08/2014,GPMS/APMS and PCTMS,Primary Care & Secondary Dental,BROAD LANE SURGERY,4577428,"71,124.76", -   ,COV000004068
Department of Health,NHS England,31/08/2014,GPMS/APMS and PCTMS,Primary Care & Secondary Dental,BROADMEAD MEDICAL CENTRE,4579208,"95,063.36", -   ,BRS000010159
Department of Health,NHS England,31/08/2014,GPMS/APMS and PCTMS,Primary Care & Secondary Dental,BROADMEAD SURGERY,4571898,"36,004.94", -   ,LNM000008172
Department of Health,NHS England,31/08/2014,GPMS/APMS and PCTMS,Primary Care & Secondary Dental,BROADSHIRES HEALTH CENTRE,4743543,"47,630.53", -   ,OX000007102
Department of Health,NHS England,31/08/2014,GPMS/APMS and PCTMS,Primary Care & Secondary Dental,BROADWATER MEDICAL CENTRE,4691424,"64,759.07", -   ,TW000011658
Department of Health,NHS England,31/08/2014,GPMS/APMS and PCTMS,Primary Care & Secondary Dental,BROADWAY MEDICAL CENTRE,4745299,"63,969.70", -   ,LA000012612
Department of Health,NHS England,31/08/2014,GPMS/APMS and PCTMS,Primary Care & Secondary Dental,BROADWAY PRACTICE,4767596,"-45,000.00", -   ,KC000022271
Department of Health,NHS England,31/08/2014,GPMS/APMS and PCTMS,Primary Care & Secondary Dental,BROADWAY PRACTICE,4770328,"90,000.00", -   ,KC000022272
Department of Health,NHS England,31/08/2014,GPMS/APMS and PCTMS,Primary Care & Secondary Dental,BROADWAY SURGERY,4691239,"29,879.26", -   ,LNB000005196
Department of Health,NHS England,31/08/2014,GPMS/APMS and PCTMS,Primary Care & Secondary Dental,BROCKHURST MEDICAL CENTRE,4693965,"26,104.61", -   ,SO000018711
Department of Health,NHS England,31/08/2014,GPMS/APMS and PCTMS,Primary Care & Secondary Dental,BROCKLEY SURGERY,4596458,"31,545.45", -   ,LNS000011344
Department of Health,NHS England,31/08/2014,GPMS/APMS and PCTMS,Primary Care & Secondary Dental,BROCKWELL MEDICAL GROUP,4577645,"-25,801.92", -   ,NR000003864
Department of Health,NHS England,31/08/2014,GPMS/APMS and PCTMS,Primary Care & Secondary Dental,BROCKWELL MEDICAL GROUP,4577646,"101,243.48", -   ,NR000003865
Department of Health,NHS England,31/08/2014,GPMS/APMS and PCTMS,Primary Care & Secondary Dental,BROCKWELL PARK,4596459,"48,993.26", -   ,LNS000011346
Department of Health,NHS England,31/08/2014,GPMS/APMS and PCTMS,Primary Care & Secondary Dental,BROCKWOOD MEDICAL PRACTICE,4581988,"80,597.90", -   ,SY000009365
Department of Health,NHS England,31/08/2014,GPMS/APMS and PCTMS,Primary Care & Secondary Dental,BRODBIN & PARTNERS,4675974,"33,039.14", -   ,BIK000003880
Department of Health,NHS England,31/08/2014,GPMS/APMS and PCTMS,Primary Care & Secondary Dental,BROKEN CROSS SURGERY,4658646,"33,312.77", -   ,CH000008645
Department of Health,NHS England,31/08/2014,GPMS/APMS and PCTMS,Primary Care & Secondary Dental,BROMLEY COMMON PRACTICE,4652066,"48,675.89", -   ,LNT000004028
Department of Health,NHS England,31/08/2014,GPMS/APMS and PCTMS,Primary Care & Secondary Dental,BRONDESBURY MEDICAL CENTRE,4580413,"113,705.33", -   ,LND000005924
Department of Health,NHS England,31/08/2014,GPMS/APMS and PCTMS,Primary Care & Secondary Dental,BROOK GREEN MEDICAL CENTRE,4709733,"69,363.32", -   ,LNM000008381
Department of Health,NHS England,31/08/2014,GPMS/APMS and PCTMS,Primary Care & Secondary Dental,BROOK HEALTH CENTRE,4577252,"56,918.25", -   ,NO000006857
Department of Health,NHS England,31/08/2014,GPMS/APMS and PCTMS,Primary Care & Secondary Dental,BROOK LANE SURGERY,4693969,"61,757.69", -   ,SO000018715
Department of Health,NHS England,31/08/2014,GPMS/APMS and PCTMS,Primary Care & Secondary Dental,BROOK MEDICAL CENTRE,4741640,"36,754.68", -   ,NO000007002
Department of Health,NHS England,31/08/2014,GPMS/APMS and PCTMS,Primary Care & Secondary Dental,BROOKE SURGERY,4561120,"66,388.40", -   ,GMK000004339
Department of Health,NHS England,31/08/2014,GPMS/APMS and PCTMS,Primary Care & Secondary Dental,BROOKES & LEE,4504563,"25,518.92", -   ,LIP000007594
Department of Health,NHS England,31/08/2014,GPMS/APMS and PCTMS,Primary Care & Secondary Dental,BROOKES & LEE,4676483,"-65,083.97", -   ,LIP000007874
Department of Health,NHS England,31/08/2014,GPMS/APMS and PCTMS,Primary Care & Secondary Dental,BROOKES & LEE,4676484,"83,434.85", -   ,LIP000007875
Department of Health,NHS England,31/08/2014,GPMS/APMS and PCTMS,Primary Care & Secondary Dental,BROOKFIELD SURGERY,4492387,"33,100.00", -   ,CH000008394
Department of Health,NHS England,31/08/2014,GPMS/APMS and PCTMS,Primary Care & Secondary Dental,BROOKFIELD SURGERY,4658647,"-33,118.00", -   ,CH000008646
Department of Health,NHS England,31/08/2014,GPMS/APMS and PCTMS,Primary Care & Secondary Dental,BROOKFIELD SURGERY,4658648,"48,697.18", -   ,CH000008647
Department of Health,NHS England,31/08/2014,GPMS/APMS and PCTMS,Primary Care & Secondary Dental,BROOKHOUSE MEDICAL CENTRE,4758233,"32,424.09", -   ,LA000012614
Department of Health,NHS England,31/08/2014,GPMS/APMS and PCTMS,Primary Care & Secondary Dental,BROOKSIDE GROUP PRACTICE,4701048,"150,993.99", -   ,BE000008180
Department of Health,NHS England,31/08/2014,GPMS/APMS and PCTMS,Primary Care & Secondary Dental,BROOKSIDE HEALTH CENTRE,4693971,"77,503.63", -   ,SO000018717
Department of Health,NHS England,31/08/2014,GPMS/APMS and PCTMS,Primary Care & Secondary Dental,BROOM LEYS SURGERY,4492039,"52,309.92", -   ,LD000010447
Department of Health,NHS England,31/08/2014,GPMS/APMS and PCTMS,Primary Care & Secondary Dental,BROOMHILL SURGERY,4740389,"49,561.60", -   ,SHE000005362
Department of Health,NHS England,31/08/2014,GPMS/APMS and PCTMS,Primary Care & Secondary Dental,BROOMWOOD ROAD SURGERY,4652067,"64,360.10", -   ,LNT000004030
Department of Health,NHS England,31/08/2014,GPMS/APMS and PCTMS,Primary Care & Secondary Dental,BROSELEY MEDICAL PRACTICE,4696633,"30,591.89", -   ,SA000006671
Department of Health,NHS England,31/08/2014,GPMS/APMS and PCTMS,Primary Care & Secondary Dental,BROW MEDICAL CENTRE,4679040,"33,121.32", -   ,TW000011660
Department of Health,NHS England,31/08/2014,GPMS/APMS and PCTMS,Primary Care & Secondary Dental,BROWN B J & PARTNERS,4742339,"38,053.73", -   ,EX000021102
Department of Health,NHS England,31/08/2014,GPMS/APMS and PCTMS,Primary Care & Secondary Dental,BROWNHILL SURGERY,4693973,"37,584.99", -   ,SO000018719
Department of Health,NHS England,31/08/2014,GPMS/APMS and PCTMS,Primary Care & Secondary Dental,BRUNE MEDICAL CENTRE,4693975,"77,884.46", -   ,SO000018721
Department of Health,NHS England,31/08/2014,GPMS/APMS and PCTMS,Primary Care & Secondary Dental,BRUNSWICK HOUSE MEDICAL GROUP,4677712,"90,336.80", -   ,CU000006118
Department of Health,NHS England,31/08/2014,GPMS/APMS and PCTMS,Primary Care & Secondary Dental,BRUNSWICK SURGERY,4677260,"41,487.36", -   ,TE000009948
Department of Health,NHS England,31/08/2014,GPMS/APMS and PCTMS,Primary Care & Secondary Dental,BRYANT STREET,4636679,"37,364.76", -   ,KC000021603
Department of Health,NHS England,31/08/2014,GPMS/APMS and PCTMS,Primary Care & Secondary Dental,BUCHANAN ROAD SURGERY,4740382,"31,318.44", -   ,SHE000005358
Department of Health,NHS England,31/08/2014,GPMS/APMS and PCTMS,Primary Care & Secondary Dental,BUCKFASTLEIGH MEDICAL CENTRE,4694649,"29,639.95", -   ,DN000014552
Department of Health,NHS England,31/08/2014,GPMS/APMS and PCTMS,Primary Care & Secondary Dental,BUCKLAND MEDICAL CENTRE,4652061,"26,250.91", -   ,KC000022029
Department of Health,NHS England,31/08/2014,GPMS/APMS and PCTMS,Primary Care & Secondary Dental,BUGBROOKE MEDICAL PRACTICE,4577245,"67,386.42", -   ,NO000006852
Department of Health,NHS England,31/08/2014,GPMS/APMS and PCTMS,Primary Care & Secondary Dental,BUNBURY MEDICAL PRACTICE,4492385,"37,100.00", -   ,CH000008392
Department of Health,NHS England,31/08/2014,GPMS/APMS and PCTMS,Primary Care & Secondary Dental,BUNBURY MEDICAL PRACTICE,4658643,"-38,798.66", -   ,CH000008642
Department of Health,NHS England,31/08/2014,GPMS/APMS and PCTMS,Primary Care & Secondary Dental,BUNBURY MEDICAL PRACTICE,4658644,"52,959.41", -   ,CH000008643
Department of Health,NHS England,31/08/2014,GPMS/APMS and PCTMS,Primary Care & Secondary Dental,BUNTINGFORD MEDICAL CENTRE,4724262,"35,064.88", -   ,HT000010942
Department of Health,NHS England,31/08/2014,GPMS/APMS and PCTMS,Primary Care & Secondary Dental,BURDWOOD SURGERY,4596195,"63,418.21", -   ,BE000008073
Department of Health,NHS England,31/08/2014,GPMS/APMS and PCTMS,Primary Care & Secondary Dental,BURGESS H,4561543,"63,056.50", -   ,MAN000004687
Department of Health,NHS England,31/08/2014,GPMS/APMS and PCTMS,Primary Care & Secondary Dental,BURGESS ROAD SURGERY,4541968,"-64,259.42", -   ,SO000018556
Department of Health,NHS England,31/08/2014,GPMS/APMS and PCTMS,Primary Care & Secondary Dental,BURGESS ROAD SURGERY,4541969,"133,695.29", -   ,SO000018557
Department of Health,NHS England,31/08/2014,GPMS/APMS and PCTMS,Primary Care & Secondary Dental,BURN BRAE MEDICAL GROUP,4577644,"58,959.21", -   ,NR000003863
Department of Health,NHS England,31/08/2014,GPMS/APMS and PCTMS,Primary Care & Secondary Dental,BURNCROSS SURGERY,4576305,"99,730.88", -   ,SHE000005185
Department of Health,NHS England,31/08/2014,GPMS/APMS and PCTMS,Primary Care & Secondary Dental,BURNGREAVE SURGERY,4576307,"44,643.53", -   ,SHE000005187
Department of Health,NHS England,31/08/2014,GPMS/APMS and PCTMS,Primary Care & Secondary Dental,BURNHAM HEALTH CENTRE,4676331,"102,162.39",143053938,BU000006230
Department of Health,NHS England,31/08/2014,GPMS/APMS and PCTMS,Primary Care & Secondary Dental,BURNHAM MEDICAL CENTRE,4758045,"107,636.76", -   ,SM000004937
Department of Health,NHS England,31/08/2014,GPMS/APMS and PCTMS,Primary Care & Secondary Dental,BURNLEY MEDICAL PRACTICE,4687543,"29,782.82", -   ,LNL000006820
Department of Health,NHS England,31/08/2014,GPMS/APMS and PCTMS,Primary Care & Secondary Dental,BURNLEY WOOD MEDICAL CENTRE,4745291,"37,430.68", -   ,LA000012604
Department of Health,NHS England,31/08/2014,GPMS/APMS and PCTMS,Primary Care & Secondary Dental,BURNS A & PARTNERS,4696349,"43,481.37", -   ,SY000009489
Department of Health,NHS England,31/08/2014,GPMS/APMS and PCTMS,Primary Care & Secondary Dental,BURNTWOOD HEALTH & WELLBEING CENTRE,4582321,"61,583.33", -   ,ST000015569
Department of Health,NHS England,31/08/2014,GPMS/APMS and PCTMS,Primary Care & Secondary Dental,BURRELL & PARTNERS,4579047,"-95,104.33", -   ,DR000006242
Department of Health,NHS England,31/08/2014,GPMS/APMS and PCTMS,Primary Care & Secondary Dental,BURRELL & PARTNERS,4579048,"182,655.65", -   ,DR000006243
Department of Health,NHS England,31/08/2014,GPMS/APMS and PCTMS,Primary Care & Secondary Dental,BURSTED WOOD SURGERY,4596671,"31,227.14", -   ,LNW000004172
Department of Health,NHS England,31/08/2014,GPMS/APMS and PCTMS,Primary Care & Secondary Dental,BURSTED WOOD SURGERY,4726428,"36,543.34", -   ,LNW000004336
Department of Health,NHS England,31/08/2014,GPMS/APMS and PCTMS,Primary Care & Secondary Dental,BURTON & BRANSGORE MEDICAL CENTRES,4596078,"58,142.00", -   ,DO000008403
Department of Health,NHS England,31/08/2014,GPMS/APMS and PCTMS,Primary Care & Secondary Dental,BURTON LATIMER HEALTH CENTRE,4577247,"74,990.67", -   ,NO000006854
Department of Health,NHS England,31/08/2014,GPMS/APMS and PCTMS,Primary Care & Secondary Dental,BURVILL HOUSE SURGERY,4578853,"62,564.84", -   ,HT000010755
Department of Health,NHS England,31/08/2014,GPMS/APMS and PCTMS,Primary Care & Secondary Dental,BURWELL SURGERY,4725432,"44,288.33", -   ,CB000009513
Department of Health,NHS England,31/08/2014,GPMS/APMS and PCTMS,Primary Care & Secondary Dental,BURY KNOWLE HEALTH CENTRE,4578621,"93,073.42", -   ,OX000006970
Department of Health,NHS England,31/08/2014,GPMS/APMS and PCTMS,Primary Care & Secondary Dental,BUSH & PARTNERS,4504808,"49,322.77", -   ,BIK000003757
Department of Health,NHS England,31/08/2014,GPMS/APMS and PCTMS,Primary Care & Secondary Dental,BUSH & PARTNERS,4675956,"-131,656.44", -   ,BIK000003874
Department of Health,NHS England,31/08/2014,GPMS/APMS and PCTMS,Primary Care & Secondary Dental,BUSH & PARTNERS,4675960,"162,105.12", -   ,BIK000003875
Department of Health,NHS England,31/08/2014,GPMS/APMS and PCTMS,Primary Care & Secondary Dental,BUSHFIELD HEALTH CENTRE,4725434,"29,541.86", -   ,CB000009515
Department of Health,NHS England,31/08/2014,GPMS/APMS and PCTMS,Primary Care & Secondary Dental,BUTCHERY SURGERY,4652023,"28,019.20", -   ,KC000021598
Department of Health,NHS England,31/08/2014,GPMS/APMS and PCTMS,Primary Care & Secondary Dental,BUTE HOUSE MEDICAL PRACTICE,4724159,"46,340.91", -   ,BD000007005
Department of Health,NHS England,31/08/2014,GPMS/APMS and PCTMS,Primary Care & Secondary Dental,BUTE HOUSE SURGERY,4596080,"39,680.18", -   ,DO000008405
Department of Health,NHS England,31/08/2014,GPMS/APMS and PCTMS,Primary Care & Secondary Dental,BUTLER S & PARTNERS,4742337,"57,575.97", -   ,EX000021100
Department of Health,NHS England,31/08/2014,GPMS/APMS and PCTMS,Primary Care & Secondary Dental,BUXTED SURGERY,4677087,"59,735.52", -   ,TE000009764
Department of Health,NHS England,31/08/2014,GPMS/APMS and PCTMS,Primary Care & Secondary Dental,BUXTED SURGERY,4695926,"26,912.33", -   ,TE000009996
Department of Health,NHS England,31/08/2014,GPMS/APMS and PCTMS,Primary Care & Secondary Dental,BUXTON MEDICAL PRACTICE,4674834,"45,859.58", -   ,DE000011524
Department of Health,NHS England,31/08/2014,GPMS/APMS and PCTMS,Primary Care & Secondary Dental,BYFIELD MEDICAL CENTRE,4741638,"47,764.14", -   ,NO000007000
Department of Health,NHS England,31/08/2014,GPMS/APMS and PCTMS,Primary Care & Secondary Dental,C J D PEACH,4579608,"77,885.39", -   ,LNP000009297
Department of Health,NHS England,31/08/2014,GPMS/APMS and PCTMS,Primary Care & Secondary Dental,C J ELLIOTT,4596317,"88,056.61", -   ,LNP000009299
Department of Health,NHS England,31/08/2014,GPMS/APMS and PCTMS,Primary Care & Secondary Dental,C M KROLL,4579610,"84,515.32", -   ,LNP000009301
Department of Health,NHS England,31/08/2014,GPMS/APMS and PCTMS,Primary Care & Secondary Dental,C PERERA,4596319,"35,413.85", -   ,LNP000009303
Department of Health,NHS England,31/08/2014,GPMS/APMS and PCTMS,Primary Care & Secondary Dental,C RIBEIRO,4579612,"77,605.35", -   ,LNP000009305
Department of Health,NHS England,31/08/2014,GPMS/APMS and PCTMS,Primary Care & Secondary Dental,C TRAN,4595890,"29,408.48", -   ,LNC000005716
Department of Health,NHS England,31/08/2014,GPMS/APMS and PCTMS,Primary Care & Secondary Dental,CA STEDALL,4691389,"32,271.67", -   ,WAL000003682
Department of Health,NHS England,31/08/2014,GPMS/APMS and PCTMS,Primary Care & Secondary Dental,CABIN SURGERY,4745295,"26,241.01", -   ,LA000012608
Department of Health,NHS England,31/08/2014,GPMS/APMS and PCTMS,Primary Care & Secondary Dental,CADDINGTON MEDICAL PRACTICE,4738472,"31,489.54", -   ,BD000007007
Department of Health,NHS England,31/08/2014,GPMS/APMS and PCTMS,Primary Care & Secondary Dental,CAEN MEDICAL CENTRE,4471648,"79,381.66", -   ,DN000014185
Department of Health,NHS England,31/08/2014,GPMS/APMS and PCTMS,Primary Care & Secondary Dental,CAERLEON SURGERY,4691167,"25,721.31", -   ,WOM000003494
Department of Health,NHS England,31/08/2014,GPMS/APMS and PCTMS,Primary Care & Secondary Dental,CALCOT MEDICAL CENTRE,4676333,"48,833.28", -   ,BU000006232
Department of Health,NHS England,31/08/2014,GPMS/APMS and PCTMS,Primary Care & Secondary Dental,CALDBECK SURGERY,4677708,"28,700.89", -   ,CU000006114
Department of Health,NHS England,31/08/2014,GPMS/APMS and PCTMS,Primary Care & Secondary Dental,CALLAGHAN JM & PARTNERS,4504561,"31,345.43", -   ,LIP000007592
Department of Health,NHS England,31/08/2014,GPMS/APMS and PCTMS,Primary Care & Secondary Dental,CALLAGHAN JM & PARTNERS,4676481,"-31,345.43", -   ,LIP000007872
Department of Health,NHS England,31/08/2014,GPMS/APMS and PCTMS,Primary Care & Secondary Dental,CALLAGHAN JM & PARTNERS,4676482,"49,698.44", -   ,LIP000007873
Department of Health,NHS England,31/08/2014,GPMS/APMS and PCTMS,Primary Care & Secondary Dental,CALLOWLAND SURGERY,4724266,"58,726.99", -   ,HT000010946
Department of Health,NHS England,31/08/2014,GPMS/APMS and PCTMS,Primary Care & Secondary Dental,CALOW AND BRIMINGTON PRACTICE,4576563,"37,143.25", -   ,DE000011270
Department of Health,NHS England,31/08/2014,GPMS/APMS and PCTMS,Primary Care & Secondary Dental,CAMBERWELL GREEN SURGERY,4580246,"129,374.87", -   ,LNS000011340
Department of Health,NHS England,31/08/2014,GPMS/APMS and PCTMS,Primary Care & Secondary Dental,CAMBERWELL GREEN SURGERY,4596455,"-32,233.32", -   ,LNS000011339
Department of Health,NHS England,31/08/2014,GPMS/APMS and PCTMS,Primary Care & Secondary Dental,CAMBRIAN MEDICAL CENTRE,4696728,"74,112.58", -   ,SA000006769
Department of Health,NHS England,31/08/2014,GPMS/APMS and PCTMS,Primary Care & Secondary Dental,CAMBRIDGE ACCESS SURGERY,4556651,"34,369.83", -   ,CB000009338
Department of Health,NHS England,31/08/2014,GPMS/APMS and PCTMS,Primary Care & Secondary Dental,CAMBRIDGE AVENUE MEDICAL CENTRE,4758024,"90,156.04", -   ,KHU000008104
Department of Health,NHS England,31/08/2014,GPMS/APMS and PCTMS,Primary Care & Secondary Dental,CAMBRIDGE MEDICAL GROUP,4652002,"47,674.12", -   ,MID000005748
Department of Health,NHS England,31/08/2014,GPMS/APMS and PCTMS,Primary Care & Secondary Dental,CAMPHOR IA,4675968,"27,908.47", -   ,BIK000003878
Department of Health,NHS England,31/08/2014,GPMS/APMS and PCTMS,Primary Care & Secondary Dental,CAMROSE MEDICAL PARTNERSHIP,4693963,"63,312.52", -   ,SO000018709
Department of Health,NHS England,31/08/2014,GPMS/APMS and PCTMS,Primary Care & Secondary Dental,CANBERRA CENTRE FOR HEALTH,4561362,"40,139.90", -   ,LNM000008170
Department of Health,NHS England,31/08/2014,GPMS/APMS and PCTMS,Primary Care & Secondary Dental,CANBURY MEDICAL CENTRE,4696082,"51,589.19", -   ,LNN000005443
Department of Health,NHS England,31/08/2014,GPMS/APMS and PCTMS,Primary Care & Secondary Dental,CANFORD HEATH GROUP PRACTICE,4596075,"-30,766.68", -   ,DO000008400
Department of Health,NHS England,31/08/2014,GPMS/APMS and PCTMS,Primary Care & Secondary Dental,CANFORD HEATH GROUP PRACTICE,4596076,"122,870.65", -   ,DO000008401
Department of Health,NHS England,31/08/2014,GPMS/APMS and PCTMS,Primary Care & Secondary Dental,CANNINGTON HEALTH CENTRE,4740843,"33,236.40", -   ,SM000004935
Department of Health,NHS England,31/08/2014,GPMS/APMS and PCTMS,Primary Care & Secondary Dental,CANTERBURY MEDICAL PRACTICE,4637063,"78,074.48", -   ,KC000022023
Department of Health,NHS England,31/08/2014,GPMS/APMS and PCTMS,Primary Care & Secondary Dental,CANUTE SURGERY,4693955,"25,277.64", -   ,SO000018701
Department of Health,NHS England,31/08/2014,GPMS/APMS and PCTMS,Primary Care & Secondary Dental,CAPE ROAD SURGERY,4725763,"27,038.61", -   ,WA000006330
Department of Health,NHS England,31/08/2014,GPMS/APMS and PCTMS,Primary Care & Secondary Dental,CAPELFIELD SURGERY,4581986,"68,223.37", -   ,SY000009363
Department of Health,NHS England,31/08/2014,GPMS/APMS and PCTMS,Primary Care & Secondary Dental,CAPLAN M,4758258,"39,857.26", -   ,MAN000004825
Department of Health,NHS England,31/08/2014,GPMS/APMS and PCTMS,Primary Care & Secondary Dental,CAPTAIN FRENCH LANE SURGERY,4691343,"50,882.61", -   ,CU000006112
Department of Health,NHS England,31/08/2014,GPMS/APMS and PCTMS,Primary Care & Secondary Dental,CARE HOME MEDICAL PRACTICE,4492500,"87,445.58", -   ,SLF000005024
Department of Health,NHS England,31/08/2014,GPMS/APMS and PCTMS,Primary Care & Secondary Dental,CARE UK CLINICAL SERVICES LTD,4651000,"36,625.43",594959072,120039400
Department of Health,NHS England,31/08/2014,GPMS/APMS and PCTMS,Primary Care & Secondary Dental,CARE UK CLINICAL SERVICES LTD,4651063,"146,572.00",594959072,120039488
Department of Health,NHS England,31/08/2014,GPMS/APMS and PCTMS,Primary Care & Secondary Dental,CARE UK CLINICAL SERVICES LTD,4756661,"86,089.42",594959072,120039554
Department of Health,NHS England,31/08/2014,GPMS/APMS and PCTMS,Primary Care & Secondary Dental,CARE UK CLINICAL SERVICES LTD BIRMINGHAM,4679328,"91,666.67", -   ,BIR000010035
Department of Health,NHS England,31/08/2014,GPMS/APMS and PCTMS,Primary Care & Secondary Dental,CARE UK CLINICAL SERVICES LTD SOUTHEND ON SEA,4578754,"91,000.00", -   ,EX000020746
Department of Health,NHS England,31/08/2014,GPMS/APMS and PCTMS,Primary Care & Secondary Dental,CARE UK LTD,4576035,"49,915.76", -   ,LNC000005764
Department of Health,NHS England,31/08/2014,GPMS/APMS and PCTMS,Primary Care & Secondary Dental,CAREPOINT PRACTICE,4613993,"30,964.13", -   ,LNK000002501
Department of Health,NHS England,31/08/2014,GPMS/APMS and PCTMS,Primary Care & Secondary Dental,CARFAX HEALTH ENTERPRISE,4577866,"-42,682.90", -   ,WL000007555
Department of Health,NHS England,31/08/2014,GPMS/APMS and PCTMS,Primary Care & Secondary Dental,CARFAX HEALTH ENTERPRISE,4596177,"199,237.20", -   ,WL000007556
Department of Health,NHS England,31/08/2014,GPMS/APMS and PCTMS,Primary Care & Secondary Dental,CARISBROOKE HEALTH CENTRE,4693957,"58,154.96", -   ,SO000018703
Department of Health,NHS England,31/08/2014,GPMS/APMS and PCTMS,Primary Care & Secondary Dental,CARISBROOKE SURGERY,4691296,"46,049.40", -   ,TE000009762
Department of Health,NHS England,31/08/2014,GPMS/APMS and PCTMS,Primary Care & Secondary Dental,CARITAS GENERAL PRACTICE PARTNERSHIP,4561319,"82,543.92", -   ,SPT000002879
Department of Health,NHS England,31/08/2014,GPMS/APMS and PCTMS,Primary Care & Secondary Dental,CARITAS GROUP PRACTICE,4615625,"-79,948.88", -   ,YW000007267
Department of Health,NHS England,31/08/2014,GPMS/APMS and PCTMS,Primary Care & Secondary Dental,CARITAS GROUP PRACTICE,4615627,"154,462.05", -   ,YW000007268
Department of Health,NHS England,31/08/2014,GPMS/APMS and PCTMS,Primary Care & Secondary Dental,CARLISLE HOUSE SURGERY,4694205,"35,225.36", -   ,DO000008614
Department of Health,NHS England,31/08/2014,GPMS/APMS and PCTMS,Primary Care & Secondary Dental,CARLTON HOUSE SURGERY,4758283,"67,635.05", -   ,LNE000006821
Department of Health,NHS England,31/08/2014,GPMS/APMS and PCTMS,Primary Care & Secondary Dental,CARODOC SURGERY,4726225,"36,422.94", -   ,DR000006499
Department of Health,NHS England,31/08/2014,GPMS/APMS and PCTMS,Primary Care & Secondary Dental,CARRINGTON HOUSE SURGERY,4691196,"48,239.17", -   ,BU000006240
Department of Health,NHS England,31/08/2014,GPMS/APMS and PCTMS,Primary Care & Secondary Dental,CARSHALTON FIELDS SURGERY,4596415,"26,352.68", -   ,LNP000009447
Department of Health,NHS England,31/08/2014,GPMS/APMS and PCTMS,Primary Care & Secondary Dental,CARTERKNOWLE & DORE MEDICAL PRACTICE,4740397,"67,009.46", -   ,SHE000005366
Department of Health,NHS England,31/08/2014,GPMS/APMS and PCTMS,Primary Care & Secondary Dental,CASSIDY MEDICAL CENTRE,4561364,"64,799.95", -   ,LNM000008174
Department of Health,NHS England,31/08/2014,GPMS/APMS and PCTMS,Primary Care & Secondary Dental,CASTLE GARDENS MEDICAL CENTRE,4742352,"46,400.66", -   ,EX000021116
Department of Health,NHS England,31/08/2014,GPMS/APMS and PCTMS,Primary Care & Secondary Dental,CASTLE GARDENS SURGERY,4694667,"42,223.74", -   ,DN000014573
Department of Health,NHS England,31/08/2014,GPMS/APMS and PCTMS,Primary Care & Secondary Dental,CASTLE MEADOWS SURGERY,4677021,"30,152.15", -   ,DUD000002473
Department of Health,NHS England,31/08/2014,GPMS/APMS and PCTMS,Primary Care & Secondary Dental,CASTLE MEDICAL CENTRE,4738540,"67,825.74", -   ,WA000006338
Department of Health,NHS England,31/08/2014,GPMS/APMS and PCTMS,Primary Care & Secondary Dental,CASTLE MEDICAL GROUP,4745301,"82,327.84", -   ,LA000012616
Department of Health,NHS England,31/08/2014,GPMS/APMS and PCTMS,Primary Care & Secondary Dental,CASTLE PRACTICE,4492207,"41,968.23", -   ,CR000005429
Department of Health,NHS England,31/08/2014,GPMS/APMS and PCTMS,Primary Care & Secondary Dental,CASTLE ST,4724171,"59,002.74", -   ,BD000007011
Department of Health,NHS England,31/08/2014,GPMS/APMS and PCTMS,Primary Care & Secondary Dental,CASTLEFORD MEDICAL PRACTICE,4559723,"-49,431.33", -   ,WAK000003335
Department of Health,NHS England,31/08/2014,GPMS/APMS and PCTMS,Primary Care & Secondary Dental,CASTLEFORD MEDICAL PRACTICE,4559724,"99,181.37", -   ,WAK000003336
Department of Health,NHS England,31/08/2014,GPMS/APMS and PCTMS,Primary Care & Secondary Dental,CASTLEGATE SURGERY COCKERMOUTH,4691344,"61,039.31", -   ,CU000006122
Department of Health,NHS England,31/08/2014,GPMS/APMS and PCTMS,Primary Care & Secondary Dental,CASTLEGATE SURGERY HERTFORD,4724278,"35,998.50", -   ,HT000010958
Department of Health,NHS England,31/08/2014,GPMS/APMS and PCTMS,Primary Care & Secondary Dental,CASTLEHEAD MEDICAL CENTRE,4677717,"43,183.56", -   ,CU000006124
Department of Health,NHS England,31/08/2014,GPMS/APMS and PCTMS,Primary Care & Secondary Dental,CASTLETON HEALTH CENTRE,4725083,"64,546.52", -   ,ROC000004095
Department of Health,NHS England,31/08/2014,GPMS/APMS and PCTMS,Primary Care & Secondary Dental,CATER STREET SURGERY,4578897,"37,716.25", -   ,BD000006859
Department of Health,NHS England,31/08/2014,GPMS/APMS and PCTMS,Primary Care & Secondary Dental,CATHEDRAL MEDICAL CENTRE,4556641,"61,756.49", -   ,CB000009170
Department of Health,NHS England,31/08/2014,GPMS/APMS and PCTMS,Primary Care & Secondary Dental,CATHEDRAL MEDICAL GROUP,4582171,"77,174.93", -   ,TW000011277
Department of Health,NHS England,31/08/2014,GPMS/APMS and PCTMS,Primary Care & Secondary Dental,CATOR MEDICAL CENTRE,4637625,"146,820.37", -   ,LNT000004038
Department of Health,NHS England,31/08/2014,GPMS/APMS and PCTMS,Primary Care & Secondary Dental,CATTERICK VILLAGE SURGERY,4596291,"45,900.23", -   ,YN000007690
Department of Health,NHS England,31/08/2014,GPMS/APMS and PCTMS,Primary Care & Secondary Dental,CAUSEWAY MEDICAL CENTRE,4492391,"29,200.00", -   ,CH000008398
Department of Health,NHS England,31/08/2014,GPMS/APMS and PCTMS,Primary Care & Secondary Dental,CAUSEWAY MEDICAL CENTRE,4658655,"-29,212.00", -   ,CH000008654
Department of Health,NHS England,31/08/2014,GPMS/APMS and PCTMS,Primary Care & Secondary Dental,CAUSEWAY MEDICAL CENTRE,4658656,"41,673.06", -   ,CH000008655
Department of Health,NHS England,31/08/2014,GPMS/APMS and PCTMS,Primary Care & Secondary Dental,CAVENDISH HEALTH CENTRE,4582240,"43,672.36", -   ,LNJ000005287
Department of Health,NHS England,31/08/2014,GPMS/APMS and PCTMS,Primary Care & Secondary Dental,CAVENDISH HEALTH CENTRE,4710033,"41,286.36", -   ,LNJ000005548
Department of Health,NHS England,31/08/2014,GPMS/APMS and PCTMS,Primary Care & Secondary Dental,CAVERSHAM GROUP PRACTICE,4758353,"93,623.97", -   ,LND000006113
Department of Health,NHS England,31/08/2014,GPMS/APMS and PCTMS,Primary Care & Secondary Dental,CAXTON SURGERY,4678880,"84,071.78", -   ,SA000006593
Department of Health,NHS England,31/08/2014,GPMS/APMS and PCTMS,Primary Care & Secondary Dental,CECIL LOBO,4575912,"95,452.97", -   ,LNA000008235
Department of Health,NHS England,31/08/2014,GPMS/APMS and PCTMS,Primary Care & Secondary Dental,CEDAR BROOK PRACTICE,4543828,"-65,809.87", -   ,LNK000002422
Department of Health,NHS England,31/08/2014,GPMS/APMS and PCTMS,Primary Care & Secondary Dental,CEDAR BROOK PRACTICE,4556620,"132,088.08", -   ,LNK000002423
Department of Health,NHS England,31/08/2014,GPMS/APMS and PCTMS,Primary Care & Secondary Dental,CEDAR MEDICAL PRACTICE,4758025,"35,700.60", -   ,KHU000008112
Department of Health,NHS England,31/08/2014,GPMS/APMS and PCTMS,Primary Care & Secondary Dental,CEDAR PRACTICE,4691054,"39,790.52", -   ,LNA000008436
Department of Health,NHS England,31/08/2014,GPMS/APMS and PCTMS,Primary Care & Secondary Dental,CEDARS MEDICAL CENTRE,4492392,"42,800.00", -   ,CH000008399
Department of Health,NHS England,31/08/2014,GPMS/APMS and PCTMS,Primary Care & Secondary Dental,CEDARS MEDICAL CENTRE,4600960,"25,234.71", -   ,LNK000002507
Department of Health,NHS England,31/08/2014,GPMS/APMS and PCTMS,Primary Care & Secondary Dental,CEDARS MEDICAL CENTRE,4658657,"-42,815.00", -   ,CH000008656
Department of Health,NHS England,31/08/2014,GPMS/APMS and PCTMS,Primary Care & Secondary Dental,CEDARS MEDICAL CENTRE,4658658,"57,375.01", -   ,CH000008657
Department of Health,NHS England,31/08/2014,GPMS/APMS and PCTMS,Primary Care & Secondary Dental,CEDARS MEDICAL GROUP,4579051,"-55,336.66", -   ,DR000006246
Department of Health,NHS England,31/08/2014,GPMS/APMS and PCTMS,Primary Care & Secondary Dental,CEDARS MEDICAL GROUP,4579052,"98,929.24", -   ,DR000006247
Department of Health,NHS England,31/08/2014,GPMS/APMS and PCTMS,Primary Care & Secondary Dental,CEDARS SURGERY,4637043,"66,132.05", -   ,KC000022002
Department of Health,NHS England,31/08/2014,GPMS/APMS and PCTMS,Primary Care & Secondary Dental,CEDARS SURGERY MAIDENHEAD,4701049,"57,890.54", -   ,BE000008186
Department of Health,NHS England,31/08/2014,GPMS/APMS and PCTMS,Primary Care & Secondary Dental,CEDARS SURGERY WESTON MARE,4579220,"41,445.65", -   ,BRS000010171
Department of Health,NHS England,31/08/2014,GPMS/APMS and PCTMS,Primary Care & Secondary Dental,CENTRAL CLINIC,4676952,"26,216.98", -   ,DUD000002396
Department of Health,NHS England,31/08/2014,GPMS/APMS and PCTMS,Primary Care & Secondary Dental,CENTRAL MEDICAL CENTRE,4596325,"59,222.39", -   ,LNP000009315
Department of Health,NHS England,31/08/2014,GPMS/APMS and PCTMS,Primary Care & Secondary Dental,CENTRAL SURGERY BARTON HUMBER,4740239,"104,772.63", -   ,KHU000008114
Department of Health,NHS England,31/08/2014,GPMS/APMS and PCTMS,Primary Care & Secondary Dental,CENTRAL SURGERY RUGBY,4725769,"104,568.59", -   ,WA000006340
Department of Health,NHS England,31/08/2014,GPMS/APMS and PCTMS,Primary Care & Secondary Dental,CENTRE PRACTICE (THE),4700988,"89,844.24", -   ,SO000018733
Department of Health,NHS England,31/08/2014,GPMS/APMS and PCTMS,Primary Care & Secondary Dental,CERNE ABBAS SURGERY,4596086,"46,205.46", -   ,DO000008411
Department of Health,NHS England,31/08/2014,GPMS/APMS and PCTMS,Primary Care & Secondary Dental,CESTRIA HEALTH CENTRE,4579053,"-111,177.83", -   ,DR000006248
Department of Health,NHS England,31/08/2014,GPMS/APMS and PCTMS,Primary Care & Secondary Dental,CESTRIA HEALTH CENTRE,4579054,"210,315.13", -   ,DR000006249
Department of Health,NHS England,31/08/2014,GPMS/APMS and PCTMS,Primary Care & Secondary Dental,CH MEDICAL,4561122,"83,791.62", -   ,GMK000004341
Department of Health,NHS England,31/08/2014,GPMS/APMS and PCTMS,Primary Care & Secondary Dental,CHADSFIELD MEDICAL PRACTICE,4725326,"43,082.67", -   ,SPT000002973
Department of Health,NHS England,31/08/2014,GPMS/APMS and PCTMS,Primary Care & Secondary Dental,CHADWELL HEATH HEALTH CENTRE,4677586,"39,161.57", -   ,LNC000005817
Department of Health,NHS England,31/08/2014,GPMS/APMS and PCTMS,Primary Care & Secondary Dental,CHADWELL HEATH SURGERY,4578995,"49,387.46", -   ,LNB000005119
Department of Health,NHS England,31/08/2014,GPMS/APMS and PCTMS,Primary Care & Secondary Dental,CHAGGAR,4679718,"41,992.04", -   ,WBH000003062
Department of Health,NHS England,31/08/2014,GPMS/APMS and PCTMS,Primary Care & Secondary Dental,CHAJED G C & PARTNERS,4742354,"53,812.60", -   ,EX000021118
Department of Health,NHS England,31/08/2014,GPMS/APMS and PCTMS,Primary Care & Secondary Dental,CHALABI & KHAN,4595828,"68,307.81", -   ,LNA000008237
Department of Health,NHS England,31/08/2014,GPMS/APMS and PCTMS,Primary Care & Secondary Dental,CHALKHILL FAMILY PRACTICE,4687729,"26,706.99", -   ,LNL000007011
Department of Health,NHS England,31/08/2014,GPMS/APMS and PCTMS,Primary Care & Secondary Dental,CHANA & PARTNERS,4676135,"-43,133.20", -   ,STL000006617
Department of Health,NHS England,31/08/2014,GPMS/APMS and PCTMS,Primary Care & Secondary Dental,CHANA & PARTNERS,4691178,"52,753.74", -   ,STL000006618
Department of Health,NHS England,31/08/2014,GPMS/APMS and PCTMS,Primary Care & Secondary Dental,CHANCERY LANE PRACTICE,4738541,"31,831.44", -   ,WA000006342
Department of Health,NHS England,31/08/2014,GPMS/APMS and PCTMS,Primary Care & Secondary Dental,CHANDRASHEKHAR & PARTNER,4676489,"-42,003.90", -   ,LIP000007880
Department of Health,NHS England,31/08/2014,GPMS/APMS and PCTMS,Primary Care & Secondary Dental,CHANDRASHEKHAR & PARTNER,4676490,"52,050.80", -   ,LIP000007881
Department of Health,NHS England,31/08/2014,GPMS/APMS and PCTMS,Primary Care & Secondary Dental,CHANDY J,4579055,"-54,802.17", -   ,DR000006250
Department of Health,NHS England,31/08/2014,GPMS/APMS and PCTMS,Primary Care & Secondary Dental,CHANDY J,4579056,"103,086.17", -   ,DR000006251
Department of Health,NHS England,31/08/2014,GPMS/APMS and PCTMS,Primary Care & Secondary Dental,CHANG & PARTNERS,4696088,"37,639.48", -   ,LNN000005449
Department of Health,NHS England,31/08/2014,GPMS/APMS and PCTMS,Primary Care & Secondary Dental,CHAPEL ROW SURGERY,4694933,"43,376.64",878670366,BE000008188
Department of Health,NHS England,31/08/2014,GPMS/APMS and PCTMS,Primary Care & Secondary Dental,CHAPEL STREET MEDICAL PRACTICE ASHTON LYNE,4738495,"35,788.98", -   ,GMK000004471
Department of Health,NHS England,31/08/2014,GPMS/APMS and PCTMS,Primary Care & Secondary Dental,CHAPEL STREET MEDICAL PRACTICE DERBY,4674713,"73,994.71", -   ,DE000011388
Department of Health,NHS England,31/08/2014,GPMS/APMS and PCTMS,Primary Care & Secondary Dental,CHAPEL STREET SURGERY NEWHAVEN,4677090,"37,377.19", -   ,TE000009768
Department of Health,NHS England,31/08/2014,GPMS/APMS and PCTMS,Primary Care & Secondary Dental,CHARD ROAD SURGERY,4471831,"54,253.28", -   ,DN000014376
Department of Health,NHS England,31/08/2014,GPMS/APMS and PCTMS,Primary Care & Secondary Dental,CHARING SURGERY,4636681,"52,334.90", -   ,KC000021605
Department of Health,NHS England,31/08/2014,GPMS/APMS and PCTMS,Primary Care & Secondary Dental,CHARLBURY MEDCIAL CENTRE,4758187,"30,554.84", -   ,OX000007104
Department of Health,NHS England,31/08/2014,GPMS/APMS and PCTMS,Primary Care & Secondary Dental,CHARLESTOWN MEDICAL PRACTICE,4745947,"34,870.28", -   ,MAN000004827
Department of Health,NHS England,31/08/2014,GPMS/APMS and PCTMS,Primary Care & Secondary Dental,CHARLTON & PARTNERS,4579049,"-68,076.33", -   ,DR000006244
Department of Health,NHS England,31/08/2014,GPMS/APMS and PCTMS,Primary Care & Secondary Dental,CHARLTON & PARTNERS,4579050,"129,440.00", -   ,DR000006245
Department of Health,NHS England,31/08/2014,GPMS/APMS and PCTMS,Primary Care & Secondary Dental,CHARLTON HILL SURGERY,4693977,"61,209.39", -   ,SO000018723
Department of Health,NHS England,31/08/2014,GPMS/APMS and PCTMS,Primary Care & Secondary Dental,CHARLTON HOUSE MEDICAL CENTRE,4746416,"41,980.06", -   ,LNE000006827
Department of Health,NHS England,31/08/2014,GPMS/APMS and PCTMS,Primary Care & Secondary Dental,CHARLTON MEDICAL CENTRE,4696637,"110,739.05", -   ,SA000006675
Department of Health,NHS England,31/08/2014,GPMS/APMS and PCTMS,Primary Care & Secondary Dental,CHARNOCK HEALTH PRIMARY CARE CENTRE,4740393,"31,866.63", -   ,SHE000005364
Department of Health,NHS England,31/08/2014,GPMS/APMS and PCTMS,Primary Care & Secondary Dental,CHARTERHOUSE SURGERY,4652068,"54,055.45", -   ,LNT000004032
Department of Health,NHS England,31/08/2014,GPMS/APMS and PCTMS,Primary Care & Secondary Dental,CHASTLETON MEDICAL GROUP,4726229,"70,044.56", -   ,DR000006503
Department of Health,NHS England,31/08/2014,GPMS/APMS and PCTMS,Primary Care & Secondary Dental,CHATHAM STREET SURGERY,4578694,"51,868.55", -   ,BE000008074
Department of Health,NHS England,31/08/2014,GPMS/APMS and PCTMS,Primary Care & Secondary Dental,CHATSWORTH ROAD MEDICAL CENTRE,4576574,"48,543.42", -   ,DE000011280
Department of Health,NHS England,31/08/2014,GPMS/APMS and PCTMS,Primary Care & Secondary Dental,CHATTERJEE PC,4745950,"50,388.58", -   ,MAN000004830
Department of Health,NHS England,31/08/2014,GPMS/APMS and PCTMS,Primary Care & Secondary Dental,CHAUCERS PRACTICE,4577585,"25,111.97", -   ,WA000006298
Department of Health,NHS England,31/08/2014,GPMS/APMS and PCTMS,Primary Care & Secondary Dental,CHAWLA & PARTNER,4679712,"28,187.25", -   ,WBH000003056
Department of Health,NHS England,31/08/2014,GPMS/APMS and PCTMS,Primary Care & Secondary Dental,CHAWTON HOUSE SURGERY,4693979,"43,131.76", -   ,SO000018725
Department of Health,NHS England,31/08/2014,GPMS/APMS and PCTMS,Primary Care & Secondary Dental,CHAWTON PARK SURGERY,4700987,"50,531.39", -   ,SO000018727
Department of Health,NHS England,31/08/2014,GPMS/APMS and PCTMS,Primary Care & Secondary Dental,CHEADLE HULME HEALTH CENTRE - DR SEABROOK,4561330,"69,922.45", -   ,SPT000002885
Department of Health,NHS England,31/08/2014,GPMS/APMS and PCTMS,Primary Care & Secondary Dental,CHEADLE HULME HEALTH CENTRE - DR SHIPSTON,4561333,"61,930.19", -   ,SPT000002887
Department of Health,NHS England,31/08/2014,GPMS/APMS and PCTMS,Primary Care & Secondary Dental,CHEADLE MEDICAL PRACTICE,4725322,"63,074.20", -   ,SPT000002969
Department of Health,NHS England,31/08/2014,GPMS/APMS and PCTMS,Primary Care & Secondary Dental,CHEAM FAMILY PRACTICE,4596321,"88,076.31", -   ,LNP000009309
Department of Health,NHS England,31/08/2014,GPMS/APMS and PCTMS,Primary Care & Secondary Dental,CHEDDAR MEDICAL CENTRE ROYNON WAY CHEDDAR,4758046,"47,116.11", -   ,SM000004939
Department of Health,NHS England,31/08/2014,GPMS/APMS and PCTMS,Primary Care & Secondary Dental,CHELFORD SURGERY,4492388,"27,300.00", -   ,CH000008395
Department of Health,NHS England,31/08/2014,GPMS/APMS and PCTMS,Primary Care & Secondary Dental,CHELFORD SURGERY,4658649,"-27,315.00", -   ,CH000008648
Department of Health,NHS England,31/08/2014,GPMS/APMS and PCTMS,Primary Care & Secondary Dental,CHELFORD SURGERY,4658650,"39,017.20", -   ,CH000008649
Department of Health,NHS England,31/08/2014,GPMS/APMS and PCTMS,Primary Care & Secondary Dental,CHELLS WAY SURGERY,4724270,"74,792.15", -   ,HT000010950
Department of Health,NHS England,31/08/2014,GPMS/APMS and PCTMS,Primary Care & Secondary Dental,CHELSEA PRACTICE,4582238,"31,847.87", -   ,LNJ000005285
Department of Health,NHS England,31/08/2014,GPMS/APMS and PCTMS,Primary Care & Secondary Dental,CHELSFIELD SURGERY,4652069,"53,661.57", -   ,LNT000004034
Department of Health,NHS England,31/08/2014,GPMS/APMS and PCTMS,Primary Care & Secondary Dental,CHELSTON HALL SURGERY,4701033,"39,404.83", -   ,DN000014563
Department of Health,NHS England,31/08/2014,GPMS/APMS and PCTMS,Primary Care & Secondary Dental,CHERRYMEAD SURGERY,4691195,"88,562.76", -   ,BU000006236
Department of Health,NHS England,31/08/2014,GPMS/APMS and PCTMS,Primary Care & Secondary Dental,CHESSEL PRACTICE,4693984,"155,834.79", -   ,SO000018731
Department of Health,NHS England,31/08/2014,GPMS/APMS and PCTMS,Primary Care & Secondary Dental,CHESTERFIELD MEDICAL PARTNERSHIP,4576554,"82,426.75", -   ,DE000011260
Department of Health,NHS England,31/08/2014,GPMS/APMS and PCTMS,Primary Care & Secondary Dental,CHESTNUT PRACTICE,4709735,"49,383.36", -   ,LNM000008383
Department of Health,NHS England,31/08/2014,GPMS/APMS and PCTMS,Primary Care & Secondary Dental,CHESTNUTS SURGERY,4636685,"56,152.51", -   ,KC000021609
Department of Health,NHS England,31/08/2014,GPMS/APMS and PCTMS,Primary Care & Secondary Dental,CHET VALLEY MEDICAL PRACTICE,4726746,"49,735.71", -   ,NF000010505
Department of Health,NHS England,31/08/2014,GPMS/APMS and PCTMS,Primary Care & Secondary Dental,CHEW MEDICAL PRACTICE,4579211,"-50,156.04", -   ,BRS000010162
Department of Health,NHS England,31/08/2014,GPMS/APMS and PCTMS,Primary Care & Secondary Dental,CHEW MEDICAL PRACTICE,4579212,"53,586.69", -   ,BRS000010163
Department of Health,NHS England,31/08/2014,GPMS/APMS and PCTMS,Primary Care & Secondary Dental,CHEW MEDICAL PRACTICE,4744973,"35,007.81", -   ,BRS000010533
Department of Health,NHS England,31/08/2014,GPMS/APMS and PCTMS,Primary Care & Secondary Dental,CHICHESTER PRACTICE,4578107,"39,863.83", -   ,GAT000003893
Department of Health,NHS England,31/08/2014,GPMS/APMS and PCTMS,Primary Care & Secondary Dental,CHILD S W & PARTNER,4578756,"27,919.52", -   ,EX000020748
Department of Health,NHS England,31/08/2014,GPMS/APMS and PCTMS,Primary Care & Secondary Dental,CHILTERN HOUSE MEDICAL CENTRE,4676338,"53,881.86", -   ,BU000006238
Department of Health,NHS England,31/08/2014,GPMS/APMS and PCTMS,Primary Care & Secondary Dental,CHILTERN SURGERY,4743546,"47,156.82", -   ,OX000007106
Department of Health,NHS England,31/08/2014,GPMS/APMS and PCTMS,Primary Care & Secondary Dental,CHILVERS & MCCREA LTD,4579214,"74,369.36", -   ,BRS000010165
Department of Health,NHS England,31/08/2014,GPMS/APMS and PCTMS,Primary Care & Secondary Dental,CHINBROOK SURGERY,4596462,"83,957.61", -   ,LNS000011352
Department of Health,NHS England,31/08/2014,GPMS/APMS and PCTMS,Primary Care & Secondary Dental,CHINEHAM MEDICAL PRACTICE,4539992,"40,956.80", -   ,191823-06-AUG-2014
Department of Health,NHS England,31/08/2014,GPMS/APMS and PCTMS,Primary Care & Secondary Dental,CHINEHAM MEDICAL PRACTICE,4541972,"-63,736.67", -   ,SO000018560
Department of Health,NHS England,31/08/2014,GPMS/APMS and PCTMS,Primary Care & Secondary Dental,CHINEHAM MEDICAL PRACTICE,4541973,"136,837.24", -   ,SO000018561
Department of Health,NHS England,31/08/2014,GPMS/APMS and PCTMS,Primary Care & Secondary Dental,CHINGFORD MEDICAL PRACTICE,4691243,"47,465.02", -   ,LNB000005203
Department of Health,NHS England,31/08/2014,GPMS/APMS and PCTMS,Primary Care & Secondary Dental,CHISLEHURST MEDICAL PRACTICE,4652070,"104,469.68", -   ,LNT000004036
Department of Health,NHS England,31/08/2014,GPMS/APMS and PCTMS,Primary Care & Secondary Dental,CHISNELL P & PARTNERS,4742348,"113,831.93", -   ,EX000021112
Department of Health,NHS England,31/08/2014,GPMS/APMS and PCTMS,Primary Care & Secondary Dental,CHIU C,4758259,"41,174.17", -   ,MAN000004834
Department of Health,NHS England,31/08/2014,GPMS/APMS and PCTMS,Primary Care & Secondary Dental,CHOBHAM & WEST END MEDICAL PRACTICE,4696351,"63,901.82", -   ,SY000009491
Department of Health,NHS England,31/08/2014,GPMS/APMS and PCTMS,Primary Care & Secondary Dental,CHOLMLEY GARDENS MEDICAL CENTRE,4596611,"30,740.21", -   ,LND000005926
Department of Health,NHS England,31/08/2014,GPMS/APMS and PCTMS,Primary Care & Secondary Dental,CHOPRA R,4676133,"-32,042.28", -   ,STL000006615
Department of Health,NHS England,31/08/2014,GPMS/APMS and PCTMS,Primary Care & Secondary Dental,CHOPRA R,4676134,"38,869.44", -   ,STL000006616
Department of Health,NHS England,31/08/2014,GPMS/APMS and PCTMS,Primary Care & Secondary Dental,CHORLEYWOOD HEALTH CENTRE,4724272,"65,678.89", -   ,HT000010952
Department of Health,NHS England,31/08/2014,GPMS/APMS and PCTMS,Primary Care & Secondary Dental,CHRISP STREET HEALTH CENTRE,4691052,"86,733.09", -   ,LNA000008430
Department of Health,NHS England,31/08/2014,GPMS/APMS and PCTMS,Primary Care & Secondary Dental,CHRISTCHURCH FAMILY MEDICAL CENTRE,4579216,"75,039.04", -   ,BRS000010167
Department of Health,NHS England,31/08/2014,GPMS/APMS and PCTMS,Primary Care & Secondary Dental,CHRISTIE CL & PARTNERS,4579616,"39,748.59", -   ,LNP000009311
Department of Health,NHS England,31/08/2014,GPMS/APMS and PCTMS,Primary Care & Secondary Dental,CHRISTMAS MALTINGS & CLEMENTS PRACTICE,4556579,"118,517.23", -   ,SU000007799
Department of Health,NHS England,31/08/2014,GPMS/APMS and PCTMS,Primary Care & Secondary Dental,CHRISTMAS MALTINGS SURGERY DR MOHAN,4543765,"66,346.97", -   ,SU000007801
Department of Health,NHS England,31/08/2014,GPMS/APMS and PCTMS,Primary Care & Secondary Dental,CHUKWU A C & PARTNERS,4742350,"55,350.12", -   ,EX000021114
Department of Health,NHS England,31/08/2014,GPMS/APMS and PCTMS,Primary Care & Secondary Dental,CHUNG & PARTNERS,4504567,"33,287.24", -   ,LIP000007598
Department of Health,NHS England,31/08/2014,GPMS/APMS and PCTMS,Primary Care & Secondary Dental,CHUNG & PARTNERS,4676487,"-83,638.53", -   ,LIP000007878
Department of Health,NHS England,31/08/2014,GPMS/APMS and PCTMS,Primary Care & Secondary Dental,CHUNG & PARTNERS,4676488,"104,305.99", -   ,LIP000007879
Department of Health,NHS England,31/08/2014,GPMS/APMS and PCTMS,Primary Care & Secondary Dental,CHURCH CLOSE SURGERY,4696641,"31,308.60", -   ,SA000006679
Department of Health,NHS England,31/08/2014,GPMS/APMS and PCTMS,Primary Care & Secondary Dental,CHURCH FARM SURGERY,4709303,"30,400.19", -   ,SU000007964
Department of Health,NHS England,31/08/2014,GPMS/APMS and PCTMS,Primary Care & Secondary Dental,CHURCH LANE MEDICAL CENTRE,4740223,"54,210.05", -   ,KHU000008108
Department of Health,NHS England,31/08/2014,GPMS/APMS and PCTMS,Primary Care & Secondary Dental,CHURCH LANE PRACTICE,4596323,"110,857.05", -   ,LNP000009313
Department of Health,NHS England,31/08/2014,GPMS/APMS and PCTMS,Primary Care & Secondary Dental,CHURCH LANE SURGERY BRIGHOUSE,4743670,"67,670.51", -   ,YW000007402
Department of Health,NHS England,31/08/2014,GPMS/APMS and PCTMS,Primary Care & Secondary Dental,CHURCH LANE SURGERY NEW ROMNEY,4636687,"66,608.48", -   ,KC000021611
Department of Health,NHS England,31/08/2014,GPMS/APMS and PCTMS,Primary Care & Secondary Dental,CHURCH LANE SURGERY YORK,4746207,"61,372.92", -   ,YN000008011
Department of Health,NHS England,31/08/2014,GPMS/APMS and PCTMS,Primary Care & Secondary Dental,CHURCH STREET PARTNERSHIP,4679330,"27,395.51", -   ,BIR000010037
Department of Health,NHS England,31/08/2014,GPMS/APMS and PCTMS,Primary Care & Secondary Dental,CHURCH STREET PRACTICE,4578623,"80,648.92", -   ,OX000006972
Department of Health,NHS England,31/08/2014,GPMS/APMS and PCTMS,Primary Care & Secondary Dental,CHURCH STREET PRACTICE,4581990,"74,916.47", -   ,SY000009367
Department of Health,NHS England,31/08/2014,GPMS/APMS and PCTMS,Primary Care & Secondary Dental,CHURCH STREET PRACTICE,4696352,"46,045.18", -   ,SY000009492
Department of Health,NHS England,31/08/2014,GPMS/APMS and PCTMS,Primary Care & Secondary Dental,CHURCH STREET SURGERY BISHOPS STORT,4724274,"82,759.03", -   ,HT000010954
Department of Health,NHS England,31/08/2014,GPMS/APMS and PCTMS,Primary Care & Secondary Dental,CHURCH STREET SURGERY CHURCH STREET MARTOCK,4576959,"69,205.84", -   ,SM000004785
Department of Health,NHS England,31/08/2014,GPMS/APMS and PCTMS,Primary Care & Secondary Dental,CHURCH STREET SURGERY WARE,4724276,"47,886.68", -   ,HT000010956
Department of Health,NHS England,31/08/2014,GPMS/APMS and PCTMS,Primary Care & Secondary Dental,CHURCH STRETTON MEDICAL PRACTICE,4696643,"50,807.28", -   ,SA000006681
Department of Health,NHS England,31/08/2014,GPMS/APMS and PCTMS,Primary Care & Secondary Dental,CHURCH VIEW MEDICAL CENTRE,4577719,"-100,397.33", -   ,SUN000003191
Department of Health,NHS England,31/08/2014,GPMS/APMS and PCTMS,Primary Care & Secondary Dental,CHURCH VIEW MEDICAL CENTRE,4577720,"98,093.58", -   ,SUN000003192
Department of Health,NHS England,31/08/2014,GPMS/APMS and PCTMS,Primary Care & Secondary Dental,CHURCH VIEW PRACTICE,4636689,"32,150.71", -   ,KC000021613
Department of Health,NHS England,31/08/2014,GPMS/APMS and PCTMS,Primary Care & Secondary Dental,CHURCH VIEW PRIMARY CARE CENTRE,4737218,"122,566.06", -   ,CV1408
Department of Health,NHS England,31/08/2014,GPMS/APMS and PCTMS,Primary Care & Secondary Dental,CHURCH VIEW SURGERY HEDON,4740229,"73,932.27", -   ,KHU000008110
Department of Health,NHS England,31/08/2014,GPMS/APMS and PCTMS,Primary Care & Secondary Dental,CHURCHFIELD MEDICAL PRACTICE,4674879,"62,481.53", -   ,NN000012377
Department of Health,NHS England,31/08/2014,GPMS/APMS and PCTMS,Primary Care & Secondary Dental,CHURCHGATE SURGERY,4725082,"49,456.21", -   ,GMK000004468
Department of Health,NHS England,31/08/2014,GPMS/APMS and PCTMS,Primary Care & Secondary Dental,CHURCHILL HEALTHCARE LTD,4596234,"116,673.61", -   ,LNB000005117
Department of Health,NHS England,31/08/2014,GPMS/APMS and PCTMS,Primary Care & Secondary Dental,CHURCHILL MEDICAL CENTRE,4579155,"121,003.69", -   ,LNN000005347
Department of Health,NHS England,31/08/2014,GPMS/APMS and PCTMS,Primary Care & Secondary Dental,CHURCHWOOD MEDICAL PRACTICE,4691297,"75,027.76", -   ,TE000009766
Department of Health,NHS England,31/08/2014,GPMS/APMS and PCTMS,Primary Care & Secondary Dental,CINDERHILL LANE SURGERY,4658652,"28,887.49", -   ,CH000008651
Department of Health,NHS England,31/08/2014,GPMS/APMS and PCTMS,Primary Care & Secondary Dental,CIRCUIT LANE SURGERY,4578696,"72,034.96", -   ,BE000008076
Department of Health,NHS England,31/08/2014,GPMS/APMS and PCTMS,Primary Care & Secondary Dental,CITY CENTRE HEALTH CENTRE,4745954,"-48,180.85", -   ,MAN000004835
Department of Health,NHS England,31/08/2014,GPMS/APMS and PCTMS,Primary Care & Secondary Dental,CITY CENTRE HEALTH CENTRE,4745955,"189,561.01", -   ,MAN000004836
Department of Health,NHS England,31/08/2014,GPMS/APMS and PCTMS,Primary Care & Secondary Dental,CITY HEALTH CARE PARTNERSHIP CIC,4524890,"52,800.00", -   ,7410002880
Department of Health,NHS England,31/08/2014,GPMS/APMS and PCTMS,Primary Care & Secondary Dental,CITY HEALTH CARE PARTNERSHIP CIC,4524894,"27,000.00", -   ,7410002861
Department of Health,NHS England,31/08/2014,GPMS/APMS and PCTMS,Primary Care & Secondary Dental,CITY ROAD MEDICAL CENTRE,4758352,"42,356.75", -   ,LND000006111
Department of Health,NHS England,31/08/2014,GPMS/APMS and PCTMS,Primary Care & Secondary Dental,CITY VIEW MEDICAL PRACTICE,4559915,"-71,155.11", -   ,LDS000008951
Department of Health,NHS England,31/08/2014,GPMS/APMS and PCTMS,Primary Care & Secondary Dental,CITY VIEW MEDICAL PRACTICE,4559916,"144,243.83", -   ,LDS000008952
Department of Health,NHS England,31/08/2014,GPMS/APMS and PCTMS,Primary Care & Secondary Dental,CITY WALLS MEDICAL CENTRE,4492390,"77,700.00", -   ,CH000008397
Department of Health,NHS England,31/08/2014,GPMS/APMS and PCTMS,Primary Care & Secondary Dental,CITY WALLS MEDICAL CENTRE,4658653,"-77,739.00", -   ,CH000008652
Department of Health,NHS England,31/08/2014,GPMS/APMS and PCTMS,Primary Care & Secondary Dental,CITY WALLS MEDICAL CENTRE,4658654,"108,939.17", -   ,CH000008653
Department of Health,NHS England,31/08/2014,GPMS/APMS and PCTMS,Primary Care & Secondary Dental,CITY WAY MEDICAL PRACTICE,4636693,"57,509.83", -   ,KC000021617
Department of Health,NHS England,31/08/2014,GPMS/APMS and PCTMS,Primary Care & Secondary Dental,CITY WELLBEING PRACTICE,4691053,"37,480.55", -   ,LNA000008432
Department of Health,NHS England,31/08/2014,GPMS/APMS and PCTMS,Primary Care & Secondary Dental,CLAASSEN & PARTNER,4596584,"41,767.87", -   ,LNH000004574
Department of Health,NHS England,31/08/2014,GPMS/APMS and PCTMS,Primary Care & Secondary Dental,CLANFIELD PRACTICE,4693982,"39,369.32", -   ,SO000018729
Department of Health,NHS England,31/08/2014,GPMS/APMS and PCTMS,Primary Care & Secondary Dental,CLANRICARDE MEDICAL CENTRE,4636683,"52,683.93", -   ,KC000021607
Department of Health,NHS England,31/08/2014,GPMS/APMS and PCTMS,Primary Care & Secondary Dental,CLAPHAM FAMILY PRACTICE,4580249,"-80,880.93", -   ,LNS000011347
Department of Health,NHS England,31/08/2014,GPMS/APMS and PCTMS,Primary Care & Secondary Dental,CLAPHAM FAMILY PRACTICE,4580250,"251,234.28", -   ,LNS000011348
Department of Health,NHS England,31/08/2014,GPMS/APMS and PCTMS,Primary Care & Secondary Dental,CLAPHAM PARK GROUP PRACTICE,4596460,"99,333.17", -   ,LNS000011350
Department of Health,NHS England,31/08/2014,GPMS/APMS and PCTMS,Primary Care & Secondary Dental,CLAPTON SURGERY,4675124,"38,604.15", -   ,LNA000008426
Department of Health,NHS England,31/08/2014,GPMS/APMS and PCTMS,Primary Care & Secondary Dental,CLARE HOUSE SURGERY,4471652,"67,890.02", -   ,DN000014189
Department of Health,NHS England,31/08/2014,GPMS/APMS and PCTMS,Primary Care & Secondary Dental,CLAREMONT BANK SURGERY,4696639,"42,665.59", -   ,SA000006677
Department of Health,NHS England,31/08/2014,GPMS/APMS and PCTMS,Primary Care & Secondary Dental,CLAREMONT CLINIC,4595826,"69,909.99", -   ,LNA000008233
Department of Health,NHS England,31/08/2014,GPMS/APMS and PCTMS,Primary Care & Secondary Dental,CLAREMONT MEDICAL CENTRE SURBITON,4696084,"49,890.48", -   ,LNN000005445
Department of Health,NHS England,31/08/2014,GPMS/APMS and PCTMS,Primary Care & Secondary Dental,CLAREMONT MEDICAL PRACTICE,4471654,"82,701.90", -   ,DN000014191
Department of Health,NHS England,31/08/2014,GPMS/APMS and PCTMS,Primary Care & Secondary Dental,CLAREMONT SURGERY MAIDENHEAD,4694928,"99,761.39", -   ,BE000008182
Department of Health,NHS England,31/08/2014,GPMS/APMS and PCTMS,Primary Care & Secondary Dental,CLARENCE AVENUE SURGERY,4741642,"26,260.62", -   ,NO000007004
Department of Health,NHS England,31/08/2014,GPMS/APMS and PCTMS,Primary Care & Secondary Dental,CLARENCE MEDICAL CENTRE,4694930,"73,862.79", -   ,BE000008184
Department of Health,NHS England,31/08/2014,GPMS/APMS and PCTMS,Primary Care & Secondary Dental,CLARENCE PARK SURGERY,4579210,"33,310.80", -   ,BRS000010161
Department of Health,NHS England,31/08/2014,GPMS/APMS and PCTMS,Primary Care & Secondary Dental,CLARENDON LODGE,4738539,"72,418.33", -   ,WA000006336
Department of Health,NHS England,31/08/2014,GPMS/APMS and PCTMS,Primary Care & Secondary Dental,CLARENDON MEDICAL PRACTICE,4561157,"50,047.06", -   ,GMK000004382
Department of Health,NHS England,31/08/2014,GPMS/APMS and PCTMS,Primary Care & Secondary Dental,CLARIDGE P M & PARTNERS,4742345,"41,018.82", -   ,EX000021108
Department of Health,NHS England,31/08/2014,GPMS/APMS and PCTMS,Primary Care & Secondary Dental,CLAY CROSS MEDICAL CENTRE,4674711,"39,992.58", -   ,DE000011386
Department of Health,NHS England,31/08/2014,GPMS/APMS and PCTMS,Primary Care & Secondary Dental,CLAYHALL CLINIC,4691242,"31,938.14", -   ,LNB000005201
Department of Health,NHS England,31/08/2014,GPMS/APMS and PCTMS,Primary Care & Secondary Dental,CLAYPATH & UNIVERSITY MEDICAL GROUP,4726231,"116,772.46", -   ,DR000006505
Department of Health,NHS England,31/08/2014,GPMS/APMS and PCTMS,Primary Care & Secondary Dental,CLEMENTS & PARTNERS,4634967,"38,360.93", -   ,MID000005752
Department of Health,NHS England,31/08/2014,GPMS/APMS and PCTMS,Primary Care & Secondary Dental,CLEOBURY MORTIMER MEDICAL CENTRE,4678882,"46,630.33", -   ,SA000006595
Department of Health,NHS England,31/08/2014,GPMS/APMS and PCTMS,Primary Care & Secondary Dental,CLEOBURY MORTIMER MEDICAL CENTRE,4803052,"48,037.50", -   ,195165-27-AUG-2014
Department of Health,NHS England,31/08/2014,GPMS/APMS and PCTMS,Primary Care & Secondary Dental,CLERKENWELL MEDICAL PRACTICE,4758354,"53,290.35", -   ,LND000006115
Department of Health,NHS England,31/08/2014,GPMS/APMS and PCTMS,Primary Care & Secondary Dental,CLEVEDON RIVERSIDE GROUP,4579231,"63,306.47", -   ,BRS000010182
Department of Health,NHS England,31/08/2014,GPMS/APMS and PCTMS,Primary Care & Secondary Dental,CLEVELEYS GROUP PRACTICE,4745311,"78,646.50", -   ,LA000012626
Department of Health,NHS England,31/08/2014,GPMS/APMS and PCTMS,Primary Care & Secondary Dental,CLIFT SURGERY,4693993,"33,980.37", -   ,SO000018741
Department of Health,NHS England,31/08/2014,GPMS/APMS and PCTMS,Primary Care & Secondary Dental,CLIFTON COURT PRACTICE,4579059,"-103,473.34", -   ,DR000006254
Department of Health,NHS England,31/08/2014,GPMS/APMS and PCTMS,Primary Care & Secondary Dental,CLIFTON COURT PRACTICE,4579060,"193,912.22", -   ,DR000006255
Department of Health,NHS England,31/08/2014,GPMS/APMS and PCTMS,Primary Care & Secondary Dental,CLIFTON MEDICAL PRACTICE NOTTINGHAM,4577064,"53,611.05", -   ,NN000012080
Department of Health,NHS England,31/08/2014,GPMS/APMS and PCTMS,Primary Care & Secondary Dental,CLIFTON MEDICAL PRACTICE ST ANNES,4745313,"88,471.13", -   ,LA000012628
Department of Health,NHS England,31/08/2014,GPMS/APMS and PCTMS,Primary Care & Secondary Dental,CLIFTON MEDICAL PRACTICE YORK,4746213,"26,969.28", -   ,YN000008017
Department of Health,NHS England,31/08/2014,GPMS/APMS and PCTMS,Primary Care & Secondary Dental,CLIFTON RISE PRACTICE,4596467,"34,678.67", -   ,LNS000011360
Department of Health,NHS England,31/08/2014,GPMS/APMS and PCTMS,Primary Care & Secondary Dental,CLIFTON ROAD PRACTICE,4725773,"35,788.69", -   ,WA000006346
Department of Health,NHS England,31/08/2014,GPMS/APMS and PCTMS,Primary Care & Secondary Dental,CLIFTON ROAD SURGERY,4725775,"76,176.69", -   ,WA000006348
Department of Health,NHS England,31/08/2014,GPMS/APMS and PCTMS,Primary Care & Secondary Dental,CLIFTON SURGERY,4746215,"38,220.75", -   ,YN000008019
Department of Health,NHS England,31/08/2014,GPMS/APMS and PCTMS,Primary Care & Secondary Dental,CLIVE SURGERY,4696647,"28,795.15", -   ,SA000006685
Department of Health,NHS England,31/08/2014,GPMS/APMS and PCTMS,Primary Care & Secondary Dental,CLOSE FARM SURGERY,4579235,"51,854.98", -   ,BRS000010186
Department of Health,NHS England,31/08/2014,GPMS/APMS and PCTMS,Primary Care & Secondary Dental,CLOVER HEALTH CENTRE,4596672,"118,008.22", -   ,LNW000004176
Department of Health,NHS England,31/08/2014,GPMS/APMS and PCTMS,Primary Care & Secondary Dental,CMK MEDICAL CENTRE,4596213,"88,231.25", -   ,BU000006204
Department of Health,NHS England,31/08/2014,GPMS/APMS and PCTMS,Primary Care & Secondary Dental,COACH HOUSE SURGERY,4724282,"59,329.79", -   ,HT000010962
Department of Health,NHS England,31/08/2014,GPMS/APMS and PCTMS,Primary Care & Secondary Dental,COACHMANS MEDICAL PRACTICE,4582173,"73,882.54", -   ,TW000011279
Department of Health,NHS England,31/08/2014,GPMS/APMS and PCTMS,Primary Care & Secondary Dental,COALPOOL SURGERY,4691390,"38,297.00", -   ,WAL000003686
Department of Health,NHS England,31/08/2014,GPMS/APMS and PCTMS,Primary Care & Secondary Dental,COASTAL HEALTH CARE LTD,4745708,"138,826.00", -   ,LA000013014
Department of Health,NHS England,31/08/2014,GPMS/APMS and PCTMS,Primary Care & Secondary Dental,COASTAL MEDICAL GROUP,4745317,"237,721.98", -   ,LA000012632
Department of Health,NHS England,31/08/2014,GPMS/APMS and PCTMS,Primary Care & Secondary Dental,COATHAM SURGERY,4634968,"-77,539.99", -   ,MID000005753
Department of Health,NHS England,31/08/2014,GPMS/APMS and PCTMS,Primary Care & Secondary Dental,COATHAM SURGERY,4634969,"136,369.74", -   ,MID000005754
Department of Health,NHS England,31/08/2014,GPMS/APMS and PCTMS,Primary Care & Secondary Dental,COBBS GARDEN SURGERY,4676341,"47,067.68", -   ,BU000006242
Department of Health,NHS England,31/08/2014,GPMS/APMS and PCTMS,Primary Care & Secondary Dental,COCKCROFT J H & PARTNERS,4742367,"64,092.85", -   ,EX000021132
Department of Health,NHS England,31/08/2014,GPMS/APMS and PCTMS,Primary Care & Secondary Dental,COCKFOSTERS MEDICAL CENTRE,4758286,"34,651.02", -   ,LNE000006835
Department of Health,NHS England,31/08/2014,GPMS/APMS and PCTMS,Primary Care & Secondary Dental,COGGES SURGERY,4743550,"33,065.83", -   ,OX000007110
Department of Health,NHS England,31/08/2014,GPMS/APMS and PCTMS,Primary Care & Secondary Dental,COKER CLOSE HEALTH CENTRE,4578625,"95,585.97", -   ,OX000006974
Department of Health,NHS England,31/08/2014,GPMS/APMS and PCTMS,Primary Care & Secondary Dental,COLBURN M & PARTNERS,4758092,"45,044.13", -   ,EX000021134
Department of Health,NHS England,31/08/2014,GPMS/APMS and PCTMS,Primary Care & Secondary Dental,COLBY MEDICAL CENTRE LTD,4676140,"-31,592.08", -   ,STL000006623
Department of Health,NHS England,31/08/2014,GPMS/APMS and PCTMS,Primary Care & Secondary Dental,COLBY MEDICAL CENTRE LTD,4691179,"39,360.46", -   ,STL000006624
Department of Health,NHS England,31/08/2014,GPMS/APMS and PCTMS,Primary Care & Secondary Dental,COLDHARBOURHILL PMS,4596673,"34,145.49", -   ,LNW000004178
Department of Health,NHS England,31/08/2014,GPMS/APMS and PCTMS,Primary Care & Secondary Dental,COLEMAN & PARTNERS,4740193,"61,542.19", -   ,DCR000003523
Department of Health,NHS England,31/08/2014,GPMS/APMS and PCTMS,Primary Care & Secondary Dental,COLERIDGE MEDICAL CENTRE,4471677,"101,893.58", -   ,DN000014214
Department of Health,NHS England,31/08/2014,GPMS/APMS and PCTMS,Primary Care & Secondary Dental,COLLEGE HEALTH LTD,4767663,"25,620.20", -   ,KC000022350
